Date Of Transaction,Department,Beneficiary,Amount,Purpose,Supplier - Merchant Category Code Description
26/01/2015,Environment & Community Services,B & Q,25.83,Street Care - Buildings Maintenance,Lumber/Build. Supply Stores
27/01/2015,Chief Executive & Corporate Resources,Dovetail Ltd Gbp,158.15,Supplies and Services,Misc Speciality Retail
28/01/2015,Environment & Community Services,B & Q,50.99,Street Care - Buildings Maintenance,Lumber/Build. Supply Stores
28/01/2015,Children Adult & Health,Cengage Learning S,32.46,Credit Card Charges,Book Stores
28/01/2015,Chief Executive & Corporate Resources,Ptm Edv Systeme Gmbh,296.02,Credit Card Charges,Computer Software Stores
28/01/2015,Environment & Community Services,Premier Inn 44536395,112.75,Credit Card Charges,Premier Travel Inns
28/01/2015,Environment & Community Services,Ezi Klamp Systems,55.08,Street Care - Buildings Maintenance,Hardware Equipment/Supplies
28/01/2015,Children Adult & Health,"Amazon Svcs Europe,sar",23.9,Credit Card Charges,Book Stores
28/01/2015,Environment & Community Services,Howden Joinery Filton,25.14,Street Care - Buildings Maintenance,Construction Materials - Def
28/01/2015,Children Adult & Health,Amazon UK Retail,15.03,Credit Card Charges,Other Direct Marketers
28/01/2015,Children Adult & Health,Murray Hire Centre,129.18,Supplies and Services,Equip/Furn Rent/Lease Serv
28/01/2015,Children Adult & Health,Trainline.Com,14.43,Bus & Rail Passes,Passenger Railways
28/01/2015,Environment & Community Services,Tp Yate,97.9,Street Care - Buildings Maintenance,Lumber/Build. Supply Stores
28/01/2015,Children Adult & Health,Wright Foundation,197.5,Supplies and Services,Business Services - Default
28/01/2015,Children Adult & Health,Currys Superstore,79,Supplies and Services,Electronics Sales
28/01/2015,Children Adult & Health,Amazon UK Retail,22.17,Credit Card Charges,Other Direct Marketers
28/01/2015,Children Adult & Health,Www.Axiseducation.Co.Uk,104.77,Credit Card Charges,Misc Publishing & Printing
28/01/2015,Children Adult & Health,"Amazon Svcs Europe,sar",54.49,Credit Card Charges,Book Stores
28/01/2015,Chief Executive & Corporate Resources,Supplies Team,62.61,Stationery,Stationery Stores
28/01/2015,Chief Executive & Corporate Resources,Supplies Team,3.5,Stationery,Stationery Stores
28/01/2015,Chief Executive & Corporate Resources,Supplies Team,11.26,Stationery,Stationery Stores
28/01/2015,Chief Executive & Corporate Resources,Supplies Team,128.39,Stationery,Stationery Stores
28/01/2015,Chief Executive & Corporate Resources,Supplies Team,-22.8,Stationery,Stationery Stores
28/01/2015,Chief Executive & Corporate Resources,Supplies Team,3.7,Stationery,Stationery Stores
28/01/2015,Chief Executive & Corporate Resources,Supplies Team,8.32,Stationery,Stationery Stores
28/01/2015,Chief Executive & Corporate Resources,Supplies Team,75.65,Stationery,Stationery Stores
28/01/2015,Chief Executive & Corporate Resources,Supplies Team,186.06,Stationery,Stationery Stores
28/01/2015,Chief Executive & Corporate Resources,Supplies Team,1.6,Stationery,Stationery Stores
28/01/2015,Environment & Community Services,Amazon UK Retail,297.97,Credit Card Charges,Other Direct Marketers
28/01/2015,Environment & Community Services,"Amazon Svcs Europe,sar",29.9,Credit Card Charges,Book Stores
28/01/2015,Chief Executive & Corporate Resources,Supplies Team,196.53,Stationery,Stationery Stores
28/01/2015,Chief Executive & Corporate Resources,Supplies Team,69.11,Stationery,Stationery Stores
28/01/2015,Chief Executive & Corporate Resources,Supplies Team,30.66,Stationery,Stationery Stores
28/01/2015,Children Adult & Health,Cossey Produce Ltd,42.99,School dinners,Misc Food Stores - Default
28/01/2015,Children Adult & Health,Cossey Produce Ltd,72.29,School dinners,Misc Food Stores - Default
28/01/2015,Children Adult & Health,Cossey Produce Ltd,51.11,School dinners,Misc Food Stores - Default
28/01/2015,Children Adult & Health,Cossey Produce Ltd,29.05,School dinners,Misc Food Stores - Default
28/01/2015,Children Adult & Health,Cossey Produce Ltd,66.2,School dinners,Misc Food Stores - Default
28/01/2015,Children Adult & Health,Cossey Produce Ltd,61.35,School dinners,Misc Food Stores - Default
28/01/2015,Children Adult & Health,Cossey Produce Ltd,170.79,School dinners,Misc Food Stores - Default
28/01/2015,Children Adult & Health,Cossey Produce Ltd,6.4,School dinners,Misc Food Stores - Default
28/01/2015,Children Adult & Health,Cossey Produce Ltd,113.67,School dinners,Misc Food Stores - Default
28/01/2015,Children Adult & Health,Cossey Produce Ltd,-0.01,School dinners,Misc Food Stores - Default
28/01/2015,Children Adult & Health,Cossey Produce Ltd,57.13,School dinners,Misc Food Stores - Default
28/01/2015,Children Adult & Health,Cossey Produce Ltd,55.05,School dinners,Misc Food Stores - Default
28/01/2015,Children Adult & Health,Cossey Produce Ltd,18.93,School dinners,Misc Food Stores - Default
28/01/2015,Children Adult & Health,Cossey Produce Ltd,33.48,School dinners,Misc Food Stores - Default
28/01/2015,Children Adult & Health,Cossey Produce Ltd,21.49,School dinners,Misc Food Stores - Default
28/01/2015,Children Adult & Health,Cossey Produce Ltd,39.36,School dinners,Misc Food Stores - Default
28/01/2015,Children Adult & Health,Cossey Produce Ltd,49.99,School dinners,Misc Food Stores - Default
28/01/2015,Children Adult & Health,Cossey Produce Ltd,51.38,School dinners,Misc Food Stores - Default
28/01/2015,Children Adult & Health,Cossey Produce Ltd,375.07,School dinners,Misc Food Stores - Default
28/01/2015,Children Adult & Health,Cossey Produce Ltd,66.17,School dinners,Misc Food Stores - Default
28/01/2015,Children Adult & Health,Cossey Produce Ltd,57.73,School dinners,Misc Food Stores - Default
28/01/2015,Children Adult & Health,Cossey Produce Ltd,47.73,School dinners,Misc Food Stores - Default
28/01/2015,Children Adult & Health,Cossey Produce Ltd,-56.28,School dinners,Misc Food Stores - Default
28/01/2015,Children Adult & Health,Cossey Produce Ltd,35.82,School dinners,Misc Food Stores - Default
28/01/2015,Children Adult & Health,Cossey Produce Ltd,85.14,School dinners,Misc Food Stores - Default
28/01/2015,Children Adult & Health,Cossey Produce Ltd,26.03,School dinners,Misc Food Stores - Default
28/01/2015,Children Adult & Health,Cossey Produce Ltd,32.3,School dinners,Misc Food Stores - Default
28/01/2015,Children Adult & Health,Cossey Produce Ltd,56.28,School dinners,Misc Food Stores - Default
28/01/2015,Children Adult & Health,Cossey Produce Ltd,9,School dinners,Misc Food Stores - Default
28/01/2015,Children Adult & Health,Cossey Produce Ltd,54.38,School dinners,Misc Food Stores - Default
28/01/2015,Children Adult & Health,Cossey Produce Ltd,30,School dinners,Misc Food Stores - Default
28/01/2015,Children Adult & Health,Cossey Produce Ltd,53.25,School dinners,Misc Food Stores - Default
28/01/2015,Children Adult & Health,Cossey Produce Ltd,15.24,School dinners,Misc Food Stores - Default
28/01/2015,Children Adult & Health,Cossey Produce Ltd,54.72,School dinners,Misc Food Stores - Default
28/01/2015,Children Adult & Health,Cossey Produce Ltd,59.14,School dinners,Misc Food Stores - Default
28/01/2015,Children Adult & Health,Cossey Produce Ltd,25.3,School dinners,Misc Food Stores - Default
28/01/2015,Children Adult & Health,Cossey Produce Ltd,105.9,School dinners,Misc Food Stores - Default
28/01/2015,Children Adult & Health,Cossey Produce Ltd,49.77,School dinners,Misc Food Stores - Default
28/01/2015,Children Adult & Health,Cossey Produce Ltd,56.28,School dinners,Misc Food Stores - Default
28/01/2015,Children Adult & Health,Cossey Produce Ltd,16.57,School dinners,Misc Food Stores - Default
28/01/2015,Children Adult & Health,Cossey Produce Ltd,39.5,School dinners,Misc Food Stores - Default
28/01/2015,Children Adult & Health,Cossey Produce Ltd,30.91,School dinners,Misc Food Stores - Default
28/01/2015,Children Adult & Health,Cossey Produce Ltd,76.99,School dinners,Misc Food Stores - Default
28/01/2015,Children Adult & Health,Cossey Produce Ltd,49.3,School dinners,Misc Food Stores - Default
28/01/2015,Children Adult & Health,Sainsburys Smkt,27.96,Credit Card Charges,Grocery Stores/Supermarkets
28/01/2015,Environment & Community Services,Dvsa,1000,Credit Card Charges,Govt Serv - Default
28/01/2015,Chief Executive & Corporate Resources,999inks.Com,76.45,Credit Card Charges,Quick Copy/Repro Services
28/01/2015,Environment & Community Services,Irm Bristol Ltd,78.5,Supplies and Services,Architectural/Eng/Survey
28/01/2015,Environment & Community Services,B & Q,13.31,Supplies and Services,Lumber/Build. Supply Stores
28/01/2015,Environment & Community Services,Tp Bristol Stoke G,15.05,Supplies and Services,Lumber/Build. Supply Stores
28/01/2015,Children Adult & Health,Woven Labels UK Lt,9.98,Credit Card Charges,Misc Apparel/Access Shops
28/01/2015,Children Adult & Health,Lashings Gloucester Ro,5,Supplies and Services,Fast Food Restaurants
28/01/2015,Children Adult & Health,Sainsburys S/mkts,14.24,Supplies and Services,Grocery Stores/Supermarkets
28/01/2015,Chief Executive & Corporate Resources,Paypal,339.69,Supplies and Services,Misc Speciality Retail
28/01/2015,Chief Executive & Corporate Resources,Fgw Websales,147,Supplies and Services,Passenger Railways
28/01/2015,Chief Executive & Corporate Resources,Amazon UK Marketplace,57.59,Credit Card Charges,Misc Speciality Retail
28/01/2015,Chief Executive & Corporate Resources,Www.Posturite.Co.Uk,65.94,Credit Card Charges,Commercial Furniture
28/01/2015,Chief Executive & Corporate Resources,Ebusiness Information,300,Credit Card Charges,Computer Program/Sys Design
28/01/2015,Children Adult & Health,John Sheppard Butchers,198.93,School dinners,Freezer/Meat Lockers
28/01/2015,Children Adult & Health,John Sheppard Butchers,91.16,School dinners,Freezer/Meat Lockers
28/01/2015,Children Adult & Health,John Sheppard Butchers,51.77,School dinners,Freezer/Meat Lockers
28/01/2015,Children Adult & Health,John Sheppard Butchers,65.62,School dinners,Freezer/Meat Lockers
28/01/2015,Children Adult & Health,John Sheppard Butchers,38.06,School dinners,Freezer/Meat Lockers
28/01/2015,Children Adult & Health,John Sheppard Butchers,95.98,School dinners,Freezer/Meat Lockers
28/01/2015,Children Adult & Health,John Sheppard Butchers,53.74,School dinners,Freezer/Meat Lockers
28/01/2015,Children Adult & Health,John Sheppard Butchers,25.97,School dinners,Freezer/Meat Lockers
28/01/2015,Children Adult & Health,John Sheppard Butchers,35.78,School dinners,Freezer/Meat Lockers
28/01/2015,Children Adult & Health,John Sheppard Butchers,48.25,School dinners,Freezer/Meat Lockers
28/01/2015,Children Adult & Health,John Sheppard Butchers,108.71,School dinners,Freezer/Meat Lockers
28/01/2015,Children Adult & Health,John Sheppard Butchers,26.32,School dinners,Freezer/Meat Lockers
28/01/2015,Children Adult & Health,John Sheppard Butchers,113.19,School dinners,Freezer/Meat Lockers
28/01/2015,Children Adult & Health,John Sheppard Butchers,25.89,School dinners,Freezer/Meat Lockers
28/01/2015,Children Adult & Health,John Sheppard Butchers,67.6,School dinners,Freezer/Meat Lockers
28/01/2015,Children Adult & Health,John Sheppard Butchers,67.25,School dinners,Freezer/Meat Lockers
28/01/2015,Children Adult & Health,John Sheppard Butchers,68.37,School dinners,Freezer/Meat Lockers
28/01/2015,Children Adult & Health,John Sheppard Butchers,79.89,School dinners,Freezer/Meat Lockers
28/01/2015,Children Adult & Health,John Sheppard Butchers,120.96,School dinners,Freezer/Meat Lockers
28/01/2015,Children Adult & Health,John Sheppard Butchers,69.14,School dinners,Freezer/Meat Lockers
28/01/2015,Children Adult & Health,John Sheppard Butchers,89.44,School dinners,Freezer/Meat Lockers
28/01/2015,Children Adult & Health,John Sheppard Butchers,73.55,School dinners,Freezer/Meat Lockers
28/01/2015,Children Adult & Health,John Sheppard Butchers,58.76,School dinners,Freezer/Meat Lockers
28/01/2015,Children Adult & Health,John Sheppard Butchers,55.9,School dinners,Freezer/Meat Lockers
28/01/2015,Children Adult & Health,John Sheppard Butchers,98.39,School dinners,Freezer/Meat Lockers
28/01/2015,Children Adult & Health,John Sheppard Butchers,26.4,School dinners,Freezer/Meat Lockers
28/01/2015,Children Adult & Health,John Sheppard Butchers,70.35,School dinners,Freezer/Meat Lockers
28/01/2015,Children Adult & Health,John Sheppard Butchers,187.43,School dinners,Freezer/Meat Lockers
28/01/2015,Children Adult & Health,John Sheppard Butchers,72.67,School dinners,Freezer/Meat Lockers
28/01/2015,Children Adult & Health,John Sheppard Butchers,48.33,School dinners,Freezer/Meat Lockers
28/01/2015,Children Adult & Health,John Sheppard Butchers,68.97,School dinners,Freezer/Meat Lockers
28/01/2015,Children Adult & Health,John Sheppard Butchers,25.89,School dinners,Freezer/Meat Lockers
28/01/2015,Children Adult & Health,John Sheppard Butchers,74.48,School dinners,Freezer/Meat Lockers
28/01/2015,Children Adult & Health,John Sheppard Butchers,41.37,School dinners,Freezer/Meat Lockers
28/01/2015,Children Adult & Health,John Sheppard Butchers,73.79,School dinners,Freezer/Meat Lockers
28/01/2015,Children Adult & Health,John Sheppard Butchers,12.29,School dinners,Freezer/Meat Lockers
28/01/2015,Children Adult & Health,John Sheppard Butchers,69.06,School dinners,Freezer/Meat Lockers
28/01/2015,Children Adult & Health,John Sheppard Butchers,25.28,School dinners,Freezer/Meat Lockers
28/01/2015,Children Adult & Health,John Sheppard Butchers,89.96,School dinners,Freezer/Meat Lockers
28/01/2015,Children Adult & Health,John Sheppard Butchers,75.85,School dinners,Freezer/Meat Lockers
28/01/2015,Children Adult & Health,John Sheppard Butchers,50.14,School dinners,Freezer/Meat Lockers
28/01/2015,Children Adult & Health,John Sheppard Butchers,18.83,School dinners,Freezer/Meat Lockers
28/01/2015,Children Adult & Health,John Sheppard Butchers,101.22,School dinners,Freezer/Meat Lockers
28/01/2015,Children Adult & Health,John Sheppard Butchers,48.07,School dinners,Freezer/Meat Lockers
28/01/2015,Children Adult & Health,John Sheppard Butchers,27.66,School dinners,Freezer/Meat Lockers
28/01/2015,Children Adult & Health,John Sheppard Butchers,79.94,School dinners,Freezer/Meat Lockers
28/01/2015,Children Adult & Health,John Sheppard Butchers,60.6,School dinners,Freezer/Meat Lockers
28/01/2015,Children Adult & Health,John Sheppard Butchers,70.43,School dinners,Freezer/Meat Lockers
28/01/2015,Children Adult & Health,John Sheppard Butchers,50.91,School dinners,Freezer/Meat Lockers
28/01/2015,Children Adult & Health,John Sheppard Butchers,77.62,School dinners,Freezer/Meat Lockers
28/01/2015,Children Adult & Health,John Sheppard Butchers,50.74,School dinners,Freezer/Meat Lockers
28/01/2015,Children Adult & Health,John Sheppard Butchers,71.72,School dinners,Freezer/Meat Lockers
28/01/2015,Children Adult & Health,John Sheppard Butchers,50.88,School dinners,Freezer/Meat Lockers
28/01/2015,Children Adult & Health,John Sheppard Butchers,40.35,School dinners,Freezer/Meat Lockers
28/01/2015,Children Adult & Health,John Sheppard Butchers,27.03,School dinners,Freezer/Meat Lockers
28/01/2015,Children Adult & Health,John Sheppard Butchers,196.84,School dinners,Freezer/Meat Lockers
28/01/2015,Children Adult & Health,John Sheppard Butchers,69,School dinners,Freezer/Meat Lockers
28/01/2015,Children Adult & Health,John Sheppard Butchers,7.59,School dinners,Freezer/Meat Lockers
28/01/2015,Children Adult & Health,John Sheppard Butchers,128.9,School dinners,Freezer/Meat Lockers
28/01/2015,Children Adult & Health,John Sheppard Butchers,91.42,School dinners,Freezer/Meat Lockers
28/01/2015,Children Adult & Health,John Sheppard Butchers,25.28,School dinners,Freezer/Meat Lockers
28/01/2015,Children Adult & Health,John Sheppard Butchers,55.63,School dinners,Freezer/Meat Lockers
28/01/2015,Children Adult & Health,John Sheppard Butchers,19.64,School dinners,Freezer/Meat Lockers
28/01/2015,Children Adult & Health,John Sheppard Butchers,67.42,School dinners,Freezer/Meat Lockers
28/01/2015,Children Adult & Health,John Sheppard Butchers,78.88,School dinners,Freezer/Meat Lockers
28/01/2015,Children Adult & Health,John Sheppard Butchers,74.67,School dinners,Freezer/Meat Lockers
28/01/2015,Children Adult & Health,John Sheppard Butchers,88.24,School dinners,Freezer/Meat Lockers
28/01/2015,Children Adult & Health,Brake Bros Ltd,80.86,School dinners,Caterers
28/01/2015,Children Adult & Health,Brake Bros Ltd,176,School dinners,Caterers
28/01/2015,Children Adult & Health,Brake Bros Ltd,87.78,School dinners,Caterers
28/01/2015,Children Adult & Health,Brake Bros Ltd,188.02,School dinners,Caterers
28/01/2015,Children Adult & Health,Brake Bros Ltd,146.27,School dinners,Caterers
28/01/2015,Children Adult & Health,Brake Bros Ltd,433.95,School dinners,Caterers
28/01/2015,Children Adult & Health,Brake Bros Ltd,-3.14,School dinners,Caterers
28/01/2015,Children Adult & Health,Brake Bros Ltd,220.01,School dinners,Caterers
28/01/2015,Children Adult & Health,Brake Bros Ltd,90.23,School dinners,Caterers
28/01/2015,Children Adult & Health,Brake Bros Ltd,-9.55,School dinners,Caterers
28/01/2015,Children Adult & Health,Brake Bros Ltd,66.21,School dinners,Caterers
28/01/2015,Children Adult & Health,Brake Bros Ltd,39.17,School dinners,Caterers
28/01/2015,Children Adult & Health,Brake Bros Ltd,250.19,School dinners,Caterers
28/01/2015,Children Adult & Health,Brake Bros Ltd,66.59,School dinners,Caterers
28/01/2015,Children Adult & Health,Brake Bros Ltd,190.33,School dinners,Caterers
28/01/2015,Children Adult & Health,Brake Bros Ltd,223.46,School dinners,Caterers
28/01/2015,Children Adult & Health,Brake Bros Ltd,31.78,School dinners,Caterers
28/01/2015,Children Adult & Health,Brake Bros Ltd,51.96,School dinners,Caterers
28/01/2015,Children Adult & Health,Brake Bros Ltd,92.63,School dinners,Caterers
28/01/2015,Children Adult & Health,Brake Bros Ltd,-4.63,School dinners,Caterers
28/01/2015,Children Adult & Health,Brake Bros Ltd,12.12,School dinners,Caterers
28/01/2015,Children Adult & Health,Brake Bros Ltd,254.57,School dinners,Caterers
28/01/2015,Children Adult & Health,Brake Bros Ltd,160.04,School dinners,Caterers
28/01/2015,Children Adult & Health,Brake Bros Ltd,44.99,School dinners,Caterers
28/01/2015,Children Adult & Health,Brake Bros Ltd,158.43,School dinners,Caterers
28/01/2015,Children Adult & Health,Brake Bros Ltd,540.5,School dinners,Caterers
28/01/2015,Children Adult & Health,Brake Bros Ltd,374.07,School dinners,Caterers
28/01/2015,Children Adult & Health,Brake Bros Ltd,297.38,School dinners,Caterers
28/01/2015,Children Adult & Health,Brake Bros Ltd,-2.66,School dinners,Caterers
28/01/2015,Children Adult & Health,Brake Bros Ltd,186.36,School dinners,Caterers
28/01/2015,Children Adult & Health,Brake Bros Ltd,119.22,School dinners,Caterers
28/01/2015,Children Adult & Health,Brake Bros Ltd,-12.76,School dinners,Caterers
28/01/2015,Children Adult & Health,Brake Bros Ltd,286.79,School dinners,Caterers
28/01/2015,Children Adult & Health,Brake Bros Ltd,309.58,School dinners,Caterers
28/01/2015,Children Adult & Health,Brake Bros Ltd,237.76,School dinners,Caterers
28/01/2015,Children Adult & Health,Brake Bros Ltd,247.7,School dinners,Caterers
28/01/2015,Children Adult & Health,Brake Bros Ltd,220.27,School dinners,Caterers
28/01/2015,Children Adult & Health,Brake Bros Ltd,171.78,School dinners,Caterers
28/01/2015,Children Adult & Health,Brake Bros Ltd,83.1,School dinners,Caterers
28/01/2015,Children Adult & Health,Brake Bros Ltd,108.91,School dinners,Caterers
28/01/2015,Children Adult & Health,Brake Bros Ltd,153.59,School dinners,Caterers
28/01/2015,Children Adult & Health,Brake Bros Ltd,262.71,School dinners,Caterers
28/01/2015,Children Adult & Health,Brake Bros Ltd,323.12,School dinners,Caterers
28/01/2015,Children Adult & Health,Brake Bros Ltd,47.37,School dinners,Caterers
28/01/2015,Children Adult & Health,Brake Bros Ltd,135.8,School dinners,Caterers
28/01/2015,Children Adult & Health,Brake Bros Ltd,355.02,School dinners,Caterers
28/01/2015,Children Adult & Health,Brake Bros Ltd,20.79,School dinners,Caterers
28/01/2015,Children Adult & Health,Brake Bros Ltd,395.67,School dinners,Caterers
28/01/2015,Children Adult & Health,Brake Bros Ltd,264.72,School dinners,Caterers
28/01/2015,Children Adult & Health,Brake Bros Ltd,363.12,School dinners,Caterers
28/01/2015,Children Adult & Health,Brake Bros Ltd,458.33,School dinners,Caterers
28/01/2015,Children Adult & Health,Brake Bros Ltd,128.46,School dinners,Caterers
28/01/2015,Children Adult & Health,Brake Bros Ltd,87.5,School dinners,Caterers
28/01/2015,Children Adult & Health,Brake Bros Ltd,181.76,School dinners,Caterers
28/01/2015,Children Adult & Health,Brake Bros Ltd,119.9,School dinners,Caterers
28/01/2015,Children Adult & Health,Brake Bros Ltd,95.25,School dinners,Caterers
28/01/2015,Children Adult & Health,Brake Bros Ltd,162.52,School dinners,Caterers
28/01/2015,Children Adult & Health,Brake Bros Ltd,85.73,School dinners,Caterers
28/01/2015,Children Adult & Health,Brake Bros Ltd,-11.91,School dinners,Caterers
28/01/2015,Children Adult & Health,Brake Bros Ltd,257.61,School dinners,Caterers
28/01/2015,Children Adult & Health,Brake Bros Ltd,187.59,School dinners,Caterers
28/01/2015,Children Adult & Health,Brake Bros Ltd,131.87,School dinners,Caterers
28/01/2015,Children Adult & Health,Brake Bros Ltd,131.89,School dinners,Caterers
28/01/2015,Children Adult & Health,Brake Bros Ltd,235.04,School dinners,Caterers
28/01/2015,Children Adult & Health,Brake Bros Ltd,121.26,School dinners,Caterers
28/01/2015,Children Adult & Health,Brake Bros Ltd,416.98,School dinners,Caterers
28/01/2015,Children Adult & Health,Brake Bros Ltd,258.21,School dinners,Caterers
28/01/2015,Children Adult & Health,Brake Bros Ltd,391.13,School dinners,Caterers
28/01/2015,Children Adult & Health,Brake Bros Ltd,-2.44,School dinners,Caterers
28/01/2015,Children Adult & Health,Brake Bros Ltd,19.57,School dinners,Caterers
28/01/2015,Children Adult & Health,Brake Bros Ltd,87.07,School dinners,Caterers
28/01/2015,Children Adult & Health,Brake Bros Ltd,549.06,School dinners,Caterers
28/01/2015,Children Adult & Health,Brake Bros Ltd,239.38,School dinners,Caterers
28/01/2015,Children Adult & Health,Brake Bros Ltd,97.85,School dinners,Caterers
28/01/2015,Children Adult & Health,Brake Bros Ltd,249.45,School dinners,Caterers
28/01/2015,Children Adult & Health,Brake Bros Ltd,101.65,School dinners,Caterers
28/01/2015,Children Adult & Health,Brake Bros Ltd,56.85,School dinners,Caterers
28/01/2015,Children Adult & Health,Brake Bros Ltd,212.4,School dinners,Caterers
28/01/2015,Children Adult & Health,Brake Bros Ltd,60.09,School dinners,Caterers
28/01/2015,Children Adult & Health,Brake Bros Ltd,123.03,School dinners,Caterers
28/01/2015,Children Adult & Health,Brake Bros Ltd,242.46,School dinners,Caterers
28/01/2015,Children Adult & Health,Brake Bros Ltd,402.94,School dinners,Caterers
29/01/2015,Children Adult & Health,Brake Bros Ltd,344.65,School dinners,Caterers
29/01/2015,Children Adult & Health,Brake Bros Ltd,147.2,School dinners,Caterers
29/01/2015,Children Adult & Health,Brake Bros Ltd,223.64,School dinners,Caterers
29/01/2015,Children Adult & Health,Brake Bros Ltd,259.24,School dinners,Caterers
29/01/2015,Children Adult & Health,Brake Bros Ltd,200.37,School dinners,Caterers
29/01/2015,Children Adult & Health,Brake Bros Ltd,27.44,School dinners,Caterers
29/01/2015,Children Adult & Health,Brake Bros Ltd,77.08,School dinners,Caterers
29/01/2015,Children Adult & Health,Brake Bros Ltd,66,School dinners,Caterers
29/01/2015,Children Adult & Health,Brake Bros Ltd,221.24,School dinners,Caterers
29/01/2015,Children Adult & Health,Brake Bros Ltd,432.31,School dinners,Caterers
29/01/2015,Children Adult & Health,Brake Bros Ltd,121.99,School dinners,Caterers
29/01/2015,Children Adult & Health,Brake Bros Ltd,81.24,School dinners,Caterers
29/01/2015,Children Adult & Health,Brake Bros Ltd,72.16,School dinners,Caterers
29/01/2015,Children Adult & Health,Brake Bros Ltd,78.76,School dinners,Caterers
29/01/2015,Children Adult & Health,Brake Bros Ltd,406.55,School dinners,Caterers
29/01/2015,Children Adult & Health,Brake Bros Ltd,94.3,School dinners,Caterers
29/01/2015,Children Adult & Health,Brake Bros Ltd,109.27,School dinners,Caterers
29/01/2015,Children Adult & Health,Brake Bros Ltd,342.44,School dinners,Caterers
29/01/2015,Children Adult & Health,Brake Bros Ltd,28.52,School dinners,Caterers
29/01/2015,Children Adult & Health,Brake Bros Ltd,33.03,School dinners,Caterers
29/01/2015,Children Adult & Health,Brake Bros Ltd,39.07,School dinners,Caterers
29/01/2015,Children Adult & Health,Brake Bros Ltd,238.08,School dinners,Caterers
29/01/2015,Children Adult & Health,Brake Bros Ltd,123.91,School dinners,Caterers
29/01/2015,Children Adult & Health,Brake Bros Ltd,35.2,School dinners,Caterers
29/01/2015,Children Adult & Health,Brake Bros Ltd,163.67,School dinners,Caterers
29/01/2015,Children Adult & Health,Brake Bros Ltd,22.69,School dinners,Caterers
29/01/2015,Children Adult & Health,Brake Bros Ltd,166.68,School dinners,Caterers
29/01/2015,Children Adult & Health,Brake Bros Ltd,32.05,School dinners,Caterers
29/01/2015,Children Adult & Health,Brake Bros Ltd,309.24,School dinners,Caterers
29/01/2015,Children Adult & Health,Brake Bros Ltd,77.52,School dinners,Caterers
29/01/2015,Children Adult & Health,Brake Bros Ltd,263.57,School dinners,Caterers
29/01/2015,Children Adult & Health,Brake Bros Ltd,251.46,School dinners,Caterers
29/01/2015,Children Adult & Health,Brake Bros Ltd,166.23,School dinners,Caterers
29/01/2015,Children Adult & Health,Brake Bros Ltd,404.41,School dinners,Caterers
29/01/2015,Children Adult & Health,Brake Bros Ltd,147.05,School dinners,Caterers
29/01/2015,Children Adult & Health,Brake Bros Ltd,154.5,School dinners,Caterers
29/01/2015,Children Adult & Health,Brake Bros Ltd,51.39,School dinners,Caterers
29/01/2015,Children Adult & Health,Brake Bros Ltd,97.96,School dinners,Caterers
29/01/2015,Children Adult & Health,Brake Bros Ltd,146.7,School dinners,Caterers
29/01/2015,Children Adult & Health,Brake Bros Ltd,145.96,School dinners,Caterers
29/01/2015,Children Adult & Health,Brake Bros Ltd,8.43,School dinners,Caterers
29/01/2015,Children Adult & Health,Brake Bros Ltd,311.17,School dinners,Caterers
29/01/2015,Children Adult & Health,Brake Bros Ltd,737.85,School dinners,Caterers
29/01/2015,Children Adult & Health,Brake Bros Ltd,338.89,School dinners,Caterers
29/01/2015,Children Adult & Health,Brake Bros Ltd,87.37,School dinners,Caterers
29/01/2015,Children Adult & Health,Brake Bros Ltd,511.3,School dinners,Caterers
29/01/2015,Children Adult & Health,Brake Bros Ltd,42.67,School dinners,Caterers
29/01/2015,Children Adult & Health,Brake Bros Ltd,238.23,School dinners,Caterers
29/01/2015,Children Adult & Health,Brake Bros Ltd,108.06,School dinners,Caterers
29/01/2015,Children Adult & Health,Brake Bros Ltd,405.78,School dinners,Caterers
29/01/2015,Children Adult & Health,Brake Bros Ltd,84.77,School dinners,Caterers
29/01/2015,Children Adult & Health,Brake Bros Ltd,322.04,School dinners,Caterers
29/01/2015,Children Adult & Health,Brake Bros Ltd,381.66,School dinners,Caterers
29/01/2015,Children Adult & Health,Brake Bros Ltd,435.7,School dinners,Caterers
29/01/2015,Children Adult & Health,Brake Bros Ltd,353.05,School dinners,Caterers
29/01/2015,Children Adult & Health,Brake Bros Ltd,342.16,School dinners,Caterers
29/01/2015,Children Adult & Health,Brake Bros Ltd,183.86,School dinners,Caterers
29/01/2015,Children Adult & Health,Brake Bros Ltd,291.51,School dinners,Caterers
29/01/2015,Children Adult & Health,Brake Bros Ltd,231.6,School dinners,Caterers
29/01/2015,Children Adult & Health,Brake Bros Ltd,106.23,School dinners,Caterers
29/01/2015,Children Adult & Health,Brake Bros Ltd,18.3,School dinners,Caterers
29/01/2015,Children Adult & Health,Brake Bros Ltd,477.71,School dinners,Caterers
29/01/2015,Children Adult & Health,Brake Bros Ltd,247.74,School dinners,Caterers
29/01/2015,Children Adult & Health,Brake Bros Ltd,75.81,School dinners,Caterers
29/01/2015,Children Adult & Health,Brake Bros Ltd,67.18,School dinners,Caterers
29/01/2015,Children Adult & Health,Brake Bros Ltd,154.95,School dinners,Caterers
29/01/2015,Children Adult & Health,Brake Bros Ltd,21.36,School dinners,Caterers
29/01/2015,Children Adult & Health,Brake Bros Ltd,30.84,School dinners,Caterers
29/01/2015,Children Adult & Health,Brake Bros Ltd,9.55,School dinners,Caterers
29/01/2015,Children Adult & Health,Brake Bros Ltd,42.6,School dinners,Caterers
29/01/2015,Children Adult & Health,Brake Bros Ltd,78.59,School dinners,Caterers
29/01/2015,Children Adult & Health,Brake Bros Ltd,99.61,School dinners,Caterers
29/01/2015,Children Adult & Health,Brake Bros Ltd,-34.1,School dinners,Caterers
29/01/2015,Children Adult & Health,Brake Bros Ltd,151.16,School dinners,Caterers
29/01/2015,Children Adult & Health,Brake Bros Ltd,162.11,School dinners,Caterers
29/01/2015,Children Adult & Health,Ikea Online,294,Supplies and Services,Misc Home Furnishing
29/01/2015,Children Adult & Health,Brake Bros Ltd,37.74,School dinners,Caterers
29/01/2015,Chief Executive & Corporate Resources,Istock *international,1154.4,Supplies and Services,Art Dealers & Galleries
29/01/2015,Chief Executive & Corporate Resources,Linkedin-238,249,Supplies and Services,Continuity/Subscription Mercht
29/01/2015,Children Adult & Health,Argos,19.93,Credit Card Charges,Discount Stores
29/01/2015,Children Adult & Health,Za Za Bazaar Bristol,24.58,Supplies and Services,Eating Places/Restaurants
29/01/2015,Environment & Community Services,Screwfix Direct,54.99,Supplies and Services,Lumber/Build. Supply Stores
29/01/2015,Environment & Community Services,B & Q,23.92,Supplies and Services,Lumber/Build. Supply Stores
29/01/2015,Children Adult & Health,Argos,34.14,Credit Card Charges,Discount Stores
29/01/2015,Children Adult & Health,Cossey Produce Ltd,-5,School dinners,Misc Food Stores - Default
29/01/2015,Children Adult & Health,Cossey Produce Ltd,57.38,School dinners,Misc Food Stores - Default
29/01/2015,Children Adult & Health,Cossey Produce Ltd,2.49,School dinners,Misc Food Stores - Default
29/01/2015,Children Adult & Health,Cossey Produce Ltd,39.81,School dinners,Misc Food Stores - Default
29/01/2015,Children Adult & Health,Cossey Produce Ltd,23,School dinners,Misc Food Stores - Default
29/01/2015,Children Adult & Health,Cossey Produce Ltd,109.87,School dinners,Misc Food Stores - Default
29/01/2015,Children Adult & Health,Cossey Produce Ltd,44.19,School dinners,Misc Food Stores - Default
29/01/2015,Children Adult & Health,Cossey Produce Ltd,7.8,School dinners,Misc Food Stores - Default
29/01/2015,Children Adult & Health,Cossey Produce Ltd,47.24,School dinners,Misc Food Stores - Default
29/01/2015,Children Adult & Health,Cossey Produce Ltd,37.43,School dinners,Misc Food Stores - Default
29/01/2015,Children Adult & Health,Cossey Produce Ltd,16,School dinners,Misc Food Stores - Default
29/01/2015,Children Adult & Health,Cossey Produce Ltd,31.3,School dinners,Misc Food Stores - Default
29/01/2015,Children Adult & Health,Cossey Produce Ltd,16,School dinners,Misc Food Stores - Default
29/01/2015,Children Adult & Health,Cossey Produce Ltd,9.61,School dinners,Misc Food Stores - Default
29/01/2015,Children Adult & Health,Cossey Produce Ltd,25,School dinners,Misc Food Stores - Default
29/01/2015,Children Adult & Health,Cossey Produce Ltd,98.72,School dinners,Misc Food Stores - Default
29/01/2015,Children Adult & Health,Cossey Produce Ltd,16,School dinners,Misc Food Stores - Default
29/01/2015,Children Adult & Health,Cossey Produce Ltd,22.96,School dinners,Misc Food Stores - Default
29/01/2015,Children Adult & Health,Cossey Produce Ltd,56.78,School dinners,Misc Food Stores - Default
29/01/2015,Children Adult & Health,Cossey Produce Ltd,-3.9,School dinners,Misc Food Stores - Default
29/01/2015,Children Adult & Health,Cossey Produce Ltd,51.4,School dinners,Misc Food Stores - Default
29/01/2015,Children Adult & Health,Cossey Produce Ltd,41.98,School dinners,Misc Food Stores - Default
29/01/2015,Children Adult & Health,Cossey Produce Ltd,2,School dinners,Misc Food Stores - Default
29/01/2015,Children Adult & Health,Cossey Produce Ltd,39.83,School dinners,Misc Food Stores - Default
29/01/2015,Children Adult & Health,Cossey Produce Ltd,4.5,School dinners,Misc Food Stores - Default
29/01/2015,Children Adult & Health,Cossey Produce Ltd,4.8,School dinners,Misc Food Stores - Default
29/01/2015,Children Adult & Health,Cossey Produce Ltd,60.4,School dinners,Misc Food Stores - Default
29/01/2015,Children Adult & Health,Cossey Produce Ltd,54.64,School dinners,Misc Food Stores - Default
29/01/2015,Children Adult & Health,Cossey Produce Ltd,42.35,School dinners,Misc Food Stores - Default
29/01/2015,Children Adult & Health,Cossey Produce Ltd,8,School dinners,Misc Food Stores - Default
29/01/2015,Children Adult & Health,Cossey Produce Ltd,53.47,School dinners,Misc Food Stores - Default
29/01/2015,Children Adult & Health,Cossey Produce Ltd,52.43,School dinners,Misc Food Stores - Default
29/01/2015,Children Adult & Health,Cossey Produce Ltd,45.64,School dinners,Misc Food Stores - Default
29/01/2015,Children Adult & Health,Cossey Produce Ltd,1.45,School dinners,Misc Food Stores - Default
29/01/2015,Children Adult & Health,Cossey Produce Ltd,101.54,School dinners,Misc Food Stores - Default
29/01/2015,Children Adult & Health,Cossey Produce Ltd,73.26,School dinners,Misc Food Stores - Default
29/01/2015,Children Adult & Health,Cossey Produce Ltd,10,School dinners,Misc Food Stores - Default
29/01/2015,Children Adult & Health,Cossey Produce Ltd,25,School dinners,Misc Food Stores - Default
29/01/2015,Children Adult & Health,Cossey Produce Ltd,20.45,School dinners,Misc Food Stores - Default
29/01/2015,Children Adult & Health,Cossey Produce Ltd,29.65,School dinners,Misc Food Stores - Default
29/01/2015,Children Adult & Health,Cossey Produce Ltd,48.16,School dinners,Misc Food Stores - Default
29/01/2015,Children Adult & Health,Cossey Produce Ltd,43.25,School dinners,Misc Food Stores - Default
29/01/2015,Children Adult & Health,Cossey Produce Ltd,53.25,School dinners,Misc Food Stores - Default
29/01/2015,Children Adult & Health,Cossey Produce Ltd,91.56,School dinners,Misc Food Stores - Default
29/01/2015,Children Adult & Health,Cossey Produce Ltd,16.88,School dinners,Misc Food Stores - Default
29/01/2015,Children Adult & Health,Cossey Produce Ltd,9,School dinners,Misc Food Stores - Default
29/01/2015,Children Adult & Health,Cossey Produce Ltd,37.33,School dinners,Misc Food Stores - Default
29/01/2015,Children Adult & Health,Cossey Produce Ltd,7.5,School dinners,Misc Food Stores - Default
29/01/2015,Children Adult & Health,Cossey Produce Ltd,8,School dinners,Misc Food Stores - Default
29/01/2015,Children Adult & Health,Cossey Produce Ltd,115.08,School dinners,Misc Food Stores - Default
29/01/2015,Children Adult & Health,Cossey Produce Ltd,13.54,School dinners,Misc Food Stores - Default
29/01/2015,Children Adult & Health,Cossey Produce Ltd,65.27,School dinners,Misc Food Stores - Default
29/01/2015,Children Adult & Health,Cossey Produce Ltd,30.71,School dinners,Misc Food Stores - Default
29/01/2015,Children Adult & Health,Cossey Produce Ltd,34.04,School dinners,Misc Food Stores - Default
29/01/2015,Children Adult & Health,Cossey Produce Ltd,9,School dinners,Misc Food Stores - Default
29/01/2015,Children Adult & Health,Cossey Produce Ltd,33.2,School dinners,Misc Food Stores - Default
29/01/2015,Children Adult & Health,Cossey Produce Ltd,59.01,School dinners,Misc Food Stores - Default
29/01/2015,Children Adult & Health,Cossey Produce Ltd,39.93,School dinners,Misc Food Stores - Default
29/01/2015,Children Adult & Health,Cossey Produce Ltd,15.06,School dinners,Misc Food Stores - Default
29/01/2015,Children Adult & Health,Cossey Produce Ltd,80.56,School dinners,Misc Food Stores - Default
29/01/2015,Children Adult & Health,Cossey Produce Ltd,9.9,School dinners,Misc Food Stores - Default
29/01/2015,Children Adult & Health,Cossey Produce Ltd,186,School dinners,Misc Food Stores - Default
29/01/2015,Children Adult & Health,Cossey Produce Ltd,18,School dinners,Misc Food Stores - Default
29/01/2015,Children Adult & Health,Cossey Produce Ltd,26.32,School dinners,Misc Food Stores - Default
29/01/2015,Children Adult & Health,Cossey Produce Ltd,32.87,School dinners,Misc Food Stores - Default
29/01/2015,Children Adult & Health,Cossey Produce Ltd,7.5,School dinners,Misc Food Stores - Default
29/01/2015,Children Adult & Health,Cossey Produce Ltd,35,School dinners,Misc Food Stores - Default
29/01/2015,Children Adult & Health,Cossey Produce Ltd,25.41,School dinners,Misc Food Stores - Default
29/01/2015,Children Adult & Health,Cossey Produce Ltd,53.97,School dinners,Misc Food Stores - Default
29/01/2015,Children Adult & Health,Cossey Produce Ltd,37.64,School dinners,Misc Food Stores - Default
29/01/2015,Children Adult & Health,Cossey Produce Ltd,55.87,School dinners,Misc Food Stores - Default
29/01/2015,Children Adult & Health,Cossey Produce Ltd,45.46,School dinners,Misc Food Stores - Default
29/01/2015,Children Adult & Health,Cossey Produce Ltd,70.98,School dinners,Misc Food Stores - Default
29/01/2015,Children Adult & Health,Cossey Produce Ltd,65.1,School dinners,Misc Food Stores - Default
29/01/2015,Children Adult & Health,Cossey Produce Ltd,25.73,School dinners,Misc Food Stores - Default
29/01/2015,Children Adult & Health,Cossey Produce Ltd,3.74,School dinners,Misc Food Stores - Default
29/01/2015,Children Adult & Health,Cossey Produce Ltd,44.17,School dinners,Misc Food Stores - Default
29/01/2015,Children Adult & Health,Cossey Produce Ltd,3.8,School dinners,Misc Food Stores - Default
29/01/2015,Children Adult & Health,Cossey Produce Ltd,196.34,School dinners,Misc Food Stores - Default
29/01/2015,Children Adult & Health,Cossey Produce Ltd,79.22,School dinners,Misc Food Stores - Default
29/01/2015,Children Adult & Health,Cossey Produce Ltd,-1.03,School dinners,Misc Food Stores - Default
29/01/2015,Chief Executive & Corporate Resources,Indeed Tel+35312545907,15.72,Supplies and Services,Business Services - Default
29/01/2015,Children Adult & Health,Co-Op Group 070488,116.8,Credit Card Charges,Grocery Stores/Supermarkets
29/01/2015,Children Adult & Health,"Amazon Svcs Europe,sar",389.99,Credit Card Charges,Book Stores
29/01/2015,Children Adult & Health,"Amazon Svcs Europe,sar",10.53,Credit Card Charges,Book Stores
29/01/2015,Children Adult & Health,"Amazon Svcs Europe,sar",157.39,Credit Card Charges,Book Stores
29/01/2015,Children Adult & Health,"Amazon Svcs Europe,sar",439.89,Credit Card Charges,Book Stores
29/01/2015,Environment & Community Services,Www.Barriersdirect.Co.,267.41,Credit Card Charges,Industrial Supplies - Def
29/01/2015,Environment & Community Services,Www.Labelholders.Co.Uk,835.2,Credit Card Charges,Misc Publishing & Printing
29/01/2015,Environment & Community Services,Screwfix,15.99,Credit Card Charges,Lumber/Build. Supply Stores
29/01/2015,Environment & Community Services,Screwfix,18.35,Credit Card Charges,Lumber/Build. Supply Stores
29/01/2015,Children Adult & Health,Amazon UK Retail,-46.85,Credit Card Charges,Other Direct Marketers
29/01/2015,Children Adult & Health,Amazon UK Retail,-26.03,Credit Card Charges,Other Direct Marketers
29/01/2015,Children Adult & Health,"Amazon Svcs Europe,sar",5.85,Credit Card Charges,Book Stores
29/01/2015,Children Adult & Health,"Amazon Svcs Europe,sar",440.02,Credit Card Charges,Book Stores
29/01/2015,Environment & Community Services,Ringgo,4.5,Credit Card Charges,"Parking Lots, Meters, Garages"
29/01/2015,Environment & Community Services,Tp Yate,12.62,Street Care - Buildings Maintenance,Lumber/Build. Supply Stores
30/01/2015,Environment & Community Services,Irm Bristol Ltd,40.32,Supplies and Services,Architectural/Eng/Survey
30/01/2015,Children Adult & Health,Makro Self Service Bristo,160.8,Supplies and Services,Wholesale Clubs
30/01/2015,Children Adult & Health,Makro Self Service Bristo,11.97,Supplies and Services,Wholesale Clubs
30/01/2015,Children Adult & Health,Makro Self Service Bristo,81.9,Supplies and Services,Wholesale Clubs
30/01/2015,Chief Executive & Corporate Resources,B & Q,14.99,Supplies and Services,Lumber/Build. Supply Stores
30/01/2015,Children Adult & Health,Office Reality Ltd,267.6,Credit Card Charges,Furniture/Equip Stores
30/01/2015,Children Adult & Health,Office Reality Ltd,238.8,Credit Card Charges,Furniture/Equip Stores
30/01/2015,Children Adult & Health,"Amazon Svcs Europe,sar",1.39,Credit Card Charges,Book Stores
30/01/2015,Children Adult & Health,"Amazon Svcs Europe,sar",106.7,Credit Card Charges,Book Stores
30/01/2015,Children Adults & Health,Amazon UK Retail,106.55,Credit Card Charges,Other Direct Marketers
30/01/2015,Children Adults & Health,Amazon UK Retail,5.95,Credit Card Charges,Other Direct Marketers
30/01/2015,Children Adult & Health,"Amazon Svcs Europe,sar",7.99,Supplies and Services,Book Stores
30/01/2015,Chief Executive & Corporate Resources,Supplies Team,47.66,Stationery,Stationery Stores
30/01/2015,Chief Executive & Corporate Resources,Supplies Team,331.22,Stationery,Stationery Stores
30/01/2015,Chief Executive & Corporate Resources,Supplies Team,3.6,Stationery,Stationery Stores
30/01/2015,Children Adult & Health,Www.Publicpolicyexchan,283.2,Credit Card Charges,Business Services - Default
30/01/2015,Children Adult & Health,The Who Care Trust,17.5,Credit Card Charges,Charitable/Soc Service Orgs
30/01/2015,Children Adult & Health,Www.Bullyinginterventi,110,Credit Card Charges,Child Care Services
30/01/2015,Children Adult & Health,"Amazon Svcs Europe,sar",51.98,Credit Card Charges,Book Stores
30/01/2015,Chief Executive & Corporate Resources,Supplies Team,11.31,Stationery,Stationery Stores
30/01/2015,Chief Executive & Corporate Resources,Supplies Team,40.7,Stationery,Stationery Stores
30/01/2015,Chief Executive & Corporate Resources,Supplies Team,1.7,Stationery,Stationery Stores
30/01/2015,Chief Executive & Corporate Resources,Supplies Team,25.7,Stationery,Stationery Stores
30/01/2015,Chief Executive & Corporate Resources,Supplies Team,21.42,Stationery,Stationery Stores
30/01/2015,Environment & Community Services,South Glos Internet,70,Credit Card Charges,Govt Serv - Default
30/01/2015,Chief Executive & Corporate Resources,Facebk *fs68j7nbu2,13,Supplies and Services,Advertising Services
30/01/2015,Children Adult & Health,Cossey Produce Ltd,10.29,School dinners,Misc Food Stores - Default
30/01/2015,Children Adult & Health,Cossey Produce Ltd,40.65,School dinners,Misc Food Stores - Default
30/01/2015,Children Adult & Health,Cossey Produce Ltd,18.04,School dinners,Misc Food Stores - Default
30/01/2015,Children Adult & Health,Cossey Produce Ltd,30.96,School dinners,Misc Food Stores - Default
30/01/2015,Children Adult & Health,Cossey Produce Ltd,3.74,School dinners,Misc Food Stores - Default
30/01/2015,Children Adult & Health,Cossey Produce Ltd,24.28,School dinners,Misc Food Stores - Default
30/01/2015,Children Adult & Health,Cossey Produce Ltd,18.35,School dinners,Misc Food Stores - Default
30/01/2015,Children Adult & Health,Cossey Produce Ltd,5.7,School dinners,Misc Food Stores - Default
30/01/2015,Children Adult & Health,Cossey Produce Ltd,7.5,School dinners,Misc Food Stores - Default
30/01/2015,Children Adult & Health,Cossey Produce Ltd,8,School dinners,Misc Food Stores - Default
30/01/2015,Children Adult & Health,Cossey Produce Ltd,18.86,School dinners,Misc Food Stores - Default
30/01/2015,Children Adult & Health,Cossey Produce Ltd,94.19,School dinners,Misc Food Stores - Default
30/01/2015,Children Adult & Health,Cossey Produce Ltd,52.55,School dinners,Misc Food Stores - Default
30/01/2015,Children Adult & Health,Cossey Produce Ltd,10.74,School dinners,Misc Food Stores - Default
30/01/2015,Children Adult & Health,Cossey Produce Ltd,16,School dinners,Misc Food Stores - Default
30/01/2015,Children Adult & Health,Cossey Produce Ltd,16.98,School dinners,Misc Food Stores - Default
30/01/2015,Children Adult & Health,Cossey Produce Ltd,15.06,School dinners,Misc Food Stores - Default
30/01/2015,Children Adult & Health,Cossey Produce Ltd,24,School dinners,Misc Food Stores - Default
30/01/2015,Children Adult & Health,Cossey Produce Ltd,13.7,School dinners,Misc Food Stores - Default
30/01/2015,Children Adult & Health,Cossey Produce Ltd,16,School dinners,Misc Food Stores - Default
30/01/2015,Children Adult & Health,Cossey Produce Ltd,4.88,School dinners,Misc Food Stores - Default
30/01/2015,Children Adult & Health,Cossey Produce Ltd,42.6,School dinners,Misc Food Stores - Default
30/01/2015,Children Adult & Health,Cossey Produce Ltd,25.94,School dinners,Misc Food Stores - Default
30/01/2015,Children Adult & Health,Cossey Produce Ltd,10,School dinners,Misc Food Stores - Default
30/01/2015,Children Adult & Health,Cossey Produce Ltd,32.55,School dinners,Misc Food Stores - Default
30/01/2015,Children Adult & Health,Cossey Produce Ltd,8.37,School dinners,Misc Food Stores - Default
30/01/2015,Children Adult & Health,Cossey Produce Ltd,3.2,School dinners,Misc Food Stores - Default
30/01/2015,Children Adult & Health,Cossey Produce Ltd,10.13,School dinners,Misc Food Stores - Default
30/01/2015,Children Adult & Health,Cossey Produce Ltd,32.25,School dinners,Misc Food Stores - Default
30/01/2015,Children Adult & Health,Cossey Produce Ltd,7,School dinners,Misc Food Stores - Default
30/01/2015,Children Adult & Health,Cossey Produce Ltd,57.7,School dinners,Misc Food Stores - Default
30/01/2015,Children Adult & Health,Cossey Produce Ltd,22.6,School dinners,Misc Food Stores - Default
30/01/2015,Children Adult & Health,Cossey Produce Ltd,2.67,School dinners,Misc Food Stores - Default
30/01/2015,Children Adult & Health,Cossey Produce Ltd,-2.85,School dinners,Misc Food Stores - Default
30/01/2015,Children Adult & Health,Cossey Produce Ltd,19.78,School dinners,Misc Food Stores - Default
30/01/2015,Children Adult & Health,Cossey Produce Ltd,19,School dinners,Misc Food Stores - Default
30/01/2015,Children Adult & Health,Cossey Produce Ltd,6,School dinners,Misc Food Stores - Default
30/01/2015,Children Adult & Health,Cossey Produce Ltd,89.03,School dinners,Misc Food Stores - Default
30/01/2015,Children Adult & Health,Cossey Produce Ltd,10.3,School dinners,Misc Food Stores - Default
30/01/2015,Children Adult & Health,Cossey Produce Ltd,31.51,School dinners,Misc Food Stores - Default
30/01/2015,Children Adult & Health,Cossey Produce Ltd,-5,School dinners,Misc Food Stores - Default
30/01/2015,Children Adult & Health,Cossey Produce Ltd,46.4,School dinners,Misc Food Stores - Default
30/01/2015,Children Adult & Health,Cossey Produce Ltd,28.67,School dinners,Misc Food Stores - Default
30/01/2015,Children Adult & Health,Cossey Produce Ltd,14.86,School dinners,Misc Food Stores - Default
30/01/2015,Children Adult & Health,Cossey Produce Ltd,120.41,School dinners,Misc Food Stores - Default
30/01/2015,Children Adult & Health,Cossey Produce Ltd,8.97,School dinners,Misc Food Stores - Default
30/01/2015,Children Adult & Health,Cossey Produce Ltd,18,School dinners,Misc Food Stores - Default
30/01/2015,Children Adult & Health,Cossey Produce Ltd,21.74,School dinners,Misc Food Stores - Default
30/01/2015,Children Adult & Health,Cossey Produce Ltd,41.66,School dinners,Misc Food Stores - Default
30/01/2015,Children Adult & Health,Cossey Produce Ltd,17.4,School dinners,Misc Food Stores - Default
30/01/2015,Children Adult & Health,Cossey Produce Ltd,56.18,School dinners,Misc Food Stores - Default
30/01/2015,Children Adult & Health,Cossey Produce Ltd,38.3,School dinners,Misc Food Stores - Default
30/01/2015,Children Adult & Health,Cossey Produce Ltd,49.84,School dinners,Misc Food Stores - Default
30/01/2015,Children Adult & Health,Cossey Produce Ltd,6.1,School dinners,Misc Food Stores - Default
30/01/2015,Children Adult & Health,Cossey Produce Ltd,5.63,School dinners,Misc Food Stores - Default
30/01/2015,Children Adult & Health,Cossey Produce Ltd,55.86,School dinners,Misc Food Stores - Default
30/01/2015,Children Adult & Health,Cossey Produce Ltd,54.09,School dinners,Misc Food Stores - Default
30/01/2015,Children Adult & Health,Cossey Produce Ltd,25.41,School dinners,Misc Food Stores - Default
30/01/2015,Children Adult & Health,Cossey Produce Ltd,5.33,School dinners,Misc Food Stores - Default
30/01/2015,Children Adult & Health,Cossey Produce Ltd,45.46,School dinners,Misc Food Stores - Default
30/01/2015,Children Adult & Health,Cossey Produce Ltd,5.31,School dinners,Misc Food Stores - Default
30/01/2015,Children Adult & Health,Cossey Produce Ltd,12.12,School dinners,Misc Food Stores - Default
30/01/2015,Children Adult & Health,Cossey Produce Ltd,1.9,School dinners,Misc Food Stores - Default
30/01/2015,Children Adult & Health,Cossey Produce Ltd,5.75,School dinners,Misc Food Stores - Default
30/01/2015,Children Adult & Health,Cossey Produce Ltd,12.53,School dinners,Misc Food Stores - Default
30/01/2015,Children Adult & Health,Cossey Produce Ltd,32.7,School dinners,Misc Food Stores - Default
30/01/2015,Children Adult & Health,Cossey Produce Ltd,23.93,School dinners,Misc Food Stores - Default
30/01/2015,Children Adult & Health,Cossey Produce Ltd,40,School dinners,Misc Food Stores - Default
30/01/2015,Children Adult & Health,Cossey Produce Ltd,20.5,School dinners,Misc Food Stores - Default
30/01/2015,Children Adult & Health,Cossey Produce Ltd,19.5,School dinners,Misc Food Stores - Default
30/01/2015,Children Adult & Health,Cossey Produce Ltd,41.23,School dinners,Misc Food Stores - Default
30/01/2015,Children Adult & Health,Cossey Produce Ltd,21.86,School dinners,Misc Food Stores - Default
30/01/2015,Children Adult & Health,Cossey Produce Ltd,10.5,School dinners,Misc Food Stores - Default
30/01/2015,Children Adult & Health,Cossey Produce Ltd,17.03,School dinners,Misc Food Stores - Default
30/01/2015,Chief Executive & Corporate Resources,Ipf,450,Supplies and Services,Accountants/Auditors/Bookpr
30/01/2015,Children Adult & Health,43035040 Costa Coffee,4.15,Supplies and Services,Eating Places/Restaurants
30/01/2015,Chief Executive & Corporate Resources,Linkedin-239,111,Supplies and Services,Continuity/Subscription Mercht
30/01/2015,Children Adult & Health,John Sheppard Butchers,81.97,School dinners,Freezer/Meat Lockers
30/01/2015,Children Adult & Health,John Sheppard Butchers,16.06,School dinners,Freezer/Meat Lockers
30/01/2015,Children Adult & Health,John Sheppard Butchers,-195.66,School dinners,Freezer/Meat Lockers
30/01/2015,Children Adult & Health,John Sheppard Butchers,-44.29,School dinners,Freezer/Meat Lockers
30/01/2015,Children Adult & Health,John Sheppard Butchers,-96.23,School dinners,Freezer/Meat Lockers
30/01/2015,Children Adult & Health,John Sheppard Butchers,-173.02,School dinners,Freezer/Meat Lockers
30/01/2015,Children Adult & Health,John Sheppard Butchers,67.36,School dinners,Freezer/Meat Lockers
30/01/2015,Children Adult & Health,John Sheppard Butchers,171.27,School dinners,Freezer/Meat Lockers
30/01/2015,Children Adult & Health,John Sheppard Butchers,17.27,School dinners,Freezer/Meat Lockers
30/01/2015,Children Adult & Health,John Sheppard Butchers,251.87,School dinners,Freezer/Meat Lockers
30/01/2015,Children Adult & Health,John Sheppard Butchers,64.26,School dinners,Freezer/Meat Lockers
30/01/2015,Children Adult & Health,John Sheppard Butchers,121.84,School dinners,Freezer/Meat Lockers
30/01/2015,Children Adult & Health,John Sheppard Butchers,-75.97,School dinners,Freezer/Meat Lockers
30/01/2015,Children Adult & Health,John Sheppard Butchers,43.95,School dinners,Freezer/Meat Lockers
30/01/2015,Children Adult & Health,John Sheppard Butchers,-69.11,School dinners,Freezer/Meat Lockers
30/01/2015,Children Adult & Health,John Sheppard Butchers,-46.57,School dinners,Freezer/Meat Lockers
30/01/2015,Children Adult & Health,John Sheppard Butchers,27.33,School dinners,Freezer/Meat Lockers
30/01/2015,Children Adult & Health,John Sheppard Butchers,-60.75,School dinners,Freezer/Meat Lockers
30/01/2015,Children Adult & Health,John Sheppard Butchers,24.96,School dinners,Freezer/Meat Lockers
30/01/2015,Children Adult & Health,John Sheppard Butchers,-204.51,School dinners,Freezer/Meat Lockers
30/01/2015,Children Adult & Health,Brake Bros Ltd,64.91,School dinners,Caterers
30/01/2015,Children Adult & Health,Brake Bros Ltd,561.6,School dinners,Caterers
30/01/2015,Children Adult & Health,Brake Bros Ltd,31.31,School dinners,Caterers
30/01/2015,Children Adult & Health,Brake Bros Ltd,25.32,School dinners,Caterers
30/01/2015,Children Adult & Health,Brake Bros Ltd,344.24,School dinners,Caterers
30/01/2015,Children Adult & Health,Brake Bros Ltd,304.58,School dinners,Caterers
30/01/2015,Children Adult & Health,Brake Bros Ltd,-12.34,School dinners,Caterers
30/01/2015,Children Adult & Health,Brake Bros Ltd,306.34,School dinners,Caterers
30/01/2015,Children Adult & Health,Brake Bros Ltd,37.51,School dinners,Caterers
30/01/2015,Children Adult & Health,Brake Bros Ltd,173.5,School dinners,Caterers
30/01/2015,Children Adult & Health,Brake Bros Ltd,-12.45,School dinners,Caterers
30/01/2015,Children Adult & Health,Brake Bros Ltd,647.53,School dinners,Caterers
30/01/2015,Children Adult & Health,Brake Bros Ltd,193.44,School dinners,Caterers
30/01/2015,Children Adult & Health,Brake Bros Ltd,42.13,School dinners,Caterers
30/01/2015,Children Adult & Health,Brake Bros Ltd,135.34,School dinners,Caterers
30/01/2015,Children Adult & Health,Brake Bros Ltd,39.5,School dinners,Caterers
30/01/2015,Children Adult & Health,Brake Bros Ltd,30.86,School dinners,Caterers
30/01/2015,Children Adult & Health,Brake Bros Ltd,23.1,School dinners,Caterers
30/01/2015,Children Adult & Health,Brake Bros Ltd,71.7,School dinners,Caterers
30/01/2015,Children Adult & Health,Brake Bros Ltd,397.97,School dinners,Caterers
30/01/2015,Children Adult & Health,Brake Bros Ltd,37.97,School dinners,Caterers
30/01/2015,Children Adult & Health,Brake Bros Ltd,14.4,School dinners,Caterers
30/01/2015,Children Adult & Health,Brake Bros Ltd,39.32,School dinners,Caterers
30/01/2015,Children Adult & Health,Brake Bros Ltd,246.75,School dinners,Caterers
30/01/2015,Children Adult & Health,Brake Bros Ltd,94.75,School dinners,Caterers
30/01/2015,Children Adult & Health,Brake Bros Ltd,238.35,School dinners,Caterers
30/01/2015,Children Adult & Health,Brake Bros Ltd,123.77,School dinners,Caterers
30/01/2015,Children Adult & Health,Brake Bros Ltd,280.34,School dinners,Caterers
30/01/2015,Children Adult & Health,Brake Bros Ltd,72.07,School dinners,Caterers
30/01/2015,Children Adult & Health,Brake Bros Ltd,52.93,School dinners,Caterers
30/01/2015,Children Adult & Health,Brake Bros Ltd,263.25,School dinners,Caterers
30/01/2015,Children Adult & Health,Brake Bros Ltd,102.95,School dinners,Caterers
30/01/2015,Children Adult & Health,Brake Bros Ltd,8.37,School dinners,Caterers
30/01/2015,Children Adult & Health,Brake Bros Ltd,42.21,School dinners,Caterers
30/01/2015,Children Adult & Health,Brake Bros Ltd,576.57,School dinners,Caterers
30/01/2015,Children Adult & Health,Brake Bros Ltd,-9.55,School dinners,Caterers
30/01/2015,Children Adult & Health,Brake Bros Ltd,-7.9,School dinners,Caterers
30/01/2015,Children Adult & Health,Brake Bros Ltd,240.91,School dinners,Caterers
30/01/2015,Children Adult & Health,Brake Bros Ltd,-6.81,School dinners,Caterers
30/01/2015,Children Adult & Health,Brake Bros Ltd,406.6,School dinners,Caterers
30/01/2015,Children Adult & Health,Brake Bros Ltd,64.13,School dinners,Caterers
30/01/2015,Children Adult & Health,Brake Bros Ltd,-6.52,School dinners,Caterers
30/01/2015,Children Adult & Health,Brake Bros Ltd,69.84,School dinners,Caterers
30/01/2015,Children Adult & Health,Brake Bros Ltd,-1.57,School dinners,Caterers
31/01/2015,Children Adult & Health,Amazon UK Retail,10,Supplies and Services,Other Direct Marketers
31/01/2015,Children Adult & Health,Brake Bros Ltd,375.2,School dinners,Caterers
31/01/2015,Children Adult & Health,Brake Bros Ltd,-1,School dinners,Caterers
31/01/2015,Children Adult & Health,Brake Bros Ltd,-5.08,School dinners,Caterers
31/01/2015,Children Adult & Health,Brake Bros Ltd,71.58,School dinners,Caterers
31/01/2015,Children Adult & Health,Brake Bros Ltd,84.27,School dinners,Caterers
31/01/2015,Children Adult & Health,Brake Bros Ltd,387.53,School dinners,Caterers
31/01/2015,Children Adult & Health,Brake Bros Ltd,150.42,School dinners,Caterers
31/01/2015,Children Adult & Health,Brake Bros Ltd,273.65,School dinners,Caterers
31/01/2015,Children Adult & Health,Brake Bros Ltd,177.1,School dinners,Caterers
31/01/2015,Children Adult & Health,Brake Bros Ltd,-1,School dinners,Caterers
31/01/2015,Children Adult & Health,Brake Bros Ltd,18.22,School dinners,Caterers
31/01/2015,Children Adult & Health,Brake Bros Ltd,135.77,School dinners,Caterers
31/01/2015,Children Adult & Health,Brake Bros Ltd,254.05,School dinners,Caterers
31/01/2015,Children Adult & Health,Brake Bros Ltd,311.53,School dinners,Caterers
31/01/2015,Children Adult & Health,Brake Bros Ltd,-6.88,School dinners,Caterers
31/01/2015,Children Adult & Health,Brake Bros Ltd,230.41,School dinners,Caterers
31/01/2015,Children Adult & Health,Brake Bros Ltd,-23.1,School dinners,Caterers
31/01/2015,Children Adult & Health,Brake Bros Ltd,365.08,School dinners,Caterers
31/01/2015,Children Adult & Health,Brake Bros Ltd,97.92,School dinners,Caterers
31/01/2015,Children Adult & Health,Brake Bros Ltd,231.04,School dinners,Caterers
31/01/2015,Children Adult & Health,Brake Bros Ltd,343.08,School dinners,Caterers
31/01/2015,Children Adult & Health,Brake Bros Ltd,142.72,School dinners,Caterers
31/01/2015,Children Adult & Health,Brake Bros Ltd,189.2,School dinners,Caterers
31/01/2015,Children Adult & Health,Brake Bros Ltd,281.15,School dinners,Caterers
31/01/2015,Children Adult & Health,Brake Bros Ltd,359.8,School dinners,Caterers
31/01/2015,Children Adult & Health,Brake Bros Ltd,17.69,School dinners,Caterers
31/01/2015,Children Adult & Health,Brake Bros Ltd,153.41,School dinners,Caterers
31/01/2015,Children Adult & Health,Brake Bros Ltd,311.15,School dinners,Caterers
31/01/2015,Children Adult & Health,Brake Bros Ltd,44.45,School dinners,Caterers
31/01/2015,Children Adult & Health,Brake Bros Ltd,205.15,School dinners,Caterers
31/01/2015,Children Adult & Health,Brake Bros Ltd,339.51,School dinners,Caterers
31/01/2015,Children Adult & Health,Brake Bros Ltd,239.81,School dinners,Caterers
31/01/2015,Children Adult & Health,Brake Bros Ltd,268.8,School dinners,Caterers
31/01/2015,Children Adult & Health,Brake Bros Ltd,200.89,School dinners,Caterers
31/01/2015,Children Adult & Health,Brake Bros Ltd,129.19,School dinners,Caterers
31/01/2015,Children Adult & Health,Brake Bros Ltd,-5.4,School dinners,Caterers
31/01/2015,Children Adult & Health,Brake Bros Ltd,256.46,School dinners,Caterers
31/01/2015,Children Adult & Health,Brake Bros Ltd,106.85,School dinners,Caterers
01/02/2015,Children Adult & Health,"Amazon Svcs Europe,sar",5.75,Credit Card Charges,Book Stores
01/02/2015,Chief Executive & Corporate Resources,Indeed Tel+35312545907,30.63,Supplies and Services,Business Services - Default
02/02/2015,Environment & Community Services,B & Q,68.73,Street Care - Buildings Maintenance,Lumber/Build. Supply Stores
02/02/2015,Children Adult & Health,Brake Bros Ltd,92.59,School dinners,Caterers
02/02/2015,Children Adult & Health,Brake Bros Ltd,173.41,School dinners,Caterers
02/02/2015,Children Adult & Health,Brake Bros Ltd,224.43,School dinners,Caterers
02/02/2015,Children Adult & Health,Brake Bros Ltd,181.53,School dinners,Caterers
02/02/2015,Children Adult & Health,Brake Bros Ltd,209.18,School dinners,Caterers
02/02/2015,Children Adult & Health,Brake Bros Ltd,126.93,School dinners,Caterers
02/02/2015,Children Adult & Health,Brake Bros Ltd,41.21,School dinners,Caterers
02/02/2015,Children Adult & Health,Brake Bros Ltd,190.06,School dinners,Caterers
02/02/2015,Children Adult & Health,Brake Bros Ltd,52.25,School dinners,Caterers
02/02/2015,Children Adult & Health,Brake Bros Ltd,295.88,School dinners,Caterers
02/02/2015,Children Adult & Health,Brake Bros Ltd,17.44,School dinners,Caterers
02/02/2015,Children Adult & Health,Brake Bros Ltd,183.66,School dinners,Caterers
02/02/2015,Children Adult & Health,Brake Bros Ltd,176.9,School dinners,Caterers
02/02/2015,Children Adult & Health,Brake Bros Ltd,299.68,School dinners,Caterers
02/02/2015,Children Adult & Health,Brake Bros Ltd,112.8,School dinners,Caterers
02/02/2015,Children Adult & Health,Brake Bros Ltd,1206.47,School dinners,Caterers
02/02/2015,Children Adult & Health,Brake Bros Ltd,102.29,School dinners,Caterers
02/02/2015,Children Adult & Health,Brake Bros Ltd,99.15,School dinners,Caterers
02/02/2015,Children Adult & Health,Brake Bros Ltd,495.64,School dinners,Caterers
02/02/2015,Children Adult & Health,Brake Bros Ltd,62.53,School dinners,Caterers
02/02/2015,Children Adult & Health,Brake Bros Ltd,176.28,School dinners,Caterers
02/02/2015,Children Adult & Health,Brake Bros Ltd,208.24,School dinners,Caterers
02/02/2015,Children Adult & Health,Brake Bros Ltd,141.06,School dinners,Caterers
02/02/2015,Children Adult & Health,Brake Bros Ltd,180.75,School dinners,Caterers
02/02/2015,Children Adult & Health,Brake Bros Ltd,109.47,School dinners,Caterers
02/02/2015,Children Adult & Health,Brake Bros Ltd,57.22,School dinners,Caterers
02/02/2015,Children Adult & Health,Tesco Stores 5652,30.39,Supplies and Services,Grocery Stores/Supermarkets
02/02/2015,Children Adult & Health,Asda Home Shopping,45.5,Supplies and Services,Grocery Stores/Supermarkets
02/02/2015,Children Adult & Health,Brake Bros Ltd,217.73,School dinners,Caterers
02/02/2015,Children Adult & Health,Brake Bros Ltd,29.49,School dinners,Caterers
02/02/2015,Children Adult & Health,Brake Bros Ltd,179.91,School dinners,Caterers
02/02/2015,Children Adult & Health,Brake Bros Ltd,99.77,School dinners,Caterers
02/02/2015,Children Adult & Health,Brake Bros Ltd,36.42,School dinners,Caterers
02/02/2015,Children Adult & Health,Brake Bros Ltd,121.82,School dinners,Caterers
02/02/2015,Children Adult & Health,Brake Bros Ltd,45.56,School dinners,Caterers
02/02/2015,Children Adult & Health,Brake Bros Ltd,174.32,School dinners,Caterers
02/02/2015,Children Adult & Health,Brake Bros Ltd,113.67,School dinners,Caterers
02/02/2015,Children Adult & Health,Brake Bros Ltd,234.93,School dinners,Caterers
02/02/2015,Children Adult & Health,Brake Bros Ltd,235.54,School dinners,Caterers
02/02/2015,Children Adult & Health,Brake Bros Ltd,83.86,School dinners,Caterers
02/02/2015,Children Adult & Health,Brake Bros Ltd,19.22,School dinners,Caterers
02/02/2015,Children Adult & Health,Brake Bros Ltd,37.06,School dinners,Caterers
02/02/2015,Children Adult & Health,Brake Bros Ltd,504.05,School dinners,Caterers
02/02/2015,Children Adult & Health,Brake Bros Ltd,16.53,School dinners,Caterers
02/02/2015,Children Adult & Health,Brake Bros Ltd,98.25,School dinners,Caterers
02/02/2015,Children Adult & Health,Brake Bros Ltd,306.5,School dinners,Caterers
02/02/2015,Children Adult & Health,Brake Bros Ltd,107.19,School dinners,Caterers
02/02/2015,Environment & Community Services,B & Q,14.19,Supplies and Services,Lumber/Build. Supply Stores
02/02/2015,Environment & Community Services,B & Q,19.73,Supplies and Services,Lumber/Build. Supply Stores
02/02/2015,Environment & Community Services,B & Q,13.19,Supplies and Services,Lumber/Build. Supply Stores
02/02/2015,Chief Executive & Corporate Resources,Msft *azuremarket,94.3,Supplies and Services,Computer Network/Info Svcs
02/02/2015,Children Adult & Health,Toolstation,113.09,Supplies and Services,Hardware Stores
02/02/2015,Children Adult & Health,Hobby Craft Ltd,58.08,Credit Card Charges,Artist/Craft Shops
02/02/2015,Children Adult & Health,Asda Superstore,11.94,Credit Card Charges,Grocery Stores/Supermarkets
02/02/2015,Children Adult & Health,Tesco Stores 6420,3.4,Supplies and Services,Grocery Stores/Supermarkets
02/02/2015,Children Adult & Health,Swan,445,Supplies and Services,Bars/Taverns/Lounges/Discos
02/02/2015,Environment & Community Services,Howden Joinery Yate,-23.79,Supplies and Services,Construction Materials - Def
02/02/2015,Environment & Community Services,Howden Joinery Yate,14.27,Supplies and Services,Construction Materials - Def
02/02/2015,Environment & Community Services,Howden Joinery Yate,106.69,Supplies and Services,Construction Materials - Def
02/02/2015,Children Adult & Health,Cossey Produce Ltd,58.19,School dinners,Misc Food Stores - Default
02/02/2015,Children Adult & Health,Cossey Produce Ltd,47.86,School dinners,Misc Food Stores - Default
02/02/2015,Children Adult & Health,Cossey Produce Ltd,40.9,School dinners,Misc Food Stores - Default
02/02/2015,Children Adult & Health,Cossey Produce Ltd,22.48,School dinners,Misc Food Stores - Default
02/02/2015,Children Adult & Health,Cossey Produce Ltd,29.45,School dinners,Misc Food Stores - Default
02/02/2015,Children Adult & Health,Cossey Produce Ltd,8.9,School dinners,Misc Food Stores - Default
02/02/2015,Children Adult & Health,Cossey Produce Ltd,98.7,School dinners,Misc Food Stores - Default
02/02/2015,Children Adult & Health,Cossey Produce Ltd,62.4,School dinners,Misc Food Stores - Default
02/02/2015,Children Adult & Health,Cossey Produce Ltd,8.9,School dinners,Misc Food Stores - Default
02/02/2015,Children Adult & Health,Cossey Produce Ltd,30.5,School dinners,Misc Food Stores - Default
02/02/2015,Children Adult & Health,Cossey Produce Ltd,36.88,School dinners,Misc Food Stores - Default
02/02/2015,Children Adult & Health,Cossey Produce Ltd,8.95,School dinners,Misc Food Stores - Default
02/02/2015,Children Adult & Health,Cossey Produce Ltd,7.5,School dinners,Misc Food Stores - Default
02/02/2015,Children Adult & Health,Cossey Produce Ltd,25.16,School dinners,Misc Food Stores - Default
02/02/2015,Children Adult & Health,Cossey Produce Ltd,22.57,School dinners,Misc Food Stores - Default
02/02/2015,Children Adult & Health,Cossey Produce Ltd,11.56,School dinners,Misc Food Stores - Default
02/02/2015,Environment & Community Services,Fgw Websales,209,Credit Card Charges,Passenger Railways
02/02/2015,Chief Executive & Corporate Resources,Supplies Team,83.26,Stationery,Stationery Stores
02/02/2015,Chief Executive & Corporate Resources,Supplies Team,1.8,Stationery,Stationery Stores
02/02/2015,Chief Executive & Corporate Resources,Supplies Team,10.73,Stationery,Stationery Stores
02/02/2015,Chief Executive & Corporate Resources,Supplies Team,50.73,Stationery,Stationery Stores
02/02/2015,Chief Executive & Corporate Resources,Supplies Team,47.94,Stationery,Stationery Stores
02/02/2015,Children Adult & Health,Www.Muddyfaces.Co.Uk,377.1,Supplies and Services,Children/Infants Wear Store
02/02/2015,Children Adult & Health,Tesco Stores 6420,68.67,Supplies and Services,Grocery Stores/Supermarkets
02/02/2015,Children Adult & Health,"Amazon Svcs Europe,sar",36.94,Credit Card Charges,Book Stores
02/02/2015,Children Adult & Health,Tesco Stores 6420,114.09,Credit Card Charges,Grocery Stores/Supermarkets
02/02/2015,Environment & Community Services,Screwfix,40.47,Supplies and Services,Lumber/Build. Supply Stores
02/02/2015,Children Adult & Health,Wilko Retail Limit,2.5,Supplies and Services,Household Appliance Stores
02/02/2015,Children Adult & Health,Amazon UK Retail,9.75,Supplies and Services,Other Direct Marketers
02/02/2015,Chief Executive & Corporate Resources,"Amazon Svcs Europe,sar",11.28,Credit Card Charges,Book Stores
02/02/2015,Children Adult & Health,Post Office Counter,12.98,Supplies and Services,Postage Stamps
02/02/2015,Environment & Community Services,Ringgo,4.5,Credit Card Charges,"Parking Lots, Meters, Garages"
03/02/2015,Children Adult & Health,Amazon UK Retail,13.99,Supplies and Services,Other Direct Marketers
03/02/2015,Environment & Community Services,Kent Bldng Plastic,4675.98,Supplies and Services,Lumber/Build. Supply Stores
03/02/2015,Children Adult & Health,Fgw Websales,140.5,Supplies and Services,Passenger Railways
03/02/2015,Children Adult & Health,Fgw Websales,213.2,Supplies and Services,Passenger Railways
03/02/2015,Children Adult & Health,Fgw Websales,218.2,Supplies and Services,Passenger Railways
03/02/2015,Children Adults & Health,Www.Axiseducation.Co.Uk,35.88,Credit Card Charges,Misc Publishing & Printing
03/02/2015,Chief Executive & Corporate Resources,Supplies Team,-3.84,Stationery,Stationery Stores
03/02/2015,Environment & Community Services,Eb *bristol Low Carbon,7,Credit Card Charges,Business Services - Default
03/02/2015,Environment & Community Services,Dvsa,500,Credit Card Charges,Govt Serv - Default
03/02/2015,Environment & Community Services,B & Q,50.92,Supplies and Services,Lumber/Build. Supply Stores
03/02/2015,Children Adult & Health,Eddys Domestics,210,Supplies and Services,Household Appliance Stores
03/02/2015,Children Adult & Health,Argos Ltd,45.07,Supplies and Services,Discount Stores
03/02/2015,Children Adult & Health,Argos,123.49,Supplies and Services,Discount Stores
03/02/2015,Children Adult & Health,Argos Ltd,246.44,Supplies and Services,Discount Stores
03/02/2015,Chief Executive & Corporate Resources,Linkedin-240,110.5,Supplies and Services,Continuity/Subscription Mercht
03/02/2015,Chief Executive & Corporate Resources,"Amazon Svcs Europe,sar",297.03,Supplies and Services,Book Stores
03/02/2015,Chief Executive & Corporate Resources,Amazon UK Retail,14.71,Supplies and Services,Other Direct Marketers
03/02/2015,Chief Executive & Corporate Resources,Amazon UK Retail,107.83,Supplies and Services,Other Direct Marketers
03/02/2015,Chief Executive & Corporate Resources,Amazon UK Retail,323.64,Supplies and Services,Other Direct Marketers
03/02/2015,Children Adult & Health,B & Q,66.24,Supplies and Services,Lumber/Build. Supply Stores
03/02/2015,Children Adult & Health,Shaws The Drapers,46.4,Supplies and Services,Family Clothing Stores
03/02/2015,Children Adult & Health,Bristol Bedmaker Ltd,210,Supplies and Services,Misc Home Furnishing
03/02/2015,Children Adult & Health,Asda Superstore,24,Supplies and Services,Grocery Stores/Supermarkets
03/02/2015,Environment & Community Services,Tp Thornbury,13.82,Supplies and Services,Lumber/Build. Supply Stores
03/02/2015,Children Adult & Health,Tesco Stores 6420,2.75,Project Funding,Grocery Stores/Supermarkets
03/02/2015,Children Adult & Health,John Sheppard Butchers,28.45,School dinners,Freezer/Meat Lockers
03/02/2015,Children Adult & Health,John Sheppard Butchers,132.87,School dinners,Freezer/Meat Lockers
03/02/2015,Children Adult & Health,John Sheppard Butchers,31.61,School dinners,Freezer/Meat Lockers
03/02/2015,Children Adult & Health,John Sheppard Butchers,45.97,School dinners,Freezer/Meat Lockers
03/02/2015,Children Adult & Health,John Sheppard Butchers,207.42,School dinners,Freezer/Meat Lockers
03/02/2015,Children Adult & Health,John Sheppard Butchers,293.37,School dinners,Freezer/Meat Lockers
03/02/2015,Children Adult & Health,John Sheppard Butchers,110.31,School dinners,Freezer/Meat Lockers
03/02/2015,Children Adult & Health,John Sheppard Butchers,65.95,School dinners,Freezer/Meat Lockers
03/02/2015,Children Adult & Health,John Sheppard Butchers,138.06,School dinners,Freezer/Meat Lockers
03/02/2015,Children Adult & Health,John Sheppard Butchers,97.63,School dinners,Freezer/Meat Lockers
03/02/2015,Children Adult & Health,John Sheppard Butchers,183.82,School dinners,Freezer/Meat Lockers
03/02/2015,Children Adult & Health,John Sheppard Butchers,129.39,School dinners,Freezer/Meat Lockers
03/02/2015,Children Adult & Health,John Sheppard Butchers,25.28,School dinners,Freezer/Meat Lockers
03/02/2015,Children Adult & Health,John Sheppard Butchers,127.86,School dinners,Freezer/Meat Lockers
03/02/2015,Children Adult & Health,John Sheppard Butchers,68.02,School dinners,Freezer/Meat Lockers
03/02/2015,Children Adult & Health,John Sheppard Butchers,22.56,School dinners,Freezer/Meat Lockers
03/02/2015,Children Adult & Health,John Sheppard Butchers,229.24,School dinners,Freezer/Meat Lockers
03/02/2015,Children Adult & Health,John Sheppard Butchers,106.65,School dinners,Freezer/Meat Lockers
03/02/2015,Children Adult & Health,John Sheppard Butchers,62.02,School dinners,Freezer/Meat Lockers
03/02/2015,Children Adult & Health,John Sheppard Butchers,125.53,School dinners,Freezer/Meat Lockers
03/02/2015,Children Adult & Health,John Sheppard Butchers,153.56,School dinners,Freezer/Meat Lockers
03/02/2015,Children Adult & Health,John Sheppard Butchers,22.29,School dinners,Freezer/Meat Lockers
03/02/2015,Children Adult & Health,Brake Bros Ltd,104.31,School dinners,Caterers
03/02/2015,Children Adult & Health,Brake Bros Ltd,90.77,School dinners,Caterers
03/02/2015,Children Adult & Health,Brake Bros Ltd,108.51,School dinners,Caterers
03/02/2015,Children Adult & Health,Brake Bros Ltd,469.15,School dinners,Caterers
03/02/2015,Children Adult & Health,Brake Bros Ltd,190.53,School dinners,Caterers
03/02/2015,Children Adult & Health,Brake Bros Ltd,135.92,School dinners,Caterers
03/02/2015,Children Adult & Health,Brake Bros Ltd,66.13,School dinners,Caterers
03/02/2015,Children Adult & Health,Brake Bros Ltd,350.59,School dinners,Caterers
03/02/2015,Children Adult & Health,Brake Bros Ltd,817.05,School dinners,Caterers
03/02/2015,Children Adult & Health,Brake Bros Ltd,85.42,School dinners,Caterers
03/02/2015,Children Adult & Health,Brake Bros Ltd,239.16,School dinners,Caterers
03/02/2015,Children Adult & Health,Brake Bros Ltd,36.82,School dinners,Caterers
03/02/2015,Children Adult & Health,Brake Bros Ltd,203.38,School dinners,Caterers
03/02/2015,Children Adult & Health,Brake Bros Ltd,164.87,School dinners,Caterers
03/02/2015,Children Adult & Health,Brake Bros Ltd,101.99,School dinners,Caterers
03/02/2015,Children Adult & Health,Brake Bros Ltd,48.91,School dinners,Caterers
03/02/2015,Children Adult & Health,Brake Bros Ltd,47.54,School dinners,Caterers
03/02/2015,Children Adult & Health,Brake Bros Ltd,183.16,School dinners,Caterers
03/02/2015,Children Adult & Health,Brake Bros Ltd,22.6,School dinners,Caterers
03/02/2015,Children Adult & Health,Brake Bros Ltd,44.93,School dinners,Caterers
03/02/2015,Children Adult & Health,Brake Bros Ltd,-2.2,School dinners,Caterers
03/02/2015,Children Adult & Health,Brake Bros Ltd,126.1,School dinners,Caterers
03/02/2015,Children Adult & Health,Brake Bros Ltd,-1.87,School dinners,Caterers
03/02/2015,Children Adult & Health,Brake Bros Ltd,121.87,School dinners,Caterers
03/02/2015,Children Adult & Health,Brake Bros Ltd,74.17,School dinners,Caterers
03/02/2015,Children Adult & Health,Brake Bros Ltd,832.92,School dinners,Caterers
03/02/2015,Children Adult & Health,Brake Bros Ltd,74.86,School dinners,Caterers
03/02/2015,Children Adult & Health,Brake Bros Ltd,95.45,School dinners,Caterers
03/02/2015,Children Adult & Health,Brake Bros Ltd,-25.91,School dinners,Caterers
03/02/2015,Children Adult & Health,Brake Bros Ltd,92.49,School dinners,Caterers
03/02/2015,Children Adult & Health,Brake Bros Ltd,14.4,School dinners,Caterers
03/02/2015,Children Adult & Health,Brake Bros Ltd,149.99,School dinners,Caterers
03/02/2015,Children Adult & Health,Brake Bros Ltd,388.91,School dinners,Caterers
03/02/2015,Children Adult & Health,Brake Bros Ltd,63.19,School dinners,Caterers
03/02/2015,Children Adult & Health,Brake Bros Ltd,28.58,School dinners,Caterers
03/02/2015,Children Adult & Health,Brake Bros Ltd,42.2,School dinners,Caterers
03/02/2015,Children Adult & Health,Brake Bros Ltd,43.93,School dinners,Caterers
03/02/2015,Children Adult & Health,Brake Bros Ltd,226.02,School dinners,Caterers
03/02/2015,Children Adult & Health,Brake Bros Ltd,57.93,School dinners,Caterers
03/02/2015,Children Adult & Health,Brake Bros Ltd,61.94,School dinners,Caterers
03/02/2015,Children Adult & Health,Brake Bros Ltd,111.82,School dinners,Caterers
03/02/2015,Children Adult & Health,Brake Bros Ltd,106.98,School dinners,Caterers
03/02/2015,Children Adult & Health,Brake Bros Ltd,131.18,School dinners,Caterers
03/02/2015,Children Adult & Health,Brake Bros Ltd,77.9,School dinners,Caterers
03/02/2015,Children Adult & Health,Brake Bros Ltd,-2.2,School dinners,Caterers
03/02/2015,Children Adult & Health,Brake Bros Ltd,132.65,School dinners,Caterers
03/02/2015,Children Adult & Health,Brake Bros Ltd,111.97,School dinners,Caterers
03/02/2015,Children Adult & Health,Brake Bros Ltd,95.4,School dinners,Caterers
03/02/2015,Children Adult & Health,Brake Bros Ltd,27.45,School dinners,Caterers
03/02/2015,Children Adult & Health,Brake Bros Ltd,296.12,School dinners,Caterers
03/02/2015,Children Adult & Health,Brake Bros Ltd,95.09,School dinners,Caterers
03/02/2015,Children Adult & Health,Brake Bros Ltd,-10.14,School dinners,Caterers
03/02/2015,Children Adult & Health,Brake Bros Ltd,38.11,School dinners,Caterers
03/02/2015,Children Adult & Health,Brake Bros Ltd,75.86,School dinners,Caterers
03/02/2015,Children Adult & Health,Brake Bros Ltd,266.11,School dinners,Caterers
03/02/2015,Children Adult & Health,Brake Bros Ltd,115.81,School dinners,Caterers
03/02/2015,Children Adult & Health,Brake Bros Ltd,110.82,School dinners,Caterers
03/02/2015,Children Adult & Health,Brake Bros Ltd,88.14,School dinners,Caterers
03/02/2015,Children Adult & Health,Brake Bros Ltd,35.42,School dinners,Caterers
03/02/2015,Children Adult & Health,Brake Bros Ltd,142.2,School dinners,Caterers
03/02/2015,Children Adult & Health,Brake Bros Ltd,95.3,School dinners,Caterers
04/02/2015,Children Adult & Health,Capitalhairandbeau,37.14,Credit Card Charges,Barber/Beauty Shops
04/02/2015,Children Adult & Health,Capitalhairandbeau,136.49,Credit Card Charges,Barber/Beauty Shops
04/02/2015,Children Adult & Health,Premier Inn44521375,225,Supplies and Services,Premier Travel Inns
04/02/2015,Children Adult & Health,Tvlicensing.Co.Uk,145.5,Supplies and Services,Mgmt/Consult/Public Rel Ser
04/02/2015,Children Adult & Health,Brake Bros Ltd,346.61,School dinners,Caterers
04/02/2015,Children Adult & Health,Brake Bros Ltd,216.61,School dinners,Caterers
04/02/2015,Children Adult & Health,Brake Bros Ltd,74.32,School dinners,Caterers
04/02/2015,Children Adult & Health,Brake Bros Ltd,-6.69,School dinners,Caterers
04/02/2015,Children Adult & Health,Brake Bros Ltd,106.51,School dinners,Caterers
04/02/2015,Children Adult & Health,Brake Bros Ltd,57.99,School dinners,Caterers
04/02/2015,Children Adult & Health,Brake Bros Ltd,233.95,School dinners,Caterers
04/02/2015,Children Adult & Health,Brake Bros Ltd,316.05,School dinners,Caterers
04/02/2015,Children Adult & Health,Brake Bros Ltd,156.41,School dinners,Caterers
04/02/2015,Children Adult & Health,Brake Bros Ltd,82.61,School dinners,Caterers
04/02/2015,Children Adult & Health,Brake Bros Ltd,160.4,School dinners,Caterers
04/02/2015,Children Adult & Health,Brake Bros Ltd,65.21,School dinners,Caterers
04/02/2015,Children Adult & Health,Brake Bros Ltd,210.67,School dinners,Caterers
04/02/2015,Children Adult & Health,Brake Bros Ltd,171.49,School dinners,Caterers
04/02/2015,Children Adult & Health,Brake Bros Ltd,220.12,School dinners,Caterers
04/02/2015,Children Adult & Health,Brake Bros Ltd,111.08,School dinners,Caterers
04/02/2015,Children Adult & Health,Brake Bros Ltd,164.46,School dinners,Caterers
04/02/2015,Children Adult & Health,Brake Bros Ltd,74.23,School dinners,Caterers
04/02/2015,Children Adult & Health,Brake Bros Ltd,148.36,School dinners,Caterers
04/02/2015,Children Adult & Health,Brake Bros Ltd,185.11,School dinners,Caterers
04/02/2015,Children Adult & Health,Brake Bros Ltd,173.65,School dinners,Caterers
04/02/2015,Children Adult & Health,Brake Bros Ltd,12.94,School dinners,Caterers
04/02/2015,Children Adult & Health,Brake Bros Ltd,37.06,School dinners,Caterers
04/02/2015,Children Adult & Health,Brake Bros Ltd,111.75,School dinners,Caterers
04/02/2015,Children Adult & Health,Brake Bros Ltd,244.21,School dinners,Caterers
04/02/2015,Children Adult & Health,Brake Bros Ltd,182.09,School dinners,Caterers
04/02/2015,Children Adult & Health,Brake Bros Ltd,129.47,School dinners,Caterers
04/02/2015,Children Adult & Health,Brake Bros Ltd,153.27,School dinners,Caterers
04/02/2015,Children Adult & Health,Brake Bros Ltd,115.67,School dinners,Caterers
04/02/2015,Children Adult & Health,Brake Bros Ltd,9.76,School dinners,Caterers
04/02/2015,Children Adult & Health,Brake Bros Ltd,245.04,School dinners,Caterers
04/02/2015,Children Adult & Health,Brake Bros Ltd,52.35,School dinners,Caterers
04/02/2015,Children Adult & Health,Brake Bros Ltd,132.77,School dinners,Caterers
04/02/2015,Children Adult & Health,Brake Bros Ltd,154.49,School dinners,Caterers
04/02/2015,Children Adult & Health,Brake Bros Ltd,256.88,School dinners,Caterers
04/02/2015,Children Adult & Health,Brake Bros Ltd,54.61,School dinners,Caterers
04/02/2015,Children Adult & Health,Brake Bros Ltd,78.07,School dinners,Caterers
04/02/2015,Children Adult & Health,Brake Bros Ltd,253.1,School dinners,Caterers
04/02/2015,Children Adult & Health,Brake Bros Ltd,-10.68,School dinners,Caterers
04/02/2015,Children Adult & Health,Brake Bros Ltd,248.46,School dinners,Caterers
04/02/2015,Children Adult & Health,Brake Bros Ltd,13.68,School dinners,Caterers
04/02/2015,Children Adult & Health,Brake Bros Ltd,85.2,School dinners,Caterers
04/02/2015,Children Adult & Health,Brake Bros Ltd,236.33,School dinners,Caterers
04/02/2015,Children Adult & Health,Brake Bros Ltd,2.76,School dinners,Caterers
04/02/2015,Children Adult & Health,Brake Bros Ltd,96.65,School dinners,Caterers
04/02/2015,Children Adult & Health,Brake Bros Ltd,91.82,School dinners,Caterers
04/02/2015,Children Adult & Health,Brake Bros Ltd,74.28,School dinners,Caterers
04/02/2015,Children Adult & Health,Brake Bros Ltd,39.12,School dinners,Caterers
04/02/2015,Children Adult & Health,Brake Bros Ltd,10.88,School dinners,Caterers
04/02/2015,Children Adult & Health,Brake Bros Ltd,176.92,School dinners,Caterers
04/02/2015,Children Adult & Health,Brake Bros Ltd,412.54,School dinners,Caterers
04/02/2015,Children Adult & Health,Brake Bros Ltd,86.66,School dinners,Caterers
04/02/2015,Children Adult & Health,Brake Bros Ltd,-5.34,School dinners,Caterers
04/02/2015,Children Adult & Health,Brake Bros Ltd,122.99,School dinners,Caterers
04/02/2015,Children Adult & Health,Brake Bros Ltd,131.18,School dinners,Caterers
04/02/2015,Children Adult & Health,Brake Bros Ltd,369.62,School dinners,Caterers
04/02/2015,Children Adult & Health,Brake Bros Ltd,148.25,School dinners,Caterers
04/02/2015,Children Adult & Health,Brake Bros Ltd,-10.68,School dinners,Caterers
04/02/2015,Children Adult & Health,Brake Bros Ltd,204.98,School dinners,Caterers
04/02/2015,Children Adult & Health,Brake Bros Ltd,93.13,School dinners,Caterers
04/02/2015,Children Adult & Health,Brake Bros Ltd,152.29,School dinners,Caterers
04/02/2015,Children Adult & Health,Brake Bros Ltd,298.14,School dinners,Caterers
04/02/2015,Children Adult & Health,Brake Bros Ltd,69.5,School dinners,Caterers
04/02/2015,Children Adult & Health,Brake Bros Ltd,202.22,School dinners,Caterers
04/02/2015,Children Adult & Health,Brake Bros Ltd,141.95,School dinners,Caterers
04/02/2015,Children Adult & Health,Brake Bros Ltd,172.19,School dinners,Caterers
04/02/2015,Children Adult & Health,Brake Bros Ltd,277.81,School dinners,Caterers
04/02/2015,Children Adult & Health,Brake Bros Ltd,16.14,School dinners,Caterers
04/02/2015,Children Adult & Health,Brake Bros Ltd,-6.26,School dinners,Caterers
04/02/2015,Children Adult & Health,Brake Bros Ltd,62.76,School dinners,Caterers
04/02/2015,Children Adult & Health,Brake Bros Ltd,103.07,School dinners,Caterers
04/02/2015,Children Adult & Health,Brake Bros Ltd,236.43,School dinners,Caterers
04/02/2015,Children Adult & Health,Brake Bros Ltd,65.8,School dinners,Caterers
04/02/2015,Children Adult & Health,Brake Bros Ltd,123.45,School dinners,Caterers
04/02/2015,Children Adult & Health,Brake Bros Ltd,145.02,School dinners,Caterers
04/02/2015,Children Adult & Health,"Amazon Svcs Europe,sar",61.96,Supplies and Services,Book Stores
04/02/2015,Children Adult & Health,Brake Bros Ltd,88.83,School dinners,Caterers
04/02/2015,Children Adult & Health,Brake Bros Ltd,132.77,School dinners,Caterers
04/02/2015,Children Adult & Health,Brake Bros Ltd,333.79,School dinners,Caterers
04/02/2015,Children Adult & Health,Brake Bros Ltd,150.26,School dinners,Caterers
04/02/2015,Children Adult & Health,Brake Bros Ltd,185.43,School dinners,Caterers
04/02/2015,Children Adult & Health,Brake Bros Ltd,187.1,School dinners,Caterers
04/02/2015,Children Adult & Health,Brake Bros Ltd,50.84,School dinners,Caterers
04/02/2015,Children Adult & Health,Brake Bros Ltd,-5.34,School dinners,Caterers
04/02/2015,Children Adult & Health,Brake Bros Ltd,-5.04,School dinners,Caterers
04/02/2015,Children Adult & Health,John Sheppard Butchers,87.53,School dinners,Freezer/Meat Lockers
04/02/2015,Children Adult & Health,John Sheppard Butchers,24.31,School dinners,Freezer/Meat Lockers
04/02/2015,Children Adult & Health,John Sheppard Butchers,29.26,School dinners,Freezer/Meat Lockers
04/02/2015,Children Adult & Health,Cossey Produce Ltd,38.07,School dinners,Misc Food Stores - Default
04/02/2015,Children Adult & Health,Cossey Produce Ltd,31.52,School dinners,Misc Food Stores - Default
04/02/2015,Children Adult & Health,Cossey Produce Ltd,35,School dinners,Misc Food Stores - Default
04/02/2015,Children Adult & Health,Cossey Produce Ltd,30.1,School dinners,Misc Food Stores - Default
04/02/2015,Children Adult & Health,Cossey Produce Ltd,-19.6,School dinners,Misc Food Stores - Default
04/02/2015,Children Adult & Health,Cossey Produce Ltd,268.46,School dinners,Misc Food Stores - Default
04/02/2015,Children Adult & Health,Cossey Produce Ltd,23.16,School dinners,Misc Food Stores - Default
04/02/2015,Children Adult & Health,Cossey Produce Ltd,16.71,School dinners,Misc Food Stores - Default
04/02/2015,Children Adult & Health,Cossey Produce Ltd,34.02,School dinners,Misc Food Stores - Default
04/02/2015,Children Adult & Health,Cossey Produce Ltd,20.86,School dinners,Misc Food Stores - Default
04/02/2015,Children Adult & Health,Cossey Produce Ltd,47.73,School dinners,Misc Food Stores - Default
04/02/2015,Children Adult & Health,Cossey Produce Ltd,7.6,School dinners,Misc Food Stores - Default
04/02/2015,Children Adult & Health,Cossey Produce Ltd,1.21,School dinners,Misc Food Stores - Default
04/02/2015,Children Adult & Health,Cossey Produce Ltd,26.22,School dinners,Misc Food Stores - Default
04/02/2015,Children Adult & Health,Cossey Produce Ltd,37.9,School dinners,Misc Food Stores - Default
04/02/2015,Children Adult & Health,Cossey Produce Ltd,16.37,School dinners,Misc Food Stores - Default
04/02/2015,Children Adult & Health,Cossey Produce Ltd,9.47,School dinners,Misc Food Stores - Default
04/02/2015,Children Adult & Health,Cossey Produce Ltd,14.03,School dinners,Misc Food Stores - Default
04/02/2015,Children Adult & Health,Cossey Produce Ltd,25.92,School dinners,Misc Food Stores - Default
04/02/2015,Children Adult & Health,Cossey Produce Ltd,28.4,School dinners,Misc Food Stores - Default
04/02/2015,Children Adult & Health,Cossey Produce Ltd,36.77,School dinners,Misc Food Stores - Default
04/02/2015,Children Adult & Health,Cossey Produce Ltd,51.88,School dinners,Misc Food Stores - Default
04/02/2015,Children Adult & Health,Cossey Produce Ltd,54.44,School dinners,Misc Food Stores - Default
04/02/2015,Children Adult & Health,Cossey Produce Ltd,28.74,School dinners,Misc Food Stores - Default
04/02/2015,Children Adult & Health,Cossey Produce Ltd,70.92,School dinners,Misc Food Stores - Default
04/02/2015,Children Adult & Health,Cossey Produce Ltd,45.33,School dinners,Misc Food Stores - Default
04/02/2015,Children Adult & Health,Cossey Produce Ltd,91.36,School dinners,Misc Food Stores - Default
04/02/2015,Children Adult & Health,Cossey Produce Ltd,41.16,School dinners,Misc Food Stores - Default
04/02/2015,Children Adult & Health,Cossey Produce Ltd,53.49,School dinners,Misc Food Stores - Default
04/02/2015,Children Adult & Health,Cossey Produce Ltd,69.94,School dinners,Misc Food Stores - Default
04/02/2015,Children Adult & Health,Cossey Produce Ltd,44.3,School dinners,Misc Food Stores - Default
04/02/2015,Children Adult & Health,Cossey Produce Ltd,18.98,School dinners,Misc Food Stores - Default
04/02/2015,Children Adult & Health,Cossey Produce Ltd,98.75,School dinners,Misc Food Stores - Default
04/02/2015,Children Adult & Health,Cossey Produce Ltd,31.33,School dinners,Misc Food Stores - Default
04/02/2015,Children Adult & Health,Cossey Produce Ltd,18.97,School dinners,Misc Food Stores - Default
04/02/2015,Children Adult & Health,Cossey Produce Ltd,53.97,School dinners,Misc Food Stores - Default
04/02/2015,Children Adult & Health,Cossey Produce Ltd,31.41,School dinners,Misc Food Stores - Default
04/02/2015,Children Adult & Health,Cossey Produce Ltd,28.11,School dinners,Misc Food Stores - Default
04/02/2015,Children Adult & Health,Cossey Produce Ltd,33.92,School dinners,Misc Food Stores - Default
04/02/2015,Children Adult & Health,Cossey Produce Ltd,27.56,School dinners,Misc Food Stores - Default
04/02/2015,Children Adult & Health,Cossey Produce Ltd,24.91,School dinners,Misc Food Stores - Default
04/02/2015,Children Adult & Health,Cossey Produce Ltd,16.32,School dinners,Misc Food Stores - Default
04/02/2015,Children Adult & Health,John Sheppard Butchers,58.52,School dinners,Freezer/Meat Lockers
04/02/2015,Children Adult & Health,John Sheppard Butchers,146.39,School dinners,Freezer/Meat Lockers
04/02/2015,Children Adult & Health,John Sheppard Butchers,302.4,School dinners,Freezer/Meat Lockers
04/02/2015,Children Adult & Health,John Sheppard Butchers,61.37,School dinners,Freezer/Meat Lockers
04/02/2015,Children Adult & Health,John Sheppard Butchers,50.27,School dinners,Freezer/Meat Lockers
04/02/2015,Children Adult & Health,John Sheppard Butchers,37.8,School dinners,Freezer/Meat Lockers
04/02/2015,Children Adult & Health,John Sheppard Butchers,45.24,School dinners,Freezer/Meat Lockers
04/02/2015,Children Adult & Health,John Sheppard Butchers,52.76,School dinners,Freezer/Meat Lockers
04/02/2015,Children Adult & Health,John Sheppard Butchers,100.28,School dinners,Freezer/Meat Lockers
04/02/2015,Children Adult & Health,John Sheppard Butchers,65.4,School dinners,Freezer/Meat Lockers
04/02/2015,Children Adult & Health,John Sheppard Butchers,52.63,School dinners,Freezer/Meat Lockers
04/02/2015,Children Adult & Health,John Sheppard Butchers,24.2,School dinners,Freezer/Meat Lockers
04/02/2015,Children Adult & Health,Multi Save Carpets,200,Supplies and Services,Floor Covering Stores
04/02/2015,Chief Executive & Corporate Resources,Linkedin-240,29.5,Supplies and Services,Continuity/Subscription Mercht
04/02/2015,Environment & Community Services,B & Q,14.76,Supplies and Services,Lumber/Build. Supply Stores
04/02/2015,Children Adult & Health,Sainsburys S/mkts,18.19,Supplies and Services,Grocery Stores/Supermarkets
04/02/2015,Children Adult & Health,Multi Save Carpets,500,Supplies and Services,Floor Covering Stores
04/02/2015,Chief Executive & Corporate Resources,999inks.Com,76.45,Credit Card Charges,Quick Copy/Repro Services
04/02/2015,Environment & Community Services,Dvsa,2000,Credit Card Charges,Govt Serv - Default
04/02/2015,Children Adult & Health,Cossey Produce Ltd,17.14,School dinners,Misc Food Stores - Default
04/02/2015,Children Adult & Health,Cossey Produce Ltd,16.71,School dinners,Misc Food Stores - Default
04/02/2015,Children Adult & Health,Cossey Produce Ltd,28.24,School dinners,Misc Food Stores - Default
04/02/2015,Children Adult & Health,Cossey Produce Ltd,85.94,School dinners,Misc Food Stores - Default
04/02/2015,Children Adult & Health,Cossey Produce Ltd,7.2,School dinners,Misc Food Stores - Default
04/02/2015,Children Adult & Health,Cossey Produce Ltd,49.23,School dinners,Misc Food Stores - Default
04/02/2015,Children Adult & Health,Cossey Produce Ltd,3.69,School dinners,Misc Food Stores - Default
04/02/2015,Children Adult & Health,Cossey Produce Ltd,38.31,School dinners,Misc Food Stores - Default
04/02/2015,Children Adult & Health,Cossey Produce Ltd,16,School dinners,Misc Food Stores - Default
04/02/2015,Children Adult & Health,Cossey Produce Ltd,38.8,School dinners,Misc Food Stores - Default
04/02/2015,Children Adult & Health,Cossey Produce Ltd,30.45,School dinners,Misc Food Stores - Default
04/02/2015,Children Adult & Health,Cossey Produce Ltd,65.72,School dinners,Misc Food Stores - Default
04/02/2015,Children Adult & Health,Cossey Produce Ltd,23.89,School dinners,Misc Food Stores - Default
04/02/2015,Children Adult & Health,Cossey Produce Ltd,53.09,School dinners,Misc Food Stores - Default
04/02/2015,Children Adult & Health,Cossey Produce Ltd,0.98,School dinners,Misc Food Stores - Default
04/02/2015,Children Adult & Health,Cossey Produce Ltd,32.46,School dinners,Misc Food Stores - Default
04/02/2015,Children Adult & Health,Cossey Produce Ltd,43.45,School dinners,Misc Food Stores - Default
04/02/2015,Children Adult & Health,Cossey Produce Ltd,67.73,School dinners,Misc Food Stores - Default
04/02/2015,Children Adult & Health,Cossey Produce Ltd,14.94,School dinners,Misc Food Stores - Default
04/02/2015,Children Adult & Health,Cossey Produce Ltd,55.01,School dinners,Misc Food Stores - Default
04/02/2015,Children Adult & Health,Cossey Produce Ltd,47.89,School dinners,Misc Food Stores - Default
04/02/2015,Children Adult & Health,Cossey Produce Ltd,38.47,School dinners,Misc Food Stores - Default
04/02/2015,Children Adult & Health,Cossey Produce Ltd,31.2,School dinners,Misc Food Stores - Default
04/02/2015,Children Adult & Health,Cossey Produce Ltd,7.61,School dinners,Misc Food Stores - Default
04/02/2015,Children Adult & Health,Cossey Produce Ltd,175.55,School dinners,Misc Food Stores - Default
04/02/2015,Children Adult & Health,Cossey Produce Ltd,48.16,School dinners,Misc Food Stores - Default
04/02/2015,Children Adult & Health,Cossey Produce Ltd,51.86,School dinners,Misc Food Stores - Default
04/02/2015,Children Adult & Health,Cossey Produce Ltd,21.68,School dinners,Misc Food Stores - Default
04/02/2015,Children Adult & Health,Cossey Produce Ltd,10.84,School dinners,Misc Food Stores - Default
04/02/2015,Children Adult & Health,Cossey Produce Ltd,45.87,School dinners,Misc Food Stores - Default
04/02/2015,Children Adult & Health,Cossey Produce Ltd,48.79,School dinners,Misc Food Stores - Default
04/02/2015,Children Adult & Health,Cossey Produce Ltd,398.28,School dinners,Misc Food Stores - Default
04/02/2015,Children Adult & Health,Cossey Produce Ltd,36.62,School dinners,Misc Food Stores - Default
04/02/2015,Children Adult & Health,Cossey Produce Ltd,54.92,School dinners,Misc Food Stores - Default
04/02/2015,Children Adult & Health,Cossey Produce Ltd,27.64,School dinners,Misc Food Stores - Default
04/02/2015,Children Adult & Health,Cossey Produce Ltd,19.22,School dinners,Misc Food Stores - Default
04/02/2015,Children Adult & Health,Cossey Produce Ltd,7.5,School dinners,Misc Food Stores - Default
04/02/2015,Children Adult & Health,Cossey Produce Ltd,6.9,School dinners,Misc Food Stores - Default
04/02/2015,Children Adult & Health,Cossey Produce Ltd,10.13,School dinners,Misc Food Stores - Default
04/02/2015,Children Adult & Health,Cossey Produce Ltd,31.95,School dinners,Misc Food Stores - Default
04/02/2015,Children Adult & Health,Cossey Produce Ltd,35.13,School dinners,Misc Food Stores - Default
04/02/2015,Children Adult & Health,Cossey Produce Ltd,42.03,School dinners,Misc Food Stores - Default
04/02/2015,Children Adult & Health,Cossey Produce Ltd,8.1,School dinners,Misc Food Stores - Default
04/02/2015,Children Adult & Health,Cossey Produce Ltd,34.79,School dinners,Misc Food Stores - Default
04/02/2015,Children Adult & Health,Cossey Produce Ltd,34.81,School dinners,Misc Food Stores - Default
04/02/2015,Children Adult & Health,Cossey Produce Ltd,-5,School dinners,Misc Food Stores - Default
04/02/2015,Children Adult & Health,Cossey Produce Ltd,-5,School dinners,Misc Food Stores - Default
04/02/2015,Children Adult & Health,Cossey Produce Ltd,51.38,School dinners,Misc Food Stores - Default
04/02/2015,Children Adult & Health,Cossey Produce Ltd,33.18,School dinners,Misc Food Stores - Default
04/02/2015,Children Adult & Health,Cossey Produce Ltd,13.66,School dinners,Misc Food Stores - Default
04/02/2015,Children Adult & Health,Cossey Produce Ltd,99.99,School dinners,Misc Food Stores - Default
04/02/2015,Children Adult & Health,Cossey Produce Ltd,43.32,School dinners,Misc Food Stores - Default
04/02/2015,Children Adult & Health,Cossey Produce Ltd,49.49,School dinners,Misc Food Stores - Default
04/02/2015,Children Adult & Health,Cossey Produce Ltd,31.02,School dinners,Misc Food Stores - Default
04/02/2015,Children Adult & Health,Cossey Produce Ltd,59.04,School dinners,Misc Food Stores - Default
04/02/2015,Children Adult & Health,Cossey Produce Ltd,23.9,School dinners,Misc Food Stores - Default
04/02/2015,Children Adult & Health,Cossey Produce Ltd,156.91,School dinners,Misc Food Stores - Default
04/02/2015,Children Adult & Health,Cossey Produce Ltd,14.87,School dinners,Misc Food Stores - Default
04/02/2015,Children Adult & Health,Cossey Produce Ltd,40.09,School dinners,Misc Food Stores - Default
04/02/2015,Children Adult & Health,Cossey Produce Ltd,106.46,School dinners,Misc Food Stores - Default
04/02/2015,Children Adult & Health,Cossey Produce Ltd,8,School dinners,Misc Food Stores - Default
04/02/2015,Children Adult & Health,Cossey Produce Ltd,5.7,School dinners,Misc Food Stores - Default
04/02/2015,Children Adult & Health,Cossey Produce Ltd,36.4,School dinners,Misc Food Stores - Default
04/02/2015,Children Adult & Health,Cossey Produce Ltd,63.05,School dinners,Misc Food Stores - Default
04/02/2015,Children Adult & Health,Cossey Produce Ltd,23.89,School dinners,Misc Food Stores - Default
04/02/2015,Children Adult & Health,Cossey Produce Ltd,46.06,School dinners,Misc Food Stores - Default
04/02/2015,Children Adult & Health,Cossey Produce Ltd,32.02,School dinners,Misc Food Stores - Default
04/02/2015,Children Adult & Health,Cossey Produce Ltd,23.74,School dinners,Misc Food Stores - Default
04/02/2015,Children Adult & Health,Cossey Produce Ltd,161.12,School dinners,Misc Food Stores - Default
04/02/2015,Children Adult & Health,Cossey Produce Ltd,20.28,School dinners,Misc Food Stores - Default
04/02/2015,Children Adult & Health,Cossey Produce Ltd,32,School dinners,Misc Food Stores - Default
04/02/2015,Children Adult & Health,Cossey Produce Ltd,10.02,School dinners,Misc Food Stores - Default
04/02/2015,Children Adult & Health,Cossey Produce Ltd,32,School dinners,Misc Food Stores - Default
04/02/2015,Children Adult & Health,Cossey Produce Ltd,26.73,School dinners,Misc Food Stores - Default
04/02/2015,Environment & Community Services,Paypal,25,Credit Card Charges,Civic/Social/Fraternal Assc
04/02/2015,Chief Executive & Corporate Resources,Supplies Team,27.41,Stationery,Stationery Stores
04/02/2015,Chief Executive & Corporate Resources,Supplies Team,34.29,Stationery,Stationery Stores
04/02/2015,Chief Executive & Corporate Resources,Supplies Team,10.5,Stationery,Stationery Stores
04/02/2015,Chief Executive & Corporate Resources,Supplies Team,110,Stationery,Stationery Stores
04/02/2015,Chief Executive & Corporate Resources,Supplies Team,220,Stationery,Stationery Stores
04/02/2015,Chief Executive & Corporate Resources,Supplies Team,73.9,Stationery,Stationery Stores
04/02/2015,Chief Executive & Corporate Resources,Supplies Team,21.82,Stationery,Stationery Stores
04/02/2015,Chief Executive & Corporate Resources,Supplies Team,3.5,Stationery,Stationery Stores
04/02/2015,Chief Executive & Corporate Resources,Supplies Team,96,Stationery,Stationery Stores
04/02/2015,Chief Executive & Corporate Resources,Supplies Team,8.85,Stationery,Stationery Stores
04/02/2015,Chief Executive & Corporate Resources,Supplies Team,104.11,Stationery,Stationery Stores
04/02/2015,Chief Executive & Corporate Resources,Supplies Team,-10.73,Stationery,Stationery Stores
04/02/2015,Chief Executive & Corporate Resources,Supplies Team,80.45,Stationery,Stationery Stores
04/02/2015,Children Adult & Health,Rajani Superstores,141.55,Credit Card Charges,Variety Stores
04/02/2015,Children Adult & Health,Ikea Sacat,90,Credit Card Charges,Misc Home Furnishing
04/02/2015,Children Adult & Health,Www.Tilgear.Info,159.42,Credit Card Charges,Hardware Equipment/Supplies
04/02/2015,Children Adult & Health,Medisupplies Ltd,29.28,Credit Card Charges,Misc Speciality Retail
04/02/2015,Children Adult & Health,Bonacia,33.98,Credit Card Charges,Book Stores
04/02/2015,Children Adult & Health,Tesco Stores 6420,90.48,Credit Card Charges,Grocery Stores/Supermarkets
04/02/2015,Children Adult & Health,Currys Online,149.99,Supplies and Services,Electronics Sales
04/02/2015,Children Adult & Health,Sainsburys Smkt,26.34,Supplies and Services,Grocery Stores/Supermarkets
04/02/2015,Environment & Community Services,Wfm,15,Supplies and Services,Industrial Supplies - Def
04/02/2015,Children Adult & Health,McAfee,69.99,Credit Card Charges,Continuity/Subscription Mercht
04/02/2015,Environment & Community Services,Amazon UK Retail,10,Credit Card Charges,Other Direct Marketers
04/02/2015,Children Adult & Health,Sainsburys S/mkts,6.5,Supplies and Services,Grocery Stores/Supermarkets
04/02/2015,Environment & Community Services,B & Q,16.67,Street Care - Buildings Maintenance,Lumber/Build. Supply Stores
04/02/2015,Children Adult & Health,Screwfix Direct,281.3,Credit Card Charges,Lumber/Build. Supply Stores
05/02/2015,Children Adult & Health,Premier Inn44521095,391,Supplies and Services,Premier Travel Inns
05/02/2015,Children Adult & Health,Premier Inn44521095,391,Supplies and Services,Premier Travel Inns
05/02/2015,Children Adult & Health,Premier Inn44521095,195.5,Supplies and Services,Premier Travel Inns
05/02/2015,Environment & Community Services,Tp Yate,236.1,Street Care - Buildings Maintenance,Lumber/Build. Supply Stores
05/02/2015,Children Adult & Health,43035040 Costa Coffee,4.4,Supplies and Services,Eating Places/Restaurants
05/02/2015,Environment & Community Services,Ringgo,9,Credit Card Charges,"Parking Lots, Meters, Garages"
05/02/2015,Environment & Community Services,B & Q,21.92,Supplies and Services,Lumber/Build. Supply Stores
05/02/2015,Children Adult & Health,Fgw Websales,39.5,Supplies and Services,Passenger Railways
05/02/2015,Children Adult & Health,Trainline.Com,109.65,Supplies and Services,Passenger Railways
05/02/2015,Chief Executive & Corporate Resources,Trainline.Com,295.8,Membership Fees,Passenger Railways
05/02/2015,Chief Executive & Corporate Resources,Hmcourts-Service.G,490,Supplies and Services,Fines
05/02/2015,Children Adults & Health,"Amazon Svcs Europe,sar",11.88,Credit Card Charges,Book Stores
05/02/2015,Children Adult & Health,"Amazon Svcs Europe,sar",160.97,Supplies and Services,Book Stores
05/02/2015,Children Adult & Health,Ikea Online,108,Supplies and Services,Misc Home Furnishing
05/02/2015,Children Adult & Health,Www.Fitness-Superstore.C,299,Credit Card Charges,Sporting Goods Stores
05/02/2015,Children Adult & Health,Sainsburys Smkt,142.5,Credit Card Charges,Grocery Stores/Supermarkets
05/02/2015,Children Adult & Health,Screwfix Direct,42.98,Credit Card Charges,Lumber/Build. Supply Stores
05/02/2015,Chief Executive & Corporate Resources,Kinnarps (UK) Ltd,294,Stationery,Commercial Furniture
05/02/2015,Environment & Community Services,Www.Westminster-Briefi,420,Credit Card Charges,Business/Secretarial School
05/02/2015,Environment & Community Services,Fgw Websales,85,Credit Card Charges,Passenger Railways
05/02/2015,Environment & Community Services,Fgw Websales,142,Credit Card Charges,Passenger Railways
05/02/2015,Chief Executive & Corporate Resources,Amazon UK Retail,23.5,Credit Card Charges,Other Direct Marketers
05/02/2015,Environment & Community Services,B & Q,46.77,Supplies and Services,Lumber/Build. Supply Stores
05/02/2015,Children Adult & Health,Booker Limited Avonmouth,239.07,Credit Card Charges,Caterers
05/02/2015,Children Adult & Health,Indesit Factory Grade,295,Credit Card Charges,Misc Speciality Retail
05/02/2015,Children Adult & Health,Cossey Produce Ltd,47.75,School dinners,Misc Food Stores - Default
05/02/2015,Children Adult & Health,Cossey Produce Ltd,14.89,School dinners,Misc Food Stores - Default
05/02/2015,Children Adult & Health,Cossey Produce Ltd,1.42,School dinners,Misc Food Stores - Default
05/02/2015,Children Adult & Health,Cossey Produce Ltd,20,School dinners,Misc Food Stores - Default
05/02/2015,Children Adult & Health,Cossey Produce Ltd,25,School dinners,Misc Food Stores - Default
05/02/2015,Children Adult & Health,Cossey Produce Ltd,5,School dinners,Misc Food Stores - Default
05/02/2015,Children Adult & Health,Cossey Produce Ltd,16,School dinners,Misc Food Stores - Default
05/02/2015,Children Adult & Health,Cossey Produce Ltd,1.4,School dinners,Misc Food Stores - Default
05/02/2015,Children Adult & Health,Cossey Produce Ltd,23.91,School dinners,Misc Food Stores - Default
05/02/2015,Children Adult & Health,Cossey Produce Ltd,3.3,School dinners,Misc Food Stores - Default
05/02/2015,Children Adult & Health,Cossey Produce Ltd,28.5,School dinners,Misc Food Stores - Default
05/02/2015,Children Adult & Health,Cossey Produce Ltd,23.3,School dinners,Misc Food Stores - Default
05/02/2015,Children Adult & Health,Cossey Produce Ltd,48.22,School dinners,Misc Food Stores - Default
05/02/2015,Children Adult & Health,Cossey Produce Ltd,14.86,School dinners,Misc Food Stores - Default
05/02/2015,Children Adult & Health,Cossey Produce Ltd,38.52,School dinners,Misc Food Stores - Default
05/02/2015,Children Adult & Health,Cossey Produce Ltd,39.27,School dinners,Misc Food Stores - Default
05/02/2015,Children Adult & Health,Cossey Produce Ltd,20.47,School dinners,Misc Food Stores - Default
05/02/2015,Children Adult & Health,Cossey Produce Ltd,0.96,School dinners,Misc Food Stores - Default
05/02/2015,Children Adult & Health,Cossey Produce Ltd,27.35,School dinners,Misc Food Stores - Default
05/02/2015,Children Adult & Health,Cossey Produce Ltd,13.3,School dinners,Misc Food Stores - Default
05/02/2015,Children Adult & Health,Cossey Produce Ltd,15.62,School dinners,Misc Food Stores - Default
05/02/2015,Children Adult & Health,Cossey Produce Ltd,16,School dinners,Misc Food Stores - Default
05/02/2015,Children Adult & Health,Cossey Produce Ltd,25,School dinners,Misc Food Stores - Default
05/02/2015,Children Adult & Health,Cossey Produce Ltd,40,School dinners,Misc Food Stores - Default
05/02/2015,Children Adult & Health,Cossey Produce Ltd,7.5,School dinners,Misc Food Stores - Default
05/02/2015,Children Adult & Health,Cossey Produce Ltd,14.4,School dinners,Misc Food Stores - Default
05/02/2015,Children Adult & Health,Cossey Produce Ltd,4.89,School dinners,Misc Food Stores - Default
05/02/2015,Children Adult & Health,Cossey Produce Ltd,20,School dinners,Misc Food Stores - Default
05/02/2015,Children Adult & Health,Cossey Produce Ltd,30.73,School dinners,Misc Food Stores - Default
05/02/2015,Children Adult & Health,Cossey Produce Ltd,12,School dinners,Misc Food Stores - Default
05/02/2015,Children Adult & Health,Cossey Produce Ltd,40.04,School dinners,Misc Food Stores - Default
05/02/2015,Children Adult & Health,Cossey Produce Ltd,141.93,School dinners,Misc Food Stores - Default
05/02/2015,Children Adult & Health,Cossey Produce Ltd,38.07,School dinners,Misc Food Stores - Default
05/02/2015,Children Adult & Health,Cossey Produce Ltd,37.88,School dinners,Misc Food Stores - Default
05/02/2015,Children Adult & Health,Cossey Produce Ltd,13.5,School dinners,Misc Food Stores - Default
05/02/2015,Children Adult & Health,Cossey Produce Ltd,10,School dinners,Misc Food Stores - Default
05/02/2015,Children Adult & Health,Cossey Produce Ltd,37.7,School dinners,Misc Food Stores - Default
05/02/2015,Children Adult & Health,Cossey Produce Ltd,29.43,School dinners,Misc Food Stores - Default
05/02/2015,Children Adult & Health,Cossey Produce Ltd,25.57,School dinners,Misc Food Stores - Default
05/02/2015,Children Adult & Health,Cossey Produce Ltd,33.33,School dinners,Misc Food Stores - Default
05/02/2015,Children Adult & Health,Cossey Produce Ltd,19.4,School dinners,Misc Food Stores - Default
05/02/2015,Children Adult & Health,Cossey Produce Ltd,7.6,School dinners,Misc Food Stores - Default
05/02/2015,Children Adult & Health,Cossey Produce Ltd,18,School dinners,Misc Food Stores - Default
05/02/2015,Children Adult & Health,Cossey Produce Ltd,13.5,School dinners,Misc Food Stores - Default
05/02/2015,Children Adult & Health,Cossey Produce Ltd,20.8,School dinners,Misc Food Stores - Default
05/02/2015,Children Adult & Health,Cossey Produce Ltd,26.4,School dinners,Misc Food Stores - Default
05/02/2015,Children Adult & Health,Cossey Produce Ltd,13.5,School dinners,Misc Food Stores - Default
05/02/2015,Children Adult & Health,Cossey Produce Ltd,45.46,School dinners,Misc Food Stores - Default
05/02/2015,Children Adult & Health,Cossey Produce Ltd,35,School dinners,Misc Food Stores - Default
05/02/2015,Children Adult & Health,Cossey Produce Ltd,9.48,School dinners,Misc Food Stores - Default
05/02/2015,Children Adult & Health,Cossey Produce Ltd,3.25,School dinners,Misc Food Stores - Default
05/02/2015,Children Adult & Health,Cossey Produce Ltd,98.93,School dinners,Misc Food Stores - Default
05/02/2015,Children Adult & Health,Cossey Produce Ltd,58.88,School dinners,Misc Food Stores - Default
05/02/2015,Children Adult & Health,Cossey Produce Ltd,58.01,School dinners,Misc Food Stores - Default
05/02/2015,Children Adult & Health,Brake Bros Ltd,109.34,School dinners,Caterers
05/02/2015,Children Adult & Health,Brake Bros Ltd,125.13,School dinners,Caterers
05/02/2015,Children Adult & Health,Brake Bros Ltd,179.66,School dinners,Caterers
05/02/2015,Children Adult & Health,Brake Bros Ltd,174.36,School dinners,Caterers
05/02/2015,Children Adult & Health,Brake Bros Ltd,170.64,School dinners,Caterers
05/02/2015,Children Adult & Health,Brake Bros Ltd,102.99,School dinners,Caterers
05/02/2015,Children Adult & Health,Brake Bros Ltd,96.98,School dinners,Caterers
05/02/2015,Children Adult & Health,Brake Bros Ltd,719.41,School dinners,Caterers
05/02/2015,Children Adult & Health,Brake Bros Ltd,38.59,School dinners,Caterers
05/02/2015,Children Adult & Health,Brake Bros Ltd,198.91,School dinners,Caterers
05/02/2015,Children Adult & Health,Brake Bros Ltd,186.19,School dinners,Caterers
05/02/2015,Children Adult & Health,Brake Bros Ltd,80.93,School dinners,Caterers
05/02/2015,Children Adult & Health,Brake Bros Ltd,108.3,School dinners,Caterers
05/02/2015,Children Adult & Health,Brake Bros Ltd,99.45,School dinners,Caterers
05/02/2015,Children Adult & Health,Brake Bros Ltd,160.03,School dinners,Caterers
05/02/2015,Children Adult & Health,Brake Bros Ltd,-1.08,School dinners,Caterers
05/02/2015,Children Adult & Health,Brake Bros Ltd,102.69,School dinners,Caterers
05/02/2015,Children Adult & Health,Brake Bros Ltd,224.41,School dinners,Caterers
05/02/2015,Children Adult & Health,Brake Bros Ltd,86.32,School dinners,Caterers
05/02/2015,Children Adult & Health,Brake Bros Ltd,130.24,School dinners,Caterers
05/02/2015,Children Adult & Health,Brake Bros Ltd,452.34,School dinners,Caterers
05/02/2015,Children Adult & Health,Brake Bros Ltd,55.64,School dinners,Caterers
05/02/2015,Children Adult & Health,Brake Bros Ltd,-22.77,School dinners,Caterers
05/02/2015,Children Adult & Health,Brake Bros Ltd,226.23,School dinners,Caterers
05/02/2015,Children Adult & Health,Brake Bros Ltd,102.58,School dinners,Caterers
05/02/2015,Children Adult & Health,Brake Bros Ltd,129.97,School dinners,Caterers
05/02/2015,Children Adult & Health,Brake Bros Ltd,79.68,School dinners,Caterers
05/02/2015,Children Adult & Health,Brake Bros Ltd,103.42,School dinners,Caterers
05/02/2015,Children Adult & Health,Brake Bros Ltd,196,School dinners,Caterers
05/02/2015,Children Adult & Health,Brake Bros Ltd,249.92,School dinners,Caterers
05/02/2015,Children Adult & Health,Brake Bros Ltd,5.04,School dinners,Caterers
05/02/2015,Children Adult & Health,Brake Bros Ltd,45.89,School dinners,Caterers
05/02/2015,Children Adult & Health,Brake Bros Ltd,222.83,School dinners,Caterers
05/02/2015,Children Adult & Health,Brake Bros Ltd,159.49,School dinners,Caterers
05/02/2015,Children Adult & Health,Brake Bros Ltd,35.07,School dinners,Caterers
05/02/2015,Children Adult & Health,Brake Bros Ltd,153.89,School dinners,Caterers
05/02/2015,Children Adult & Health,Brake Bros Ltd,-2.83,School dinners,Caterers
05/02/2015,Children Adult & Health,Brake Bros Ltd,181.19,School dinners,Caterers
05/02/2015,Children Adult & Health,Brake Bros Ltd,-37.06,School dinners,Caterers
05/02/2015,Children Adult & Health,Brake Bros Ltd,59.38,School dinners,Caterers
05/02/2015,Children Adult & Health,Brake Bros Ltd,484.69,School dinners,Caterers
05/02/2015,Children Adult & Health,Brake Bros Ltd,40.6,School dinners,Caterers
05/02/2015,Children Adult & Health,Brake Bros Ltd,77.5,School dinners,Caterers
05/02/2015,Children Adult & Health,Brake Bros Ltd,108.83,School dinners,Caterers
05/02/2015,Children Adult & Health,Brake Bros Ltd,40.35,School dinners,Caterers
05/02/2015,Children Adult & Health,Brake Bros Ltd,132.03,School dinners,Caterers
05/02/2015,Children Adult & Health,Brake Bros Ltd,24.94,School dinners,Caterers
05/02/2015,Children Adult & Health,Brake Bros Ltd,138.55,School dinners,Caterers
05/02/2015,Children Adult & Health,Brake Bros Ltd,9.49,School dinners,Caterers
05/02/2015,Children Adult & Health,Brake Bros Ltd,72.21,School dinners,Caterers
05/02/2015,Children Adult & Health,Brake Bros Ltd,111.42,School dinners,Caterers
05/02/2015,Children Adult & Health,Brake Bros Ltd,65.78,School dinners,Caterers
05/02/2015,Children Adult & Health,Brake Bros Ltd,85.5,School dinners,Caterers
05/02/2015,Children Adult & Health,Brake Bros Ltd,21.43,School dinners,Caterers
05/02/2015,Children Adult & Health,Brake Bros Ltd,65.93,School dinners,Caterers
05/02/2015,Children Adult & Health,Brake Bros Ltd,40.46,School dinners,Caterers
05/02/2015,Children Adult & Health,Brake Bros Ltd,136.24,School dinners,Caterers
05/02/2015,Children Adult & Health,Brake Bros Ltd,245.79,School dinners,Caterers
05/02/2015,Children Adult & Health,Brake Bros Ltd,171.95,School dinners,Caterers
05/02/2015,Children Adult & Health,Brake Bros Ltd,22.77,School dinners,Caterers
05/02/2015,Children Adult & Health,Brake Bros Ltd,127.97,School dinners,Caterers
05/02/2015,Children Adult & Health,Brake Bros Ltd,189.81,School dinners,Caterers
05/02/2015,Children Adult & Health,Brake Bros Ltd,75.61,School dinners,Caterers
05/02/2015,Children Adult & Health,Brake Bros Ltd,81.32,School dinners,Caterers
05/02/2015,Children Adult & Health,Brake Bros Ltd,68.96,School dinners,Caterers
05/02/2015,Children Adult & Health,Brake Bros Ltd,255.27,School dinners,Caterers
05/02/2015,Children Adult & Health,Brake Bros Ltd,285.51,School dinners,Caterers
05/02/2015,Children Adult & Health,Brake Bros Ltd,90.99,School dinners,Caterers
05/02/2015,Children Adult & Health,Brake Bros Ltd,299.57,School dinners,Caterers
05/02/2015,Children Adult & Health,Brake Bros Ltd,3.95,School dinners,Caterers
05/02/2015,Children Adult & Health,Brake Bros Ltd,150.3,School dinners,Caterers
05/02/2015,Children Adult & Health,Brake Bros Ltd,158.5,School dinners,Caterers
05/02/2015,Children Adult & Health,Brake Bros Ltd,114.36,School dinners,Caterers
05/02/2015,Children Adult & Health,Brake Bros Ltd,-15.21,School dinners,Caterers
05/02/2015,Children Adult & Health,Brake Bros Ltd,13.06,School dinners,Caterers
05/02/2015,Children Adult & Health,Brake Bros Ltd,54.33,School dinners,Caterers
05/02/2015,Children Adult & Health,Brake Bros Ltd,23.61,School dinners,Caterers
05/02/2015,Children Adult & Health,Brake Bros Ltd,70.17,School dinners,Caterers
05/02/2015,Children Adult & Health,Brake Bros Ltd,108.42,School dinners,Caterers
05/02/2015,Children Adult & Health,Brake Bros Ltd,72.42,School dinners,Caterers
05/02/2015,Children Adult & Health,Brake Bros Ltd,-5.07,School dinners,Caterers
05/02/2015,Children Adult & Health,Brake Bros Ltd,201.22,School dinners,Caterers
06/02/2015,Children Adult & Health,"Amazon Svcs Europe,sar",30,Supplies and Services,Book Stores
06/02/2015,Children Adult & Health,Amazon UK Retail,44.7,Supplies and Services,Other Direct Marketers
06/02/2015,Children Adult & Health,Amazon UK Retail,253.3,Supplies and Services,Other Direct Marketers
06/02/2015,Children Adult & Health,Brake Bros Ltd,489.31,School dinners,Caterers
06/02/2015,Children Adult & Health,Brake Bros Ltd,-6.48,School dinners,Caterers
06/02/2015,Children Adult & Health,Brake Bros Ltd,63.36,School dinners,Caterers
06/02/2015,Children Adult & Health,Brake Bros Ltd,109.74,School dinners,Caterers
06/02/2015,Children Adult & Health,Brake Bros Ltd,4.82,School dinners,Caterers
06/02/2015,Children Adult & Health,Brake Bros Ltd,597.2,School dinners,Caterers
06/02/2015,Children Adult & Health,Brake Bros Ltd,-2.67,School dinners,Caterers
06/02/2015,Children Adult & Health,Brake Bros Ltd,146.9,School dinners,Caterers
06/02/2015,Children Adult & Health,Brake Bros Ltd,46.13,School dinners,Caterers
06/02/2015,Children Adult & Health,Brake Bros Ltd,156.33,School dinners,Caterers
06/02/2015,Children Adult & Health,Brake Bros Ltd,79.31,School dinners,Caterers
06/02/2015,Children Adult & Health,Brake Bros Ltd,150.09,School dinners,Caterers
06/02/2015,Children Adult & Health,Brake Bros Ltd,254.44,School dinners,Caterers
06/02/2015,Children Adult & Health,Brake Bros Ltd,121.82,School dinners,Caterers
06/02/2015,Children Adult & Health,Brake Bros Ltd,-19.52,School dinners,Caterers
06/02/2015,Children Adult & Health,Brake Bros Ltd,126.14,School dinners,Caterers
06/02/2015,Children Adult & Health,Brake Bros Ltd,78.27,School dinners,Caterers
06/02/2015,Children Adult & Health,Brake Bros Ltd,24.68,School dinners,Caterers
06/02/2015,Children Adult & Health,Brake Bros Ltd,139.04,School dinners,Caterers
06/02/2015,Children Adult & Health,Brake Bros Ltd,70.55,School dinners,Caterers
06/02/2015,Children Adult & Health,Brake Bros Ltd,85.36,School dinners,Caterers
06/02/2015,Children Adult & Health,Brake Bros Ltd,72.61,School dinners,Caterers
06/02/2015,Children Adult & Health,Brake Bros Ltd,97.66,School dinners,Caterers
06/02/2015,Children Adult & Health,Brake Bros Ltd,117.84,School dinners,Caterers
06/02/2015,Children Adult & Health,Brake Bros Ltd,493.31,School dinners,Caterers
06/02/2015,Children Adult & Health,Brake Bros Ltd,-50.7,School dinners,Caterers
06/02/2015,Children Adult & Health,Brake Bros Ltd,168.51,School dinners,Caterers
06/02/2015,Children Adult & Health,Brake Bros Ltd,122.15,School dinners,Caterers
06/02/2015,Children Adult & Health,Brake Bros Ltd,10.78,School dinners,Caterers
06/02/2015,Children Adult & Health,Brake Bros Ltd,77.05,School dinners,Caterers
06/02/2015,Children Adult & Health,Brake Bros Ltd,277.08,School dinners,Caterers
06/02/2015,Children Adult & Health,Brake Bros Ltd,57.66,School dinners,Caterers
06/02/2015,Children Adult & Health,John Sheppard Butchers,67.91,School dinners,Freezer/Meat Lockers
06/02/2015,Children Adult & Health,John Sheppard Butchers,47.85,School dinners,Freezer/Meat Lockers
06/02/2015,Children Adult & Health,John Sheppard Butchers,39.21,School dinners,Freezer/Meat Lockers
06/02/2015,Children Adult & Health,John Sheppard Butchers,44.17,School dinners,Freezer/Meat Lockers
06/02/2015,Children Adult & Health,John Sheppard Butchers,108.46,School dinners,Freezer/Meat Lockers
06/02/2015,Children Adult & Health,John Sheppard Butchers,43.27,School dinners,Freezer/Meat Lockers
06/02/2015,Children Adult & Health,John Sheppard Butchers,87.31,School dinners,Freezer/Meat Lockers
06/02/2015,Children Adult & Health,John Sheppard Butchers,221.6,School dinners,Freezer/Meat Lockers
06/02/2015,Children Adult & Health,John Sheppard Butchers,56.25,School dinners,Freezer/Meat Lockers
06/02/2015,Children Adult & Health,John Sheppard Butchers,36.58,School dinners,Freezer/Meat Lockers
06/02/2015,Children Adult & Health,John Sheppard Butchers,143.89,School dinners,Freezer/Meat Lockers
06/02/2015,Children Adult & Health,John Sheppard Butchers,72.38,School dinners,Freezer/Meat Lockers
06/02/2015,Children Adult & Health,John Sheppard Butchers,81.1,School dinners,Freezer/Meat Lockers
06/02/2015,Children Adult & Health,John Sheppard Butchers,97.45,School dinners,Freezer/Meat Lockers
06/02/2015,Children Adult & Health,John Sheppard Butchers,25.62,School dinners,Freezer/Meat Lockers
06/02/2015,Children Adult & Health,John Sheppard Butchers,68.63,School dinners,Freezer/Meat Lockers
06/02/2015,Children Adult & Health,John Sheppard Butchers,24.31,School dinners,Freezer/Meat Lockers
06/02/2015,Children Adult & Health,John Sheppard Butchers,19.41,School dinners,Freezer/Meat Lockers
06/02/2015,Children Adult & Health,John Sheppard Butchers,17.27,School dinners,Freezer/Meat Lockers
06/02/2015,Children Adult & Health,John Sheppard Butchers,50.03,School dinners,Freezer/Meat Lockers
06/02/2015,Children Adult & Health,John Sheppard Butchers,132.87,School dinners,Freezer/Meat Lockers
06/02/2015,Children Adult & Health,John Sheppard Butchers,76.52,School dinners,Freezer/Meat Lockers
06/02/2015,Children Adult & Health,John Sheppard Butchers,75.32,School dinners,Freezer/Meat Lockers
06/02/2015,Children Adult & Health,John Sheppard Butchers,141.16,School dinners,Freezer/Meat Lockers
06/02/2015,Children Adult & Health,John Sheppard Butchers,75.76,School dinners,Freezer/Meat Lockers
06/02/2015,Children Adult & Health,John Sheppard Butchers,62.27,School dinners,Freezer/Meat Lockers
06/02/2015,Children Adult & Health,John Sheppard Butchers,94.29,School dinners,Freezer/Meat Lockers
06/02/2015,Children Adult & Health,John Sheppard Butchers,62.57,School dinners,Freezer/Meat Lockers
06/02/2015,Children Adult & Health,John Sheppard Butchers,80.12,School dinners,Freezer/Meat Lockers
06/02/2015,Children Adult & Health,John Sheppard Butchers,21.58,School dinners,Freezer/Meat Lockers
06/02/2015,Children Adult & Health,John Sheppard Butchers,113.22,School dinners,Freezer/Meat Lockers
06/02/2015,Children Adult & Health,John Sheppard Butchers,109.55,School dinners,Freezer/Meat Lockers
06/02/2015,Children Adult & Health,John Sheppard Butchers,98.97,School dinners,Freezer/Meat Lockers
06/02/2015,Children Adult & Health,John Sheppard Butchers,18.1,School dinners,Freezer/Meat Lockers
06/02/2015,Children Adult & Health,John Sheppard Butchers,43.01,School dinners,Freezer/Meat Lockers
06/02/2015,Children Adult & Health,John Sheppard Butchers,45.45,School dinners,Freezer/Meat Lockers
06/02/2015,Children Adult & Health,John Sheppard Butchers,97.45,School dinners,Freezer/Meat Lockers
06/02/2015,Children Adult & Health,John Sheppard Butchers,51.61,School dinners,Freezer/Meat Lockers
06/02/2015,Children Adult & Health,John Sheppard Butchers,16.06,School dinners,Freezer/Meat Lockers
06/02/2015,Children Adult & Health,John Sheppard Butchers,41.31,School dinners,Freezer/Meat Lockers
06/02/2015,Children Adult & Health,John Sheppard Butchers,70.31,School dinners,Freezer/Meat Lockers
06/02/2015,Children Adult & Health,John Sheppard Butchers,64.96,School dinners,Freezer/Meat Lockers
06/02/2015,Children Adult & Health,John Sheppard Butchers,63.71,School dinners,Freezer/Meat Lockers
06/02/2015,Children Adult & Health,John Sheppard Butchers,80.22,School dinners,Freezer/Meat Lockers
06/02/2015,Children Adult & Health,John Sheppard Butchers,86.66,School dinners,Freezer/Meat Lockers
06/02/2015,Children Adult & Health,John Sheppard Butchers,72.16,School dinners,Freezer/Meat Lockers
06/02/2015,Children Adult & Health,John Sheppard Butchers,89.82,School dinners,Freezer/Meat Lockers
06/02/2015,Children Adult & Health,John Sheppard Butchers,52.24,School dinners,Freezer/Meat Lockers
06/02/2015,Children Adult & Health,John Sheppard Butchers,48.61,School dinners,Freezer/Meat Lockers
06/02/2015,Children Adult & Health,John Sheppard Butchers,26.38,School dinners,Freezer/Meat Lockers
06/02/2015,Children Adult & Health,John Sheppard Butchers,73.36,School dinners,Freezer/Meat Lockers
06/02/2015,Children Adult & Health,John Sheppard Butchers,46.11,School dinners,Freezer/Meat Lockers
06/02/2015,Children Adult & Health,John Sheppard Butchers,54.92,School dinners,Freezer/Meat Lockers
06/02/2015,Children Adult & Health,John Sheppard Butchers,68.28,School dinners,Freezer/Meat Lockers
06/02/2015,Children Adult & Health,John Sheppard Butchers,110.64,School dinners,Freezer/Meat Lockers
06/02/2015,Children Adult & Health,Cossey Produce Ltd,18,School dinners,Misc Food Stores - Default
06/02/2015,Children Adult & Health,Cossey Produce Ltd,99.15,School dinners,Misc Food Stores - Default
06/02/2015,Children Adult & Health,Cossey Produce Ltd,128.68,School dinners,Misc Food Stores - Default
06/02/2015,Children Adult & Health,Cossey Produce Ltd,27,School dinners,Misc Food Stores - Default
06/02/2015,Children Adult & Health,Cossey Produce Ltd,11.34,School dinners,Misc Food Stores - Default
06/02/2015,Children Adult & Health,Cossey Produce Ltd,12.95,School dinners,Misc Food Stores - Default
06/02/2015,Children Adult & Health,Cossey Produce Ltd,18,School dinners,Misc Food Stores - Default
06/02/2015,Children Adult & Health,Cossey Produce Ltd,8.52,School dinners,Misc Food Stores - Default
06/02/2015,Children Adult & Health,Cossey Produce Ltd,32,School dinners,Misc Food Stores - Default
06/02/2015,Children Adult & Health,Cossey Produce Ltd,12.88,School dinners,Misc Food Stores - Default
06/02/2015,Children Adult & Health,Cossey Produce Ltd,22.5,School dinners,Misc Food Stores - Default
06/02/2015,Children Adult & Health,Cossey Produce Ltd,11.34,School dinners,Misc Food Stores - Default
06/02/2015,Children Adult & Health,Cossey Produce Ltd,13.5,School dinners,Misc Food Stores - Default
06/02/2015,Children Adult & Health,Cossey Produce Ltd,34.36,School dinners,Misc Food Stores - Default
06/02/2015,Children Adult & Health,Cossey Produce Ltd,22.5,School dinners,Misc Food Stores - Default
06/02/2015,Children Adult & Health,Cossey Produce Ltd,4.5,School dinners,Misc Food Stores - Default
06/02/2015,Children Adult & Health,Cossey Produce Ltd,13.5,School dinners,Misc Food Stores - Default
06/02/2015,Children Adult & Health,Cossey Produce Ltd,27.17,School dinners,Misc Food Stores - Default
06/02/2015,Children Adult & Health,Cossey Produce Ltd,27,School dinners,Misc Food Stores - Default
06/02/2015,Children Adult & Health,Cossey Produce Ltd,13.5,School dinners,Misc Food Stores - Default
06/02/2015,Children Adult & Health,Cossey Produce Ltd,9,School dinners,Misc Food Stores - Default
06/02/2015,Children Adult & Health,Cossey Produce Ltd,1.9,School dinners,Misc Food Stores - Default
06/02/2015,Children Adult & Health,Cossey Produce Ltd,22.5,School dinners,Misc Food Stores - Default
06/02/2015,Children Adult & Health,Cossey Produce Ltd,33.85,School dinners,Misc Food Stores - Default
06/02/2015,Children Adult & Health,Cossey Produce Ltd,8.19,School dinners,Misc Food Stores - Default
06/02/2015,Children Adult & Health,Cossey Produce Ltd,24.95,School dinners,Misc Food Stores - Default
06/02/2015,Children Adult & Health,Cossey Produce Ltd,11.3,School dinners,Misc Food Stores - Default
06/02/2015,Children Adult & Health,Cossey Produce Ltd,0.41,School dinners,Misc Food Stores - Default
06/02/2015,Children Adult & Health,Eddys Domestics,230,Supplies and Services,Household Appliance Stores
06/02/2015,Children Adult & Health,The Trefoil Guest House,76,Supplies and Services,Lodging/Hotels/Motels/Resorts
06/02/2015,Chief Executive & Corporate Resources,Amazon UK Retail,22.44,Credit Card Charges,Other Direct Marketers
06/02/2015,Environment & Community Services,Bens Tiles,27,Supplies and Services,Discount Stores
06/02/2015,Environment & Community Services,Dvsa,2000,Credit Card Charges,Govt Serv - Default
06/02/2015,Children Adult & Health,Cossey Produce Ltd,69.49,School dinners,Misc Food Stores - Default
06/02/2015,Children Adult & Health,Cossey Produce Ltd,26.1,School dinners,Misc Food Stores - Default
06/02/2015,Children Adult & Health,Cossey Produce Ltd,4.5,School dinners,Misc Food Stores - Default
06/02/2015,Children Adult & Health,Cossey Produce Ltd,24.73,School dinners,Misc Food Stores - Default
06/02/2015,Children Adult & Health,Cossey Produce Ltd,9.95,School dinners,Misc Food Stores - Default
06/02/2015,Children Adult & Health,Cossey Produce Ltd,18.04,School dinners,Misc Food Stores - Default
06/02/2015,Children Adult & Health,Cossey Produce Ltd,16.5,School dinners,Misc Food Stores - Default
06/02/2015,Children Adult & Health,Cossey Produce Ltd,7.1,School dinners,Misc Food Stores - Default
06/02/2015,Children Adult & Health,Cossey Produce Ltd,6.71,School dinners,Misc Food Stores - Default
06/02/2015,Children Adult & Health,Cossey Produce Ltd,12.85,School dinners,Misc Food Stores - Default
06/02/2015,Children Adult & Health,Cossey Produce Ltd,9,School dinners,Misc Food Stores - Default
06/02/2015,Children Adult & Health,Cossey Produce Ltd,39.39,School dinners,Misc Food Stores - Default
06/02/2015,Children Adult & Health,Cossey Produce Ltd,17.23,School dinners,Misc Food Stores - Default
06/02/2015,Children Adult & Health,Cossey Produce Ltd,5.94,School dinners,Misc Food Stores - Default
06/02/2015,Children Adult & Health,Cossey Produce Ltd,20.4,School dinners,Misc Food Stores - Default
06/02/2015,Children Adult & Health,Cossey Produce Ltd,9,School dinners,Misc Food Stores - Default
06/02/2015,Children Adult & Health,Cossey Produce Ltd,14.56,School dinners,Misc Food Stores - Default
06/02/2015,Children Adult & Health,Cossey Produce Ltd,22.5,School dinners,Misc Food Stores - Default
06/02/2015,Children Adult & Health,Cossey Produce Ltd,17.51,School dinners,Misc Food Stores - Default
06/02/2015,Children Adult & Health,Cossey Produce Ltd,9,School dinners,Misc Food Stores - Default
06/02/2015,Children Adult & Health,Cossey Produce Ltd,-3.56,School dinners,Misc Food Stores - Default
06/02/2015,Children Adult & Health,Cossey Produce Ltd,45,School dinners,Misc Food Stores - Default
06/02/2015,Children Adult & Health,Cossey Produce Ltd,27,School dinners,Misc Food Stores - Default
06/02/2015,Children Adult & Health,Cossey Produce Ltd,3.86,School dinners,Misc Food Stores - Default
06/02/2015,Children Adult & Health,Cossey Produce Ltd,26.47,School dinners,Misc Food Stores - Default
06/02/2015,Children Adult & Health,Cossey Produce Ltd,18,School dinners,Misc Food Stores - Default
06/02/2015,Children Adult & Health,Cossey Produce Ltd,20,School dinners,Misc Food Stores - Default
06/02/2015,Children Adult & Health,Cossey Produce Ltd,7.5,School dinners,Misc Food Stores - Default
06/02/2015,Children Adult & Health,Cossey Produce Ltd,27,School dinners,Misc Food Stores - Default
06/02/2015,Children Adult & Health,Cossey Produce Ltd,18,School dinners,Misc Food Stores - Default
06/02/2015,Children Adult & Health,Cossey Produce Ltd,0.87,School dinners,Misc Food Stores - Default
06/02/2015,Children Adult & Health,Cossey Produce Ltd,18,School dinners,Misc Food Stores - Default
06/02/2015,Children Adult & Health,Cossey Produce Ltd,6.4,School dinners,Misc Food Stores - Default
06/02/2015,Children Adult & Health,Cossey Produce Ltd,32.8,School dinners,Misc Food Stores - Default
06/02/2015,Children Adult & Health,Cossey Produce Ltd,12.77,School dinners,Misc Food Stores - Default
06/02/2015,Children Adult & Health,Cossey Produce Ltd,22.5,School dinners,Misc Food Stores - Default
06/02/2015,Children Adult & Health,Cossey Produce Ltd,45,School dinners,Misc Food Stores - Default
06/02/2015,Children Adult & Health,Cossey Produce Ltd,49.86,School dinners,Misc Food Stores - Default
06/02/2015,Children Adult & Health,Cossey Produce Ltd,4.5,School dinners,Misc Food Stores - Default
06/02/2015,Children Adult & Health,Cossey Produce Ltd,42.73,School dinners,Misc Food Stores - Default
06/02/2015,Children Adult & Health,Cossey Produce Ltd,26.5,School dinners,Misc Food Stores - Default
06/02/2015,Children Adult & Health,Cossey Produce Ltd,9,School dinners,Misc Food Stores - Default
06/02/2015,Children Adult & Health,Cossey Produce Ltd,18,School dinners,Misc Food Stores - Default
06/02/2015,Children Adult & Health,Cossey Produce Ltd,20.65,School dinners,Misc Food Stores - Default
06/02/2015,Children Adult & Health,Cossey Produce Ltd,90.24,School dinners,Misc Food Stores - Default
06/02/2015,Children Adult & Health,Cossey Produce Ltd,8.06,School dinners,Misc Food Stores - Default
06/02/2015,Children Adult & Health,Cossey Produce Ltd,34.27,School dinners,Misc Food Stores - Default
06/02/2015,Children Adult & Health,Cossey Produce Ltd,9,School dinners,Misc Food Stores - Default
06/02/2015,Children Adult & Health,Cossey Produce Ltd,4.5,School dinners,Misc Food Stores - Default
06/02/2015,Children Adult & Health,Cossey Produce Ltd,12,School dinners,Misc Food Stores - Default
06/02/2015,Children Adult & Health,Cossey Produce Ltd,18,School dinners,Misc Food Stores - Default
06/02/2015,Children Adult & Health,Cossey Produce Ltd,37.77,School dinners,Misc Food Stores - Default
06/02/2015,Children Adult & Health,Cossey Produce Ltd,4.5,School dinners,Misc Food Stores - Default
06/02/2015,Children Adult & Health,Cossey Produce Ltd,12.35,School dinners,Misc Food Stores - Default
06/02/2015,Children Adult & Health,Cossey Produce Ltd,18,School dinners,Misc Food Stores - Default
06/02/2015,Children Adult & Health,Cossey Produce Ltd,83.29,School dinners,Misc Food Stores - Default
06/02/2015,Children Adult & Health,Cossey Produce Ltd,50.44,School dinners,Misc Food Stores - Default
06/02/2015,Children Adult & Health,Cossey Produce Ltd,18,School dinners,Misc Food Stores - Default
06/02/2015,Children Adult & Health,Cossey Produce Ltd,45.46,School dinners,Misc Food Stores - Default
06/02/2015,Children Adult & Health,Cossey Produce Ltd,41.93,School dinners,Misc Food Stores - Default
06/02/2015,Children Adult & Health,Cossey Produce Ltd,13.5,School dinners,Misc Food Stores - Default
06/02/2015,Children Adult & Health,Cossey Produce Ltd,16.45,School dinners,Misc Food Stores - Default
06/02/2015,Children Adult & Health,Cossey Produce Ltd,9,School dinners,Misc Food Stores - Default
06/02/2015,Children Adult & Health,Cossey Produce Ltd,18,School dinners,Misc Food Stores - Default
06/02/2015,Children Adult & Health,Cossey Produce Ltd,4.5,School dinners,Misc Food Stores - Default
06/02/2015,Children Adult & Health,Cossey Produce Ltd,40.5,School dinners,Misc Food Stores - Default
06/02/2015,Children Adult & Health,Cossey Produce Ltd,32.67,School dinners,Misc Food Stores - Default
06/02/2015,Children Adult & Health,Cossey Produce Ltd,4.96,School dinners,Misc Food Stores - Default
06/02/2015,Children Adult & Health,Cossey Produce Ltd,4.5,School dinners,Misc Food Stores - Default
06/02/2015,Children Adult & Health,Cossey Produce Ltd,9,School dinners,Misc Food Stores - Default
06/02/2015,Children Adult & Health,Cossey Produce Ltd,1.9,School dinners,Misc Food Stores - Default
06/02/2015,Children Adult & Health,Cossey Produce Ltd,2.7,School dinners,Misc Food Stores - Default
06/02/2015,Children Adult & Health,Cossey Produce Ltd,9,School dinners,Misc Food Stores - Default
06/02/2015,Children Adult & Health,Cossey Produce Ltd,31.5,School dinners,Misc Food Stores - Default
06/02/2015,Children Adult & Health,Cossey Produce Ltd,4.5,School dinners,Misc Food Stores - Default
06/02/2015,Children Adult & Health,Cossey Produce Ltd,13.5,School dinners,Misc Food Stores - Default
06/02/2015,Children Adult & Health,Cossey Produce Ltd,4.5,School dinners,Misc Food Stores - Default
06/02/2015,Children Adult & Health,Cossey Produce Ltd,7.6,School dinners,Misc Food Stores - Default
06/02/2015,Children Adult & Health,Cossey Produce Ltd,9,School dinners,Misc Food Stores - Default
06/02/2015,Children Adult & Health,Cossey Produce Ltd,1.83,School dinners,Misc Food Stores - Default
06/02/2015,Children Adult & Health,Cossey Produce Ltd,18,School dinners,Misc Food Stores - Default
06/02/2015,Children Adult & Health,Cossey Produce Ltd,10,School dinners,Misc Food Stores - Default
06/02/2015,Children Adult & Health,Cossey Produce Ltd,4.5,School dinners,Misc Food Stores - Default
06/02/2015,Children Adult & Health,Cossey Produce Ltd,9,School dinners,Misc Food Stores - Default
06/02/2015,Children Adult & Health,Cossey Produce Ltd,18,School dinners,Misc Food Stores - Default
06/02/2015,Children Adult & Health,Cossey Produce Ltd,13.5,School dinners,Misc Food Stores - Default
06/02/2015,Children Adult & Health,Cossey Produce Ltd,19,School dinners,Misc Food Stores - Default
06/02/2015,Children Adult & Health,Cossey Produce Ltd,45.2,School dinners,Misc Food Stores - Default
06/02/2015,Children Adult & Health,Cossey Produce Ltd,36,School dinners,Misc Food Stores - Default
06/02/2015,Children Adult & Health,Cossey Produce Ltd,20.61,School dinners,Misc Food Stores - Default
06/02/2015,Children Adult & Health,Cossey Produce Ltd,18,School dinners,Misc Food Stores - Default
06/02/2015,Children Adult & Health,Cossey Produce Ltd,27.04,School dinners,Misc Food Stores - Default
06/02/2015,Children Adult & Health,Cossey Produce Ltd,25.64,School dinners,Misc Food Stores - Default
06/02/2015,Children Adult & Health,Cossey Produce Ltd,2.48,School dinners,Misc Food Stores - Default
06/02/2015,Children Adult & Health,Cossey Produce Ltd,9,School dinners,Misc Food Stores - Default
06/02/2015,Children Adult & Health,Cossey Produce Ltd,67.79,School dinners,Misc Food Stores - Default
06/02/2015,Children Adult & Health,Cossey Produce Ltd,10.12,School dinners,Misc Food Stores - Default
06/02/2015,Children Adult & Health,Cossey Produce Ltd,4.5,School dinners,Misc Food Stores - Default
06/02/2015,Children Adult & Health,Cossey Produce Ltd,18,School dinners,Misc Food Stores - Default
06/02/2015,Children Adult & Health,Cossey Produce Ltd,6.64,School dinners,Misc Food Stores - Default
06/02/2015,Children Adult & Health,Cossey Produce Ltd,15.25,School dinners,Misc Food Stores - Default
06/02/2015,Children Adult & Health,Cossey Produce Ltd,27,School dinners,Misc Food Stores - Default
06/02/2015,Environment & Community Services,"Amazon Svcs Europe,sar",39.99,Credit Card Charges,Book Stores
06/02/2015,Children Adult & Health,Burger King-B000018,11.58,Supplies and Services,Fast Food Restaurants
06/02/2015,Children Adult & Health,Argos Ltd,132.99,Supplies and Services,Discount Stores
06/02/2015,Children Adult & Health,Argos Ltd,8.54,Supplies and Services,Discount Stores
06/02/2015,Children Adult & Health,Asda Superstore,257.13,Supplies and Services,Grocery Stores/Supermarkets
06/02/2015,Chief Executive & Corporate Resources,Supplies Team,11.04,Stationery,Stationery Stores
06/02/2015,Chief Executive & Corporate Resources,Supplies Team,2.28,Stationery,Stationery Stores
06/02/2015,Chief Executive & Corporate Resources,Supplies Team,74.22,Stationery,Stationery Stores
06/02/2015,Chief Executive & Corporate Resources,Supplies Team,78.36,Stationery,Stationery Stores
06/02/2015,Chief Executive & Corporate Resources,Supplies Team,2.4,Stationery,Stationery Stores
06/02/2015,Environment & Community Services,Imago,204,Credit Card Charges,Lodging/Hotels/Motels/Resorts
06/02/2015,Chief Executive & Corporate Resources,Supplies Team,62.75,Stationery,Stationery Stores
06/02/2015,Chief Executive & Corporate Resources,Supplies Team,6.38,Stationery,Stationery Stores
06/02/2015,Chief Executive & Corporate Resources,Supplies Team,54.1,Stationery,Stationery Stores
06/02/2015,Chief Executive & Corporate Resources,Supplies Team,11.44,Stationery,Stationery Stores
06/02/2015,Chief Executive & Corporate Resources,Supplies Team,11.8,Stationery,Stationery Stores
06/02/2015,Chief Executive & Corporate Resources,Supplies Team,0.54,Stationery,Stationery Stores
06/02/2015,Chief Executive & Corporate Resources,Supplies Team,11.77,Stationery,Stationery Stores
06/02/2015,Chief Executive & Corporate Resources,Supplies Team,40.09,Stationery,Stationery Stores
06/02/2015,Chief Executive & Corporate Resources,Supplies Team,4.74,Stationery,Stationery Stores
06/02/2015,Chief Executive & Corporate Resources,Consultant Eye Surgeon,195,Credit Card Charges,Med/Health Services - Def
06/02/2015,Children Adult & Health,Amazon UK Retail,5.99,Credit Card Charges,Other Direct Marketers
06/02/2015,Children Adult & Health,Www.Medisupplies.Co.Uk,29.28,Credit Card Charges,Misc Speciality Retail
06/02/2015,Children Adult & Health,"Amazon Svcs Europe,sar",22.45,Supplies and Services,Book Stores
06/02/2015,Children Adults & Health,Amazon UK Retail,9.3,Credit Card Charges,Other Direct Marketers
06/02/2015,Children Adults & Health,"Amazon Svcs Europe,sar",12.49,Credit Card Charges,Book Stores
06/02/2015,Environment & Community Services,Tp Yate,50.84,Street Care - Buildings Maintenance,Lumber/Build. Supply Stores
07/02/2015,Children Adult & Health,Brake Bros Ltd,-10.78,School dinners,Caterers
07/02/2015,Children Adult & Health,Brake Bros Ltd,44.58,School dinners,Caterers
07/02/2015,Children Adult & Health,Brake Bros Ltd,64.08,School dinners,Caterers
07/02/2015,Children Adult & Health,Brake Bros Ltd,115.02,School dinners,Caterers
07/02/2015,Children Adult & Health,Brake Bros Ltd,7.32,School dinners,Caterers
07/02/2015,Children Adult & Health,Brake Bros Ltd,54.6,School dinners,Caterers
07/02/2015,Children Adult & Health,Brake Bros Ltd,73.81,School dinners,Caterers
07/02/2015,Children Adult & Health,Brake Bros Ltd,113.58,School dinners,Caterers
07/02/2015,Children Adult & Health,Brake Bros Ltd,130.93,School dinners,Caterers
07/02/2015,Children Adult & Health,Brake Bros Ltd,114.8,School dinners,Caterers
07/02/2015,Children Adult & Health,Brake Bros Ltd,160.52,School dinners,Caterers
07/02/2015,Children Adult & Health,Brake Bros Ltd,152.4,School dinners,Caterers
07/02/2015,Children Adult & Health,Brake Bros Ltd,424.84,School dinners,Caterers
07/02/2015,Children Adult & Health,Brake Bros Ltd,73.27,School dinners,Caterers
07/02/2015,Children Adult & Health,Brake Bros Ltd,153.52,School dinners,Caterers
07/02/2015,Children Adult & Health,Brake Bros Ltd,78.2,School dinners,Caterers
07/02/2015,Children Adult & Health,Brake Bros Ltd,187.72,School dinners,Caterers
07/02/2015,Children Adult & Health,Brake Bros Ltd,215.15,School dinners,Caterers
07/02/2015,Children Adult & Health,Brake Bros Ltd,60.13,School dinners,Caterers
07/02/2015,Children Adult & Health,Brake Bros Ltd,81.53,School dinners,Caterers
07/02/2015,Children Adult & Health,Brake Bros Ltd,108.15,School dinners,Caterers
07/02/2015,Children Adult & Health,Brake Bros Ltd,-5.25,School dinners,Caterers
07/02/2015,Children Adult & Health,Brake Bros Ltd,140.29,School dinners,Caterers
07/02/2015,Children Adult & Health,Brake Bros Ltd,65.74,School dinners,Caterers
07/02/2015,Children Adult & Health,Brake Bros Ltd,70.25,School dinners,Caterers
07/02/2015,Children Adult & Health,Brake Bros Ltd,103.53,School dinners,Caterers
07/02/2015,Children Adult & Health,Brake Bros Ltd,93.76,School dinners,Caterers
07/02/2015,Children Adult & Health,Brake Bros Ltd,140.14,School dinners,Caterers
07/02/2015,Children Adult & Health,Brake Bros Ltd,147.34,School dinners,Caterers
07/02/2015,Children Adult & Health,Brake Bros Ltd,55.89,School dinners,Caterers
07/02/2015,Children Adult & Health,Brake Bros Ltd,58.05,School dinners,Caterers
07/02/2015,Chief Executive & Corporate Resources,Amazon UK Retail,179.52,Credit Card Charges,Other Direct Marketers
07/02/2015,Children Adult & Health,"Amazon Svcs Europe,sar",189.98,Credit Card Charges,Book Stores
07/02/2015,Children Adult & Health,"Amazon Svcs Europe,sar",272.97,Credit Card Charges,Book Stores
07/02/2015,Children Adult & Health,"Amazon Svcs Europe,sar",320.43,Credit Card Charges,Book Stores
07/02/2015,Children Adults & Health,"Amazon Svcs Europe,sar",4.89,Credit Card Charges,Book Stores
08/02/2015,Chief Executive & Corporate Resources,Amazon UK Retail,29.69,Credit Card Charges,Other Direct Marketers
09/02/2015,Children Adult & Health,Tvlicensing.Co.Uk,145.5,Supplies and Services,Mgmt/Consult/Public Rel Ser
09/02/2015,Environment & Community Services,Bauer Media,28,Credit Card Charges,Misc Publishing & Printing
09/02/2015,Environment & Community Services,Tp Yate,268.81,Street Care - Buildings Maintenance,Lumber/Build. Supply Stores
09/02/2015,Chief Executive & Corporate Resources,Irm Bristol Ltd,23.52,Supplies and Services,Architectural/Eng/Survey
09/02/2015,Environment & Community Services,Www.Lampco.Co.Uk,29.28,Supplies and Services,Electrical Parts/Equipment
09/02/2015,Environment & Community Services,B & Q,56.67,Supplies and Services,Lumber/Build. Supply Stores
09/02/2015,Environment & Community Services,Wfm,335,Supplies and Services,Industrial Supplies - Def
09/02/2015,Environment & Community Services,Galleries Shoppingcent,3.5,Credit Card Charges,"Parking Lots, Meters, Garages"
09/02/2015,Chief Executive & Corporate Resources,Hmcourts-Service.G,141,Supplies and Services,Fines
09/02/2015,Children Adult & Health,Amazon UK Retail,86.09,Supplies and Services,Other Direct Marketers
09/02/2015,Children Adult & Health,Tesco Stores 6420,38.82,Supplies and Services,Grocery Stores/Supermarkets
09/02/2015,Children Adult & Health,"Amazon Svcs Europe,sar",52.08,Supplies and Services,Book Stores
09/02/2015,Children Adult & Health,Tesco Stores 6420,67.68,Credit Card Charges,Grocery Stores/Supermarkets
09/02/2015,Children Adult & Health,W M Morrisons Plc,64.68,Supplies and Services,Grocery Stores/Supermarkets
09/02/2015,Chief Executive & Corporate Resources,Supplies Team,16.89,Stationery,Stationery Stores
09/02/2015,Chief Executive & Corporate Resources,Supplies Team,19.7,Stationery,Stationery Stores
09/02/2015,Chief Executive & Corporate Resources,Supplies Team,90.59,Stationery,Stationery Stores
09/02/2015,Environment & Community Services,Bluebay Building Produ,644.7,Credit Card Charges,Lumber/Build. Supply Stores
09/02/2015,Environment & Community Services,Bluebay Building Produ,392.32,Credit Card Charges,Lumber/Build. Supply Stores
09/02/2015,Children Adult & Health,W S Retail Ltd.,25,Prop.Serv. General Repairs,Candy/Nut/Confection Store
09/02/2015,Children Adult & Health,Cossey Produce Ltd,27.73,School dinners,Misc Food Stores - Default
09/02/2015,Children Adult & Health,Cossey Produce Ltd,136.86,School dinners,Misc Food Stores - Default
09/02/2015,Children Adult & Health,Cossey Produce Ltd,40.82,School dinners,Misc Food Stores - Default
09/02/2015,Children Adult & Health,Cossey Produce Ltd,18,School dinners,Misc Food Stores - Default
09/02/2015,Children Adult & Health,Cossey Produce Ltd,55.75,School dinners,Misc Food Stores - Default
09/02/2015,Children Adult & Health,Cossey Produce Ltd,92.66,School dinners,Misc Food Stores - Default
09/02/2015,Children Adult & Health,Cossey Produce Ltd,4.5,School dinners,Misc Food Stores - Default
09/02/2015,Children Adult & Health,Cossey Produce Ltd,58.71,School dinners,Misc Food Stores - Default
09/02/2015,Children Adult & Health,Cossey Produce Ltd,58.32,School dinners,Misc Food Stores - Default
09/02/2015,Children Adult & Health,Flights Hallmark Ltd,55,Supplies and Services,Taxicabs/Limousines
09/02/2015,Chief Executive & Corporate Resources,Amazon UK Retail,98.2,Supplies and Services,Other Direct Marketers
09/02/2015,Children Adult & Health,Cossey Produce Ltd,36.69,School dinners,Misc Food Stores - Default
09/02/2015,Children Adult & Health,John Sheppard Butchers,84.18,School dinners,Freezer/Meat Lockers
09/02/2015,Children Adult & Health,John Sheppard Butchers,335.11,School dinners,Freezer/Meat Lockers
09/02/2015,Children Adult & Health,John Sheppard Butchers,99.14,School dinners,Freezer/Meat Lockers
09/02/2015,Children Adult & Health,John Sheppard Butchers,58.24,School dinners,Freezer/Meat Lockers
09/02/2015,Children Adult & Health,John Sheppard Butchers,-25.62,School dinners,Freezer/Meat Lockers
09/02/2015,Children Adult & Health,John Sheppard Butchers,82.62,School dinners,Freezer/Meat Lockers
09/02/2015,Children Adult & Health,John Sheppard Butchers,60.75,School dinners,Freezer/Meat Lockers
09/02/2015,Children Adult & Health,John Sheppard Butchers,51.06,School dinners,Freezer/Meat Lockers
09/02/2015,Children Adult & Health,John Sheppard Butchers,-76.52,School dinners,Freezer/Meat Lockers
09/02/2015,Children Adult & Health,John Sheppard Butchers,6.63,School dinners,Freezer/Meat Lockers
09/02/2015,Children Adult & Health,Brake Bros Ltd,76.05,School dinners,Caterers
09/02/2015,Children Adult & Health,Brake Bros Ltd,142.2,School dinners,Caterers
09/02/2015,Children Adult & Health,Brake Bros Ltd,171.3,School dinners,Caterers
09/02/2015,Children Adult & Health,Brake Bros Ltd,137,School dinners,Caterers
09/02/2015,Children Adult & Health,Brake Bros Ltd,121.42,School dinners,Caterers
09/02/2015,Children Adult & Health,Brake Bros Ltd,107.01,School dinners,Caterers
09/02/2015,Children Adult & Health,Brake Bros Ltd,69.64,School dinners,Caterers
09/02/2015,Children Adult & Health,Brake Bros Ltd,118.94,School dinners,Caterers
09/02/2015,Children Adult & Health,Brake Bros Ltd,85.37,School dinners,Caterers
09/02/2015,Children Adult & Health,Brake Bros Ltd,233.79,School dinners,Caterers
09/02/2015,Children Adult & Health,Brake Bros Ltd,81.09,School dinners,Caterers
09/02/2015,Children Adult & Health,Brake Bros Ltd,57.91,School dinners,Caterers
09/02/2015,Children Adult & Health,Brake Bros Ltd,43.43,School dinners,Caterers
09/02/2015,Children Adult & Health,Brake Bros Ltd,322.82,School dinners,Caterers
09/02/2015,Children Adult & Health,Brake Bros Ltd,82.19,School dinners,Caterers
09/02/2015,Children Adult & Health,Brake Bros Ltd,187.55,School dinners,Caterers
09/02/2015,Children Adult & Health,Brake Bros Ltd,162.67,School dinners,Caterers
09/02/2015,Children Adult & Health,Brake Bros Ltd,84.67,School dinners,Caterers
09/02/2015,Children Adult & Health,Brake Bros Ltd,215.23,School dinners,Caterers
09/02/2015,Children Adult & Health,Brake Bros Ltd,131.48,School dinners,Caterers
09/02/2015,Children Adult & Health,Brake Bros Ltd,202.86,School dinners,Caterers
09/02/2015,Children Adult & Health,Brake Bros Ltd,13.74,School dinners,Caterers
09/02/2015,Children Adult & Health,Brake Bros Ltd,12.62,School dinners,Caterers
09/02/2015,Children Adult & Health,Brake Bros Ltd,143.16,School dinners,Caterers
09/02/2015,Children Adult & Health,Brake Bros Ltd,319.45,School dinners,Caterers
09/02/2015,Children Adult & Health,Brake Bros Ltd,66.24,School dinners,Caterers
09/02/2015,Children Adult & Health,Brake Bros Ltd,49.79,School dinners,Caterers
09/02/2015,Children Adult & Health,Brake Bros Ltd,453.84,School dinners,Caterers
09/02/2015,Children Adult & Health,Brake Bros Ltd,217.19,School dinners,Caterers
09/02/2015,Children Adult & Health,Brake Bros Ltd,214.52,School dinners,Caterers
09/02/2015,Children Adult & Health,Brake Bros Ltd,295.3,School dinners,Caterers
09/02/2015,Children Adult & Health,Brake Bros Ltd,50.28,School dinners,Caterers
09/02/2015,Children Adult & Health,Brake Bros Ltd,180.13,School dinners,Caterers
09/02/2015,Children Adult & Health,Brake Bros Ltd,149.42,School dinners,Caterers
09/02/2015,Children Adult & Health,Brake Bros Ltd,31.02,School dinners,Caterers
09/02/2015,Children Adult & Health,Brake Bros Ltd,97.72,School dinners,Caterers
09/02/2015,Children Adult & Health,Brake Bros Ltd,1053.34,School dinners,Caterers
09/02/2015,Children Adult & Health,Brake Bros Ltd,167.92,School dinners,Caterers
09/02/2015,Children Adult & Health,Brake Bros Ltd,300.84,School dinners,Caterers
09/02/2015,Children Adult & Health,Brake Bros Ltd,445.78,School dinners,Caterers
09/02/2015,Children Adult & Health,Brake Bros Ltd,6.57,School dinners,Caterers
09/02/2015,Children Adult & Health,Brake Bros Ltd,76.08,School dinners,Caterers
09/02/2015,Children Adult & Health,"Amazon Svcs Europe,sar",31.99,Supplies and Services,Book Stores
09/02/2015,Children Adult & Health,Cossey Produce Ltd,26.3,School dinners,Misc Food Stores - Default
09/02/2015,Children Adult & Health,Cossey Produce Ltd,367.36,School dinners,Misc Food Stores - Default
09/02/2015,Children Adult & Health,Cossey Produce Ltd,-8,School dinners,Misc Food Stores - Default
09/02/2015,Children Adult & Health,Cossey Produce Ltd,-5.2,School dinners,Misc Food Stores - Default
09/02/2015,Children Adult & Health,Cossey Produce Ltd,39.96,School dinners,Misc Food Stores - Default
09/02/2015,Children Adult & Health,Cossey Produce Ltd,64.14,School dinners,Misc Food Stores - Default
09/02/2015,Children Adult & Health,Amazon UK Retail,179.97,Supplies and Services,Other Direct Marketers
09/02/2015,Children Adult & Health,Js Online Grocery,48.55,Supplies and Services,Grocery Stores/Supermarkets
09/02/2015,Children Adult & Health,Tesco Stores 5652,45.71,Supplies and Services,Grocery Stores/Supermarkets
09/02/2015,Children Adult & Health,Asda Home Shopping,29.32,Supplies and Services,Grocery Stores/Supermarkets
09/02/2015,Children Adult & Health,"Amazon Svcs Europe,sar",39.95,Supplies and Services,Book Stores
09/02/2015,Children Adult & Health,"Amazon Svcs Europe,sar",13.99,Supplies and Services,Book Stores
10/02/2015,Chief Executive & Corporate Resources,Cheap Printing Dorset,55,Credit Card Charges,Stationery/Office Supplies
10/02/2015,Children Adult & Health,Brake Bros Ltd,226.84,School dinners,Caterers
10/02/2015,Children Adult & Health,Brake Bros Ltd,40.95,School dinners,Caterers
10/02/2015,Children Adult & Health,Brake Bros Ltd,55.37,School dinners,Caterers
10/02/2015,Children Adult & Health,Brake Bros Ltd,124.53,School dinners,Caterers
10/02/2015,Children Adult & Health,Brake Bros Ltd,54.08,School dinners,Caterers
10/02/2015,Children Adult & Health,Brake Bros Ltd,189.6,School dinners,Caterers
10/02/2015,Children Adult & Health,Brake Bros Ltd,862.83,School dinners,Caterers
10/02/2015,Children Adult & Health,Brake Bros Ltd,711.71,School dinners,Caterers
10/02/2015,Children Adult & Health,Brake Bros Ltd,243.05,School dinners,Caterers
10/02/2015,Children Adult & Health,Brake Bros Ltd,48.5,School dinners,Caterers
10/02/2015,Children Adult & Health,Brake Bros Ltd,41.37,School dinners,Caterers
10/02/2015,Children Adult & Health,Brake Bros Ltd,44.14,School dinners,Caterers
10/02/2015,Children Adult & Health,Brake Bros Ltd,24.75,School dinners,Caterers
10/02/2015,Children Adult & Health,Brake Bros Ltd,70.41,School dinners,Caterers
10/02/2015,Children Adult & Health,Brake Bros Ltd,109.48,School dinners,Caterers
10/02/2015,Children Adult & Health,Brake Bros Ltd,73.88,School dinners,Caterers
10/02/2015,Children Adult & Health,Brake Bros Ltd,134.86,School dinners,Caterers
10/02/2015,Children Adult & Health,Brake Bros Ltd,85.01,School dinners,Caterers
10/02/2015,Children Adult & Health,Brake Bros Ltd,-7.32,School dinners,Caterers
10/02/2015,Children Adult & Health,Brake Bros Ltd,86.19,School dinners,Caterers
10/02/2015,Children Adult & Health,Brake Bros Ltd,-3.26,School dinners,Caterers
10/02/2015,Children Adult & Health,Brake Bros Ltd,261.88,School dinners,Caterers
10/02/2015,Children Adult & Health,Brake Bros Ltd,101.93,School dinners,Caterers
10/02/2015,Children Adult & Health,Brake Bros Ltd,50.09,School dinners,Caterers
10/02/2015,Children Adult & Health,Brake Bros Ltd,326.28,School dinners,Caterers
10/02/2015,Children Adult & Health,Brake Bros Ltd,330.95,School dinners,Caterers
10/02/2015,Children Adult & Health,Brake Bros Ltd,44.49,School dinners,Caterers
10/02/2015,Children Adult & Health,Brake Bros Ltd,133.35,School dinners,Caterers
10/02/2015,Children Adult & Health,Brake Bros Ltd,111.34,School dinners,Caterers
10/02/2015,Children Adult & Health,Brake Bros Ltd,160.87,School dinners,Caterers
10/02/2015,Children Adult & Health,Brake Bros Ltd,42.98,School dinners,Caterers
10/02/2015,Children Adult & Health,Brake Bros Ltd,90.52,School dinners,Caterers
10/02/2015,Children Adult & Health,Brake Bros Ltd,208.16,School dinners,Caterers
10/02/2015,Children Adult & Health,Brake Bros Ltd,92.52,School dinners,Caterers
10/02/2015,Children Adult & Health,Brake Bros Ltd,214.06,School dinners,Caterers
10/02/2015,Children Adult & Health,Brake Bros Ltd,43.12,School dinners,Caterers
10/02/2015,Children Adult & Health,Brake Bros Ltd,201.58,School dinners,Caterers
10/02/2015,Children Adult & Health,Brake Bros Ltd,26.37,School dinners,Caterers
10/02/2015,Children Adult & Health,Brake Bros Ltd,76.9,School dinners,Caterers
10/02/2015,Children Adult & Health,Brake Bros Ltd,-4.82,School dinners,Caterers
10/02/2015,Children Adult & Health,Brake Bros Ltd,65.98,School dinners,Caterers
10/02/2015,Children Adult & Health,Brake Bros Ltd,129.59,School dinners,Caterers
10/02/2015,Children Adult & Health,Brake Bros Ltd,123.99,School dinners,Caterers
10/02/2015,Children Adult & Health,Brake Bros Ltd,110.28,School dinners,Caterers
10/02/2015,Children Adult & Health,Brake Bros Ltd,152.61,School dinners,Caterers
10/02/2015,Children Adult & Health,Brake Bros Ltd,113.41,School dinners,Caterers
10/02/2015,Children Adult & Health,Brake Bros Ltd,235.86,School dinners,Caterers
10/02/2015,Children Adult & Health,Brake Bros Ltd,67.55,School dinners,Caterers
10/02/2015,Children Adult & Health,Brake Bros Ltd,339.76,School dinners,Caterers
10/02/2015,Children Adult & Health,Brake Bros Ltd,246.05,School dinners,Caterers
10/02/2015,Children Adult & Health,Brake Bros Ltd,64.73,School dinners,Caterers
10/02/2015,Children Adult & Health,Brake Bros Ltd,163.12,School dinners,Caterers
10/02/2015,Children Adult & Health,Brake Bros Ltd,39.95,School dinners,Caterers
10/02/2015,Children Adult & Health,Brake Bros Ltd,57.19,School dinners,Caterers
10/02/2015,Children Adult & Health,Brake Bros Ltd,154,School dinners,Caterers
10/02/2015,Children Adult & Health,Brake Bros Ltd,88.15,School dinners,Caterers
10/02/2015,Children Adult & Health,Brake Bros Ltd,146.19,School dinners,Caterers
10/02/2015,Children Adult & Health,Brake Bros Ltd,31.47,School dinners,Caterers
10/02/2015,Children Adult & Health,Brake Bros Ltd,210.87,School dinners,Caterers
10/02/2015,Children Adult & Health,Brake Bros Ltd,55.29,School dinners,Caterers
10/02/2015,Children Adult & Health,Brake Bros Ltd,116.16,School dinners,Caterers
10/02/2015,Children Adult & Health,John Sheppard Butchers,133.16,School dinners,Freezer/Meat Lockers
10/02/2015,Children Adult & Health,John Sheppard Butchers,97.08,School dinners,Freezer/Meat Lockers
10/02/2015,Children Adult & Health,John Sheppard Butchers,95.47,School dinners,Freezer/Meat Lockers
10/02/2015,Children Adult & Health,John Sheppard Butchers,56.4,School dinners,Freezer/Meat Lockers
10/02/2015,Children Adult & Health,John Sheppard Butchers,30.59,School dinners,Freezer/Meat Lockers
10/02/2015,Children Adult & Health,John Sheppard Butchers,47.11,School dinners,Freezer/Meat Lockers
10/02/2015,Children Adult & Health,John Sheppard Butchers,146.1,School dinners,Freezer/Meat Lockers
10/02/2015,Children Adult & Health,John Sheppard Butchers,50.76,School dinners,Freezer/Meat Lockers
10/02/2015,Children Adult & Health,John Sheppard Butchers,150.06,School dinners,Freezer/Meat Lockers
10/02/2015,Children Adult & Health,John Sheppard Butchers,35.53,School dinners,Freezer/Meat Lockers
10/02/2015,Children Adult & Health,John Sheppard Butchers,52.24,School dinners,Freezer/Meat Lockers
10/02/2015,Children Adult & Health,John Sheppard Butchers,59.56,School dinners,Freezer/Meat Lockers
10/02/2015,Children Adult & Health,John Sheppard Butchers,76.2,School dinners,Freezer/Meat Lockers
10/02/2015,Children Adult & Health,John Sheppard Butchers,96.88,School dinners,Freezer/Meat Lockers
10/02/2015,Children Adult & Health,John Sheppard Butchers,236.22,School dinners,Freezer/Meat Lockers
10/02/2015,Children Adult & Health,John Sheppard Butchers,35.69,School dinners,Freezer/Meat Lockers
10/02/2015,Children Adult & Health,John Sheppard Butchers,102.2,School dinners,Freezer/Meat Lockers
10/02/2015,Children Adult & Health,John Sheppard Butchers,33.05,School dinners,Freezer/Meat Lockers
10/02/2015,Children Adult & Health,John Sheppard Butchers,89.53,School dinners,Freezer/Meat Lockers
10/02/2015,Children Adult & Health,John Sheppard Butchers,90.72,School dinners,Freezer/Meat Lockers
10/02/2015,Children Adult & Health,John Sheppard Butchers,142.23,School dinners,Freezer/Meat Lockers
10/02/2015,Children Adult & Health,John Sheppard Butchers,91.69,School dinners,Freezer/Meat Lockers
10/02/2015,Children Adult & Health,John Sheppard Butchers,108.86,School dinners,Freezer/Meat Lockers
10/02/2015,Children Adult & Health,John Sheppard Butchers,34.99,School dinners,Freezer/Meat Lockers
10/02/2015,Children Adult & Health,John Sheppard Butchers,55.96,School dinners,Freezer/Meat Lockers
10/02/2015,Children Adult & Health,John Sheppard Butchers,160.19,School dinners,Freezer/Meat Lockers
10/02/2015,Children Adult & Health,John Sheppard Butchers,77.76,School dinners,Freezer/Meat Lockers
10/02/2015,Children Adult & Health,John Sheppard Butchers,37.04,School dinners,Freezer/Meat Lockers
10/02/2015,Children Adult & Health,John Sheppard Butchers,98.93,School dinners,Freezer/Meat Lockers
10/02/2015,Children Adult & Health,John Sheppard Butchers,29.59,School dinners,Freezer/Meat Lockers
10/02/2015,Children Adult & Health,John Sheppard Butchers,99.14,School dinners,Freezer/Meat Lockers
10/02/2015,Children Adult & Health,John Sheppard Butchers,77.54,School dinners,Freezer/Meat Lockers
10/02/2015,Children Adult & Health,John Sheppard Butchers,151.52,School dinners,Freezer/Meat Lockers
10/02/2015,Children Adult & Health,John Sheppard Butchers,151.65,School dinners,Freezer/Meat Lockers
10/02/2015,Children Adult & Health,John Sheppard Butchers,50.59,School dinners,Freezer/Meat Lockers
10/02/2015,Children Adult & Health,John Sheppard Butchers,79.97,School dinners,Freezer/Meat Lockers
10/02/2015,Children Adult & Health,John Sheppard Butchers,97.96,School dinners,Freezer/Meat Lockers
10/02/2015,Children Adult & Health,John Sheppard Butchers,130.81,School dinners,Freezer/Meat Lockers
10/02/2015,Children Adult & Health,John Sheppard Butchers,-30.67,School dinners,Freezer/Meat Lockers
10/02/2015,Children Adult & Health,John Sheppard Butchers,25.7,School dinners,Freezer/Meat Lockers
10/02/2015,Children Adult & Health,John Sheppard Butchers,14.26,School dinners,Freezer/Meat Lockers
10/02/2015,Children Adult & Health,John Sheppard Butchers,69.98,School dinners,Freezer/Meat Lockers
10/02/2015,Children Adult & Health,John Sheppard Butchers,97.63,School dinners,Freezer/Meat Lockers
10/02/2015,Children Adult & Health,John Sheppard Butchers,179.28,School dinners,Freezer/Meat Lockers
10/02/2015,Children Adult & Health,John Sheppard Butchers,65.99,School dinners,Freezer/Meat Lockers
10/02/2015,Children Adult & Health,John Sheppard Butchers,46.98,School dinners,Freezer/Meat Lockers
10/02/2015,Children Adult & Health,John Sheppard Butchers,93.74,School dinners,Freezer/Meat Lockers
10/02/2015,Children Adult & Health,John Sheppard Butchers,132.46,School dinners,Freezer/Meat Lockers
10/02/2015,Children Adult & Health,John Sheppard Butchers,75.48,School dinners,Freezer/Meat Lockers
10/02/2015,Children Adult & Health,John Sheppard Butchers,83.05,School dinners,Freezer/Meat Lockers
10/02/2015,Children Adult & Health,John Sheppard Butchers,76.25,School dinners,Freezer/Meat Lockers
10/02/2015,Children Adult & Health,John Sheppard Butchers,68.46,School dinners,Freezer/Meat Lockers
10/02/2015,Children Adult & Health,John Sheppard Butchers,34.02,School dinners,Freezer/Meat Lockers
10/02/2015,Children Adult & Health,John Sheppard Butchers,31.97,School dinners,Freezer/Meat Lockers
10/02/2015,Children Adult & Health,John Sheppard Butchers,90.5,School dinners,Freezer/Meat Lockers
10/02/2015,Children Adult & Health,John Sheppard Butchers,98.3,School dinners,Freezer/Meat Lockers
10/02/2015,Children Adult & Health,John Sheppard Butchers,67.61,School dinners,Freezer/Meat Lockers
10/02/2015,Children Adult & Health,John Sheppard Butchers,221.02,School dinners,Freezer/Meat Lockers
10/02/2015,Children Adult & Health,John Sheppard Butchers,269.39,School dinners,Freezer/Meat Lockers
10/02/2015,Children Adult & Health,John Sheppard Butchers,41.32,School dinners,Freezer/Meat Lockers
10/02/2015,Children Adult & Health,John Sheppard Butchers,150.76,School dinners,Freezer/Meat Lockers
10/02/2015,Children Adult & Health,John Sheppard Butchers,38.18,School dinners,Freezer/Meat Lockers
10/02/2015,Children Adult & Health,John Sheppard Butchers,58.63,School dinners,Freezer/Meat Lockers
10/02/2015,Children Adult & Health,John Sheppard Butchers,312.43,School dinners,Freezer/Meat Lockers
10/02/2015,Children Adult & Health,John Sheppard Butchers,143.96,School dinners,Freezer/Meat Lockers
10/02/2015,Children Adult & Health,John Sheppard Butchers,44.71,School dinners,Freezer/Meat Lockers
10/02/2015,Children Adult & Health,John Sheppard Butchers,94.12,School dinners,Freezer/Meat Lockers
10/02/2015,Children Adult & Health,John Sheppard Butchers,34.27,School dinners,Freezer/Meat Lockers
10/02/2015,Children Adult & Health,John Sheppard Butchers,97.9,School dinners,Freezer/Meat Lockers
10/02/2015,Children Adult & Health,John Sheppard Butchers,-102.2,School dinners,Freezer/Meat Lockers
10/02/2015,Children Adult & Health,John Sheppard Butchers,33.05,School dinners,Freezer/Meat Lockers
10/02/2015,Children Adult & Health,John Sheppard Butchers,108.56,School dinners,Freezer/Meat Lockers
10/02/2015,Children Adult & Health,John Sheppard Butchers,136.19,School dinners,Freezer/Meat Lockers
10/02/2015,Children Adult & Health,John Sheppard Butchers,73.36,School dinners,Freezer/Meat Lockers
10/02/2015,Children Adult & Health,John Sheppard Butchers,86.77,School dinners,Freezer/Meat Lockers
10/02/2015,Children Adult & Health,John Sheppard Butchers,130.48,School dinners,Freezer/Meat Lockers
10/02/2015,Children Adult & Health,John Sheppard Butchers,440.87,School dinners,Freezer/Meat Lockers
10/02/2015,Children Adult & Health,John Sheppard Butchers,66.31,School dinners,Freezer/Meat Lockers
10/02/2015,Children Adult & Health,Cossey Produce Ltd,83,School dinners,Misc Food Stores - Default
10/02/2015,Children Adult & Health,Cossey Produce Ltd,35,School dinners,Misc Food Stores - Default
10/02/2015,Children Adult & Health,Cossey Produce Ltd,46.26,School dinners,Misc Food Stores - Default
10/02/2015,Children Adult & Health,Cossey Produce Ltd,43.71,School dinners,Misc Food Stores - Default
10/02/2015,Children Adult & Health,Cossey Produce Ltd,53.55,School dinners,Misc Food Stores - Default
10/02/2015,Children Adult & Health,Cossey Produce Ltd,39.67,School dinners,Misc Food Stores - Default
10/02/2015,Children Adult & Health,Cossey Produce Ltd,58.18,School dinners,Misc Food Stores - Default
10/02/2015,Children Adult & Health,Cossey Produce Ltd,29.25,School dinners,Misc Food Stores - Default
10/02/2015,Children Adult & Health,Cossey Produce Ltd,26.16,School dinners,Misc Food Stores - Default
10/02/2015,Children Adult & Health,Cossey Produce Ltd,22.54,School dinners,Misc Food Stores - Default
10/02/2015,Children Adult & Health,Cossey Produce Ltd,45.35,School dinners,Misc Food Stores - Default
10/02/2015,Children Adult & Health,Cossey Produce Ltd,43.01,School dinners,Misc Food Stores - Default
10/02/2015,Children Adult & Health,Cossey Produce Ltd,61.36,School dinners,Misc Food Stores - Default
10/02/2015,Children Adult & Health,Cossey Produce Ltd,91.16,School dinners,Misc Food Stores - Default
10/02/2015,Children Adult & Health,Cossey Produce Ltd,58.32,School dinners,Misc Food Stores - Default
10/02/2015,Children Adult & Health,Cossey Produce Ltd,15.96,School dinners,Misc Food Stores - Default
10/02/2015,Children Adult & Health,Cossey Produce Ltd,24.68,School dinners,Misc Food Stores - Default
10/02/2015,Children Adult & Health,Cossey Produce Ltd,16.84,School dinners,Misc Food Stores - Default
10/02/2015,Children Adult & Health,Cossey Produce Ltd,51.96,School dinners,Misc Food Stores - Default
10/02/2015,Children Adult & Health,Cossey Produce Ltd,66.02,School dinners,Misc Food Stores - Default
10/02/2015,Children Adult & Health,Cossey Produce Ltd,44.39,School dinners,Misc Food Stores - Default
10/02/2015,Children Adult & Health,Cossey Produce Ltd,48.72,School dinners,Misc Food Stores - Default
10/02/2015,Children Adult & Health,Cossey Produce Ltd,50.93,School dinners,Misc Food Stores - Default
10/02/2015,Children Adult & Health,Cossey Produce Ltd,33.09,School dinners,Misc Food Stores - Default
10/02/2015,Children Adult & Health,Cossey Produce Ltd,52.53,School dinners,Misc Food Stores - Default
10/02/2015,Children Adult & Health,Cossey Produce Ltd,34.86,School dinners,Misc Food Stores - Default
10/02/2015,Children Adult & Health,Cossey Produce Ltd,54.91,School dinners,Misc Food Stores - Default
10/02/2015,Children Adult & Health,Cossey Produce Ltd,15.67,School dinners,Misc Food Stores - Default
10/02/2015,Children Adult & Health,Cossey Produce Ltd,5.62,School dinners,Misc Food Stores - Default
10/02/2015,Children Adult & Health,Cossey Produce Ltd,62.73,School dinners,Misc Food Stores - Default
10/02/2015,Children Adult & Health,Cossey Produce Ltd,84.85,School dinners,Misc Food Stores - Default
10/02/2015,Children Adult & Health,Cossey Produce Ltd,30.37,School dinners,Misc Food Stores - Default
10/02/2015,Children Adult & Health,Cossey Produce Ltd,40.8,School dinners,Misc Food Stores - Default
10/02/2015,Children Adult & Health,Cossey Produce Ltd,63.6,School dinners,Misc Food Stores - Default
10/02/2015,Children Adult & Health,Cossey Produce Ltd,56.8,School dinners,Misc Food Stores - Default
10/02/2015,Children Adult & Health,Cossey Produce Ltd,37.77,School dinners,Misc Food Stores - Default
10/02/2015,Children Adult & Health,Cossey Produce Ltd,24.87,School dinners,Misc Food Stores - Default
10/02/2015,Children Adult & Health,Cossey Produce Ltd,93.2,School dinners,Misc Food Stores - Default
10/02/2015,Children Adult & Health,Cossey Produce Ltd,53.86,School dinners,Misc Food Stores - Default
10/02/2015,Children Adult & Health,Cossey Produce Ltd,53.97,School dinners,Misc Food Stores - Default
10/02/2015,Children Adult & Health,Cossey Produce Ltd,48.76,School dinners,Misc Food Stores - Default
10/02/2015,Children Adult & Health,Cossey Produce Ltd,22.53,School dinners,Misc Food Stores - Default
10/02/2015,Children Adult & Health,Cossey Produce Ltd,51.87,School dinners,Misc Food Stores - Default
10/02/2015,Children Adult & Health,Cossey Produce Ltd,96.96,School dinners,Misc Food Stores - Default
10/02/2015,Children Adult & Health,Cossey Produce Ltd,46.13,School dinners,Misc Food Stores - Default
10/02/2015,Children Adult & Health,Cossey Produce Ltd,30.93,School dinners,Misc Food Stores - Default
10/02/2015,Children Adult & Health,Cossey Produce Ltd,66.52,School dinners,Misc Food Stores - Default
10/02/2015,Children Adult & Health,Cossey Produce Ltd,15.53,School dinners,Misc Food Stores - Default
10/02/2015,Children Adult & Health,Cossey Produce Ltd,41.39,School dinners,Misc Food Stores - Default
10/02/2015,Children Adult & Health,Cossey Produce Ltd,32.01,School dinners,Misc Food Stores - Default
10/02/2015,Children Adult & Health,Cossey Produce Ltd,60.66,School dinners,Misc Food Stores - Default
10/02/2015,Children Adult & Health,Cossey Produce Ltd,53.03,School dinners,Misc Food Stores - Default
10/02/2015,Children Adult & Health,Cossey Produce Ltd,9,School dinners,Misc Food Stores - Default
10/02/2015,Children Adult & Health,Cossey Produce Ltd,30.36,School dinners,Misc Food Stores - Default
10/02/2015,Children Adult & Health,Cossey Produce Ltd,61.43,School dinners,Misc Food Stores - Default
10/02/2015,Children Adult & Health,Cossey Produce Ltd,65.31,School dinners,Misc Food Stores - Default
10/02/2015,Children Adult & Health,Cossey Produce Ltd,27.35,School dinners,Misc Food Stores - Default
10/02/2015,Children Adult & Health,Cossey Produce Ltd,24.52,School dinners,Misc Food Stores - Default
10/02/2015,Children Adult & Health,Cossey Produce Ltd,18,School dinners,Misc Food Stores - Default
10/02/2015,Children Adult & Health,Cossey Produce Ltd,19.47,School dinners,Misc Food Stores - Default
10/02/2015,Children Adult & Health,Cossey Produce Ltd,9.6,School dinners,Misc Food Stores - Default
10/02/2015,Children Adult & Health,Cossey Produce Ltd,59,School dinners,Misc Food Stores - Default
10/02/2015,Children Adult & Health,John Sheppard Butchers,96.23,School dinners,Freezer/Meat Lockers
10/02/2015,Children Adult & Health,John Sheppard Butchers,73.01,School dinners,Freezer/Meat Lockers
10/02/2015,Children Adult & Health,John Sheppard Butchers,13.94,School dinners,Freezer/Meat Lockers
10/02/2015,Children Adult & Health,John Sheppard Butchers,67.5,School dinners,Freezer/Meat Lockers
10/02/2015,Children Adult & Health,John Sheppard Butchers,49.29,School dinners,Freezer/Meat Lockers
10/02/2015,Children Adult & Health,John Sheppard Butchers,65.66,School dinners,Freezer/Meat Lockers
10/02/2015,Children Adult & Health,John Sheppard Butchers,33.91,School dinners,Freezer/Meat Lockers
10/02/2015,Children Adult & Health,John Sheppard Butchers,56.15,School dinners,Freezer/Meat Lockers
10/02/2015,Children Adult & Health,John Sheppard Butchers,89.64,School dinners,Freezer/Meat Lockers
10/02/2015,Children Adult & Health,Asda Superstore,34.75,Supplies and Services,Grocery Stores/Supermarkets
10/02/2015,Children Adult & Health,B & Q,20,Supplies and Services,Lumber/Build. Supply Stores
10/02/2015,Children Adult & Health,B & Q,-21.67,Supplies and Services,Lumber/Build. Supply Stores
10/02/2015,Children Adult & Health,Tesco Stores 6420,37.1,Project Funding,Grocery Stores/Supermarkets
10/02/2015,Children Adult & Health,First Bristol,394.25,Supplies and Services,Bus Lines/Charter/Tour
10/02/2015,Children Adult & Health,Bosch Thermotechno,262.5,Prop.Serv. General Repairs,Heating
10/02/2015,Children Adult & Health,Argos Ltd,25.63,Supplies and Services,Discount Stores
10/02/2015,Environment & Community Services,Screwfix Direct,34.99,Supplies and Services,Lumber/Build. Supply Stores
10/02/2015,Environment & Community Services,B & Q,12.91,Supplies and Services,Lumber/Build. Supply Stores
10/02/2015,Environment & Community Services,Bendrey Brothers Ltd,18.24,Supplies and Services,Lumber/Build. Supply Stores
10/02/2015,Environment & Community Services,Ewetsuits.Com,30.75,Credit Card Charges,Sporting Goods Stores
10/02/2015,Chief Executive & Corporate Resources,Supplies Team,52.31,Stationery,Stationery Stores
10/02/2015,Chief Executive & Corporate Resources,Supplies Team,9.45,Stationery,Stationery Stores
10/02/2015,Chief Executive & Corporate Resources,Supplies Team,24.07,Stationery,Stationery Stores
10/02/2015,Chief Executive & Corporate Resources,Supplies Team,4.72,Stationery,Stationery Stores
10/02/2015,Chief Executive & Corporate Resources,Supplies Team,22.76,Stationery,Stationery Stores
10/02/2015,Chief Executive & Corporate Resources,Supplies Team,340.43,Stationery,Stationery Stores
10/02/2015,Chief Executive & Corporate Resources,Supplies Team,41.56,Stationery,Stationery Stores
10/02/2015,Chief Executive & Corporate Resources,Supplies Team,44.75,Stationery,Stationery Stores
10/02/2015,Children Adult & Health,Amazon UK Retail,29,Supplies and Services,Other Direct Marketers
10/02/2015,Environment & Community Services,B & Q,30.04,Street Care - Buildings Maintenance,Lumber/Build. Supply Stores
10/02/2015,Environment & Community Services,B & Q,30.15,Street Care - Buildings Maintenance,Lumber/Build. Supply Stores
10/02/2015,Children Adult & Health,Ec Mainline Co Int,19.1,Supplies and Services,Passenger Railways
10/02/2015,Children Adult & Health,Lidl Uk,2.69,Supplies and Services,Grocery Stores/Supermarkets
10/02/2015,Children Adult & Health,Amazon UK Retail,20,Supplies and Services,Other Direct Marketers
10/02/2015,Children Adult & Health,Amazon UK Retail,20,Supplies and Services,Other Direct Marketers
11/02/2015,Children Adult & Health,Tesco Stores 6420,5.95,Supplies and Services,Grocery Stores/Supermarkets
11/02/2015,Environment & Community Services,Wfm,7.62,Street Care - Buildings Maintenance,Industrial Supplies - Def
11/02/2015,Childrens Adult & Health,Lutherking.Co.Uk,9.9,Supplies and Services,Lodging/Hotels/Motels/Resorts
11/02/2015,Environment & Community Services,Www.Doorhandlecompany.,146.58,Supplies and Services,Hardware Stores
11/02/2015,Children Adult & Health,Embassy Of The Islamic,75,Supplies and Services,Govt Serv - Default
11/02/2015,Children Adult & Health,Lul Ticket Office.,11.4,Supplies and Services,Passenger Railways
11/02/2015,Environment & Community Services,Asphaltic Roofing,25.83,Street Care - Buildings Maintenance,Industrial Supplies - Def
11/02/2015,Chief Executive & Corporate Resources,"Amazon Svcs Europe,sar",22.95,Credit Card Charges,Book Stores
11/02/2015,Environment & Community Services,Wickes,7.47,Street Care - Buildings Maintenance,Home Supply Warehouse Stores
11/02/2015,Environment & Community Services,Howden Joinery Warmley,63,Street Care - Buildings Maintenance,Construction Materials - Def
11/02/2015,Environment & Community Services,Screwfix,10.65,Street Care - Buildings Maintenance,Lumber/Build. Supply Stores
11/02/2015,Environment & Community Services,Paypal,79.96,Credit Card Charges,Electronics Sales
11/02/2015,Children Adult & Health,Maison Anglais,97,Supplies and Services,Misc Gen Merchandise - Def
11/02/2015,Children Adult & Health,"Amazon Svcs Europe,sar",8.22,Supplies and Services,Book Stores
11/02/2015,Children Adult & Health,"Amazon Svcs Europe,sar",8.58,Supplies and Services,Book Stores
11/02/2015,Environment & Community Services,Amazon UK Retail,38.99,Credit Card Charges,Other Direct Marketers
11/02/2015,Environment & Community Services,"Amazon Svcs Europe,sar",17.99,Credit Card Charges,Book Stores
11/02/2015,Environment & Community Services,"Amazon Svcs Europe,sar",168.22,Credit Card Charges,Book Stores
11/02/2015,Chief Executive & Corporate Resources,Www.Pcnation.Co.Uk,1687.44,Supplies and Services,Computers/Peripherals/Software
11/02/2015,Chief Executive & Corporate Resources,Apple Online Store Gbp,65,Credit Card Charges,Electronics Sales
11/02/2015,Chief Executive & Corporate Resources,Apple Online Store Gbp,65,Credit Card Charges,Electronics Sales
11/02/2015,Environment & Community Services,Dvsa,2000,Credit Card Charges,Govt Serv - Default
11/02/2015,Children Adult & Health,Ikea,19.5,Supplies and Services,Misc Home Furnishing
11/02/2015,Childrens Adult & Health,Cross Country,54.5,Supplies and Services,Passenger Railways
11/02/2015,Children Adult & Health,Sainsburys S/mkts,10.69,Supplies and Services,Grocery Stores/Supermarkets
11/02/2015,Chief Executive & Corporate Resources,Amazon Payments,64.9,Supplies and Services,Business Services - Default
11/02/2015,Children Adult & Health,Poundland,9,Project Funding,Discount Stores
11/02/2015,Environment & Community Services,Screwfix Direct,9.88,Supplies and Services,Lumber/Build. Supply Stores
11/02/2015,Children Adult & Health,Cossey Produce Ltd,22.68,School dinners,Misc Food Stores - Default
11/02/2015,Children Adult & Health,Cossey Produce Ltd,4.9,School dinners,Misc Food Stores - Default
11/02/2015,Children Adult & Health,Cossey Produce Ltd,45.46,School dinners,Misc Food Stores - Default
11/02/2015,Children Adult & Health,Cossey Produce Ltd,85.62,School dinners,Misc Food Stores - Default
11/02/2015,Children Adult & Health,Cossey Produce Ltd,14.98,School dinners,Misc Food Stores - Default
11/02/2015,Children Adult & Health,Cossey Produce Ltd,84.28,School dinners,Misc Food Stores - Default
11/02/2015,Children Adult & Health,Cossey Produce Ltd,42.29,School dinners,Misc Food Stores - Default
11/02/2015,Children Adult & Health,Cossey Produce Ltd,1.9,School dinners,Misc Food Stores - Default
11/02/2015,Children Adult & Health,Cossey Produce Ltd,31.48,School dinners,Misc Food Stores - Default
11/02/2015,Children Adult & Health,Cossey Produce Ltd,12,School dinners,Misc Food Stores - Default
11/02/2015,Children Adult & Health,Cossey Produce Ltd,16,School dinners,Misc Food Stores - Default
11/02/2015,Children Adult & Health,Cossey Produce Ltd,11.6,School dinners,Misc Food Stores - Default
11/02/2015,Children Adult & Health,Cossey Produce Ltd,100.11,School dinners,Misc Food Stores - Default
11/02/2015,Children Adult & Health,Cossey Produce Ltd,20.96,School dinners,Misc Food Stores - Default
11/02/2015,Children Adult & Health,Cossey Produce Ltd,-8,School dinners,Misc Food Stores - Default
11/02/2015,Children Adult & Health,Cossey Produce Ltd,160.21,School dinners,Misc Food Stores - Default
11/02/2015,Children Adult & Health,Cossey Produce Ltd,29.26,School dinners,Misc Food Stores - Default
11/02/2015,Children Adult & Health,Cossey Produce Ltd,42.24,School dinners,Misc Food Stores - Default
11/02/2015,Children Adult & Health,Cossey Produce Ltd,65.72,School dinners,Misc Food Stores - Default
11/02/2015,Children Adult & Health,Cossey Produce Ltd,0.47,School dinners,Misc Food Stores - Default
11/02/2015,Children Adult & Health,Cossey Produce Ltd,53.06,School dinners,Misc Food Stores - Default
11/02/2015,Children Adult & Health,Cossey Produce Ltd,5,School dinners,Misc Food Stores - Default
11/02/2015,Children Adult & Health,Cossey Produce Ltd,43.64,School dinners,Misc Food Stores - Default
11/02/2015,Children Adult & Health,Cossey Produce Ltd,6,School dinners,Misc Food Stores - Default
11/02/2015,Children Adult & Health,Cossey Produce Ltd,12.1,School dinners,Misc Food Stores - Default
11/02/2015,Children Adult & Health,Cossey Produce Ltd,25.75,School dinners,Misc Food Stores - Default
11/02/2015,Children Adult & Health,Cossey Produce Ltd,13.08,School dinners,Misc Food Stores - Default
11/02/2015,Children Adult & Health,Cossey Produce Ltd,10.47,School dinners,Misc Food Stores - Default
11/02/2015,Children Adult & Health,Cossey Produce Ltd,16.63,School dinners,Misc Food Stores - Default
11/02/2015,Children Adult & Health,Cossey Produce Ltd,33.98,School dinners,Misc Food Stores - Default
11/02/2015,Children Adult & Health,Cossey Produce Ltd,32.42,School dinners,Misc Food Stores - Default
11/02/2015,Children Adult & Health,Cossey Produce Ltd,17.05,School dinners,Misc Food Stores - Default
11/02/2015,Children Adult & Health,Cossey Produce Ltd,23.54,School dinners,Misc Food Stores - Default
11/02/2015,Children Adult & Health,Cossey Produce Ltd,24.42,School dinners,Misc Food Stores - Default
11/02/2015,Children Adult & Health,Cossey Produce Ltd,29.84,School dinners,Misc Food Stores - Default
11/02/2015,Children Adult & Health,Cossey Produce Ltd,36.41,School dinners,Misc Food Stores - Default
11/02/2015,Children Adult & Health,Cossey Produce Ltd,46.41,School dinners,Misc Food Stores - Default
11/02/2015,Children Adult & Health,Cossey Produce Ltd,16,School dinners,Misc Food Stores - Default
11/02/2015,Children Adult & Health,Cossey Produce Ltd,48.22,School dinners,Misc Food Stores - Default
11/02/2015,Children Adult & Health,Cossey Produce Ltd,15.8,School dinners,Misc Food Stores - Default
11/02/2015,Children Adult & Health,Cossey Produce Ltd,29.08,School dinners,Misc Food Stores - Default
11/02/2015,Children Adult & Health,Cossey Produce Ltd,19.86,School dinners,Misc Food Stores - Default
11/02/2015,Children Adult & Health,Cossey Produce Ltd,41.4,School dinners,Misc Food Stores - Default
11/02/2015,Children Adult & Health,Cossey Produce Ltd,-9.6,School dinners,Misc Food Stores - Default
11/02/2015,Children Adult & Health,Cossey Produce Ltd,1,School dinners,Misc Food Stores - Default
11/02/2015,Children Adult & Health,Cossey Produce Ltd,8.63,School dinners,Misc Food Stores - Default
11/02/2015,Children Adult & Health,Cossey Produce Ltd,48.16,School dinners,Misc Food Stores - Default
11/02/2015,Children Adult & Health,Cossey Produce Ltd,8.2,School dinners,Misc Food Stores - Default
11/02/2015,Children Adult & Health,Cossey Produce Ltd,7.6,School dinners,Misc Food Stores - Default
11/02/2015,Children Adult & Health,Cossey Produce Ltd,11.93,School dinners,Misc Food Stores - Default
11/02/2015,Children Adult & Health,Cossey Produce Ltd,10.4,School dinners,Misc Food Stores - Default
11/02/2015,Children Adult & Health,Cossey Produce Ltd,22.22,School dinners,Misc Food Stores - Default
11/02/2015,Children Adult & Health,Cossey Produce Ltd,7.56,School dinners,Misc Food Stores - Default
11/02/2015,Children Adult & Health,Cossey Produce Ltd,57.8,School dinners,Misc Food Stores - Default
11/02/2015,Children Adult & Health,Cossey Produce Ltd,51.39,School dinners,Misc Food Stores - Default
11/02/2015,Children Adult & Health,Cossey Produce Ltd,35,School dinners,Misc Food Stores - Default
11/02/2015,Children Adult & Health,Cossey Produce Ltd,14,School dinners,Misc Food Stores - Default
11/02/2015,Children Adult & Health,Cossey Produce Ltd,14.3,School dinners,Misc Food Stores - Default
11/02/2015,Children Adult & Health,Cossey Produce Ltd,25.88,School dinners,Misc Food Stores - Default
11/02/2015,Children Adult & Health,Cossey Produce Ltd,11.8,School dinners,Misc Food Stores - Default
11/02/2015,Children Adult & Health,Cossey Produce Ltd,15,School dinners,Misc Food Stores - Default
11/02/2015,Children Adult & Health,Cossey Produce Ltd,20,School dinners,Misc Food Stores - Default
11/02/2015,Children Adult & Health,Cossey Produce Ltd,56.62,School dinners,Misc Food Stores - Default
11/02/2015,Children Adult & Health,Cossey Produce Ltd,17.14,School dinners,Misc Food Stores - Default
11/02/2015,Children Adult & Health,Cossey Produce Ltd,10.9,School dinners,Misc Food Stores - Default
11/02/2015,Children Adult & Health,Cossey Produce Ltd,18.56,School dinners,Misc Food Stores - Default
11/02/2015,Children Adult & Health,Cossey Produce Ltd,10.94,School dinners,Misc Food Stores - Default
11/02/2015,Children Adult & Health,Cossey Produce Ltd,15.39,School dinners,Misc Food Stores - Default
11/02/2015,Children Adult & Health,Cossey Produce Ltd,-7.5,School dinners,Misc Food Stores - Default
11/02/2015,Children Adult & Health,Cossey Produce Ltd,47.88,School dinners,Misc Food Stores - Default
11/02/2015,Children Adult & Health,Cossey Produce Ltd,29.33,School dinners,Misc Food Stores - Default
11/02/2015,Children Adult & Health,Cossey Produce Ltd,20.78,School dinners,Misc Food Stores - Default
11/02/2015,Children Adult & Health,Cossey Produce Ltd,175.17,School dinners,Misc Food Stores - Default
11/02/2015,Children Adult & Health,Cossey Produce Ltd,24.5,School dinners,Misc Food Stores - Default
11/02/2015,Children Adult & Health,Cossey Produce Ltd,67.11,School dinners,Misc Food Stores - Default
11/02/2015,Children Adult & Health,Cossey Produce Ltd,15,School dinners,Misc Food Stores - Default
11/02/2015,Children Adult & Health,Cossey Produce Ltd,38.49,School dinners,Misc Food Stores - Default
11/02/2015,Children Adult & Health,Cossey Produce Ltd,50.15,School dinners,Misc Food Stores - Default
11/02/2015,Children Adult & Health,Cossey Produce Ltd,20,School dinners,Misc Food Stores - Default
11/02/2015,Children Adult & Health,Cossey Produce Ltd,83.42,School dinners,Misc Food Stores - Default
11/02/2015,Children Adult & Health,Cossey Produce Ltd,10,School dinners,Misc Food Stores - Default
11/02/2015,Children Adult & Health,Cossey Produce Ltd,5.16,School dinners,Misc Food Stores - Default
11/02/2015,Children Adult & Health,Cossey Produce Ltd,22.46,School dinners,Misc Food Stores - Default
11/02/2015,Children Adult & Health,Cossey Produce Ltd,26.4,School dinners,Misc Food Stores - Default
11/02/2015,Children Adult & Health,Cossey Produce Ltd,66.97,School dinners,Misc Food Stores - Default
11/02/2015,Children Adult & Health,Cossey Produce Ltd,8.95,School dinners,Misc Food Stores - Default
11/02/2015,Children Adult & Health,Cossey Produce Ltd,35.4,School dinners,Misc Food Stores - Default
11/02/2015,Children Adult & Health,Cossey Produce Ltd,11.18,School dinners,Misc Food Stores - Default
11/02/2015,Children Adult & Health,Cossey Produce Ltd,146.66,School dinners,Misc Food Stores - Default
11/02/2015,Children Adult & Health,Cossey Produce Ltd,21.61,School dinners,Misc Food Stores - Default
11/02/2015,Children Adult & Health,Cossey Produce Ltd,27.99,School dinners,Misc Food Stores - Default
11/02/2015,Children Adult & Health,Brake Bros Ltd,200.77,School dinners,Caterers
11/02/2015,Children Adult & Health,Brake Bros Ltd,119.56,School dinners,Caterers
11/02/2015,Children Adult & Health,Brake Bros Ltd,42.03,School dinners,Caterers
11/02/2015,Children Adult & Health,Brake Bros Ltd,60.45,School dinners,Caterers
11/02/2015,Children Adult & Health,Brake Bros Ltd,240.2,School dinners,Caterers
11/02/2015,Children Adult & Health,Brake Bros Ltd,110.59,School dinners,Caterers
11/02/2015,Children Adult & Health,Brake Bros Ltd,235.11,School dinners,Caterers
11/02/2015,Children Adult & Health,Brake Bros Ltd,70.67,School dinners,Caterers
11/02/2015,Children Adult & Health,Brake Bros Ltd,74.58,School dinners,Caterers
11/02/2015,Children Adult & Health,Brake Bros Ltd,140.92,School dinners,Caterers
11/02/2015,Children Adult & Health,Brake Bros Ltd,95.76,School dinners,Caterers
11/02/2015,Children Adult & Health,Brake Bros Ltd,210.47,School dinners,Caterers
11/02/2015,Children Adult & Health,Brake Bros Ltd,452.74,School dinners,Caterers
11/02/2015,Children Adult & Health,Brake Bros Ltd,114.31,School dinners,Caterers
11/02/2015,Children Adult & Health,Brake Bros Ltd,93.14,School dinners,Caterers
11/02/2015,Children Adult & Health,Brake Bros Ltd,144.48,School dinners,Caterers
11/02/2015,Children Adult & Health,Brake Bros Ltd,14.9,School dinners,Caterers
11/02/2015,Children Adult & Health,Brake Bros Ltd,121.25,School dinners,Caterers
11/02/2015,Children Adult & Health,Brake Bros Ltd,292.1,School dinners,Caterers
11/02/2015,Children Adult & Health,Brake Bros Ltd,17.72,School dinners,Caterers
11/02/2015,Children Adult & Health,Brake Bros Ltd,236.99,School dinners,Caterers
11/02/2015,Children Adult & Health,Brake Bros Ltd,135.65,School dinners,Caterers
11/02/2015,Children Adult & Health,Brake Bros Ltd,66,School dinners,Caterers
11/02/2015,Children Adult & Health,Brake Bros Ltd,196.5,School dinners,Caterers
11/02/2015,Children Adult & Health,Brake Bros Ltd,81.74,School dinners,Caterers
11/02/2015,Children Adult & Health,Brake Bros Ltd,124.92,School dinners,Caterers
11/02/2015,Children Adult & Health,Brake Bros Ltd,50.85,School dinners,Caterers
11/02/2015,Children Adult & Health,Brake Bros Ltd,336.34,School dinners,Caterers
11/02/2015,Children Adult & Health,Brake Bros Ltd,197.84,School dinners,Caterers
11/02/2015,Children Adult & Health,Brake Bros Ltd,130.9,School dinners,Caterers
11/02/2015,Children Adult & Health,Brake Bros Ltd,169.35,School dinners,Caterers
11/02/2015,Children Adult & Health,Noahs Ark,214.5,Supplies and Services,Amusement Parks/Circus
11/02/2015,Children Adult & Health,W M Morrisons Plc,33.56,Supplies and Services,Grocery Stores/Supermarkets
11/02/2015,Children Adult & Health,Brake Bros Ltd,232.24,School dinners,Caterers
11/02/2015,Children Adult & Health,Brake Bros Ltd,186.76,School dinners,Caterers
11/02/2015,Children Adult & Health,Brake Bros Ltd,148.35,School dinners,Caterers
11/02/2015,Children Adult & Health,Brake Bros Ltd,88.03,School dinners,Caterers
11/02/2015,Children Adult & Health,Brake Bros Ltd,26.53,School dinners,Caterers
11/02/2015,Children Adult & Health,Brake Bros Ltd,125.73,School dinners,Caterers
11/02/2015,Children Adult & Health,Brake Bros Ltd,170.75,School dinners,Caterers
11/02/2015,Children Adult & Health,Brake Bros Ltd,58.89,School dinners,Caterers
11/02/2015,Children Adult & Health,Brake Bros Ltd,31.92,School dinners,Caterers
11/02/2015,Children Adult & Health,Brake Bros Ltd,381.53,School dinners,Caterers
11/02/2015,Children Adult & Health,Brake Bros Ltd,280.38,School dinners,Caterers
11/02/2015,Children Adult & Health,Brake Bros Ltd,190.17,School dinners,Caterers
11/02/2015,Children Adult & Health,Brake Bros Ltd,282.58,School dinners,Caterers
11/02/2015,Children Adult & Health,Brake Bros Ltd,92.65,School dinners,Caterers
11/02/2015,Children Adult & Health,Brake Bros Ltd,158.88,School dinners,Caterers
11/02/2015,Children Adult & Health,Brake Bros Ltd,183.77,School dinners,Caterers
11/02/2015,Children Adult & Health,Brake Bros Ltd,59.73,School dinners,Caterers
11/02/2015,Children Adult & Health,Brake Bros Ltd,50.13,School dinners,Caterers
11/02/2015,Children Adult & Health,Brake Bros Ltd,133.81,School dinners,Caterers
11/02/2015,Children Adult & Health,Brake Bros Ltd,99.69,School dinners,Caterers
11/02/2015,Children Adult & Health,Brake Bros Ltd,204.38,School dinners,Caterers
11/02/2015,Children Adult & Health,Brake Bros Ltd,327.83,School dinners,Caterers
11/02/2015,Children Adult & Health,Brake Bros Ltd,196.68,School dinners,Caterers
11/02/2015,Children Adult & Health,Brake Bros Ltd,350.54,School dinners,Caterers
11/02/2015,Children Adult & Health,Brake Bros Ltd,214.27,School dinners,Caterers
11/02/2015,Children Adult & Health,Brake Bros Ltd,262.25,School dinners,Caterers
11/02/2015,Children Adult & Health,Brake Bros Ltd,206.72,School dinners,Caterers
11/02/2015,Children Adult & Health,Brake Bros Ltd,34.65,School dinners,Caterers
11/02/2015,Children Adult & Health,Brake Bros Ltd,137.68,School dinners,Caterers
11/02/2015,Children Adult & Health,Brake Bros Ltd,119.54,School dinners,Caterers
11/02/2015,Children Adult & Health,Brake Bros Ltd,95.47,School dinners,Caterers
11/02/2015,Children Adult & Health,Brake Bros Ltd,172.76,School dinners,Caterers
11/02/2015,Children Adult & Health,Brake Bros Ltd,68.16,School dinners,Caterers
11/02/2015,Children Adult & Health,Brake Bros Ltd,84.18,School dinners,Caterers
11/02/2015,Children Adult & Health,Brake Bros Ltd,290.78,School dinners,Caterers
12/02/2015,Environment & Community Services,Www.Ironmongerydirect.,177.6,Supplies and Services,Glass/Paint/Wallpaper Store
12/02/2015,Children Adult & Health,Martin Mccolls,7.9,Supplies and Services,Misc Food Stores - Default
12/02/2015,Children Adult & Health,John Sheppard Butchers,148.49,School dinners,Freezer/Meat Lockers
12/02/2015,Children Adult & Health,John Sheppard Butchers,29.38,School dinners,Freezer/Meat Lockers
12/02/2015,Children Adult & Health,John Sheppard Butchers,28.02,School dinners,Freezer/Meat Lockers
12/02/2015,Children Adult & Health,Brake Bros Ltd,54.86,School dinners,Caterers
12/02/2015,Children Adult & Health,Brake Bros Ltd,89.77,School dinners,Caterers
12/02/2015,Children Adult & Health,Brake Bros Ltd,95.6,School dinners,Caterers
12/02/2015,Children Adult & Health,Brake Bros Ltd,199.1,School dinners,Caterers
12/02/2015,Children Adult & Health,Brake Bros Ltd,219.34,School dinners,Caterers
12/02/2015,Children Adult & Health,Brake Bros Ltd,96.75,School dinners,Caterers
12/02/2015,Children Adult & Health,Brake Bros Ltd,115.53,School dinners,Caterers
12/02/2015,Children Adult & Health,Homebase Ltd,12.34,Supplies and Services,Lumber/Build. Supply Stores
12/02/2015,Children Adult & Health,Brake Bros Ltd,162.61,School dinners,Caterers
12/02/2015,Children Adult & Health,Brake Bros Ltd,-18.86,School dinners,Caterers
12/02/2015,Children Adult & Health,Brake Bros Ltd,54.62,School dinners,Caterers
12/02/2015,Children Adult & Health,Brake Bros Ltd,158.97,School dinners,Caterers
12/02/2015,Children Adult & Health,Brake Bros Ltd,124.47,School dinners,Caterers
12/02/2015,Children Adult & Health,Brake Bros Ltd,175.22,School dinners,Caterers
12/02/2015,Children Adult & Health,Brake Bros Ltd,183.13,School dinners,Caterers
12/02/2015,Children Adult & Health,Brake Bros Ltd,239.83,School dinners,Caterers
12/02/2015,Children Adult & Health,Brake Bros Ltd,45.87,School dinners,Caterers
12/02/2015,Children Adult & Health,Brake Bros Ltd,59.68,School dinners,Caterers
12/02/2015,Children Adult & Health,Brake Bros Ltd,76.77,School dinners,Caterers
12/02/2015,Children Adult & Health,Brake Bros Ltd,60.94,School dinners,Caterers
12/02/2015,Children Adult & Health,Brake Bros Ltd,145.57,School dinners,Caterers
12/02/2015,Children Adult & Health,Brake Bros Ltd,64.4,School dinners,Caterers
12/02/2015,Children Adult & Health,Brake Bros Ltd,216.04,School dinners,Caterers
12/02/2015,Children Adult & Health,Brake Bros Ltd,24.83,School dinners,Caterers
12/02/2015,Children Adult & Health,Brake Bros Ltd,160.07,School dinners,Caterers
12/02/2015,Children Adult & Health,Brake Bros Ltd,140.27,School dinners,Caterers
12/02/2015,Children Adult & Health,Brake Bros Ltd,78.9,School dinners,Caterers
12/02/2015,Children Adult & Health,Brake Bros Ltd,93.15,School dinners,Caterers
12/02/2015,Children Adult & Health,Brake Bros Ltd,-19.85,School dinners,Caterers
12/02/2015,Children Adult & Health,Brake Bros Ltd,145.22,School dinners,Caterers
12/02/2015,Children Adult & Health,Brake Bros Ltd,88.02,School dinners,Caterers
12/02/2015,Children Adult & Health,Brake Bros Ltd,53.01,School dinners,Caterers
12/02/2015,Children Adult & Health,Brake Bros Ltd,91.79,School dinners,Caterers
12/02/2015,Children Adult & Health,Brake Bros Ltd,431.52,School dinners,Caterers
12/02/2015,Children Adult & Health,Brake Bros Ltd,92.35,School dinners,Caterers
12/02/2015,Children Adult & Health,Brake Bros Ltd,58.45,School dinners,Caterers
12/02/2015,Children Adult & Health,Brake Bros Ltd,109.58,School dinners,Caterers
12/02/2015,Children Adult & Health,Brake Bros Ltd,109.59,School dinners,Caterers
12/02/2015,Children Adult & Health,Brake Bros Ltd,90.52,School dinners,Caterers
12/02/2015,Children Adult & Health,Brake Bros Ltd,131.5,School dinners,Caterers
12/02/2015,Children Adult & Health,Brake Bros Ltd,48,School dinners,Caterers
12/02/2015,Children Adult & Health,Brake Bros Ltd,155.55,School dinners,Caterers
12/02/2015,Children Adult & Health,Brake Bros Ltd,203.02,School dinners,Caterers
12/02/2015,Children Adult & Health,Brake Bros Ltd,185.42,School dinners,Caterers
12/02/2015,Children Adult & Health,Brake Bros Ltd,150.34,School dinners,Caterers
12/02/2015,Children Adult & Health,Brake Bros Ltd,99.8,School dinners,Caterers
12/02/2015,Children Adult & Health,Brake Bros Ltd,172.74,School dinners,Caterers
